{"text_format":"1","workbook":"xlsx","n_sheets":22,"sheets":["Tran","P","CDR","RD","Form2","7DV","5Ins","4PO","3Abs","2Canvas","1PR","P1","Sheet1","CheqDetail","ICS","Travel1","ARE","Code","Tel No","Computer Stores","RER","2Canvas (2)"],"not_rendered":{"charts":0,"images":5,"macros":1,"external_links":0,"defined_names":93,"comments":1,"pivot_tables":0},"unopened":[],"bounds":{"document_bytes":16777216,"sheet_cells":100000,"rows_first":2000,"rows_last":500,"rows_between":2000,"halvings":0,"cell_chars":16384,"cell_head_chars":4096},"cells_cut":0,"cells_raw":0,"read":"whole","date_system":"1900"}

{"sheet":"Tran","index":0,"n_rows":72,"n_cols":47,"rows_kept":72,"cut":false,"hidden":false,"merged":[[8,27,8,52],[38,32,38,34],[39,32,39,34],[35,35,35,43],[36,35,36,43],[37,35,37,43],[38,35,38,43],[39,35,39,43],[35,44,35,47],[36,44,36,47],[37,44,37,47],[38,44,38,47],[39,44,39,47],[34,35,34,43],[34,44,34,47],[34,29,34,31],[34,32,34,34],[35,29,35,31],[36,29,36,31],[37,29,37,31],[38,29,38,31],[39,29,39,31],[35,32,35,34],[36,32,36,34],[43,35,43,43],[44,29,44,31],[44,32,44,34],[44,35,44,43],[44,44,44,47],[46,15,46,16],[46,17,46,18],[46,19,46,21],[46,22,46,25],[44,17,44,18],[44,19,44,21],[44,15,44,16],[45,15,45,16],[45,17,45,18],[45,19,45,21],[45,22,45,25],[43,22,43,25],[44,22,44,25],[43,15,43,16],[43,17,43,18],[43,19,43,21],[39,54,39,55],[42,15,42,16],[45,32,45,34],[45,35,45,43],[45,44,45,47],[40,15,40,16],[41,15,41,16],[41,17,41,18],[43,44,43,47],[39,15,39,16],[39,17,39,18],[39,19,39,21],[45,29,45,31],[39,22,39,25],[40,17,40,18],[40,19,40,21],[40,22,40,25],[41,19,41,21],[41,22,41,25],[42,17,42,18],[42,19,42,21],[42,22,42,25],[43,29,43,31],[43,32,43,34],[42,29,42,31],[42,32,42,34],[41,29,41,31],[41,32,41,34],[41,35,41,43],[41,44,41,47],[42,35,42,43],[42,44,42,47],[40,29,40,31],[40,32,40,34],[40,35,40,43],[40,44,40,47],[37,32,37,34],[34,15,34,16],[34,17,34,18],[34,19,34,21],[34,22,34,25],[37,19,37,21],[36,22,36,25],[37,22,37,25],[38,15,38,16],[38,17,38,18],[38,19,38,21],[38,22,38,25],[36,15,36,16],[36,19,36,21],[36,17,36,18],[35,15,35,16],[35,17,35,18],[35,19,35,21],[35,22,35,25],[37,15,37,16],[37,17,37,18],[48,2,48,14],[48,15,48,16],[48,17,48,18],[48,19,48,21],[48,22,48,25],[47,22,47,25],[47,15,47,16],[47,17,47,18],[47,19,47,21],[0,27,0,52],[1,27,1,52],[2,27,2,52],[3,27,3,52],[4,27,4,52],[9,27,9,52],[10,27,10,52],[13,43,13,49],[9,0,9,25],[0,0,0,25],[1,0,1,25],[2,0,2,25],[3,0,3,25],[4,0,4,25],[10,0,10,25],[13,16,13,22],[5,0,5,25],[7,0,7,25],[8,0,8,25],[6,0,6,25],[5,27,5,52],[6,27,6,52],[7,27,7,52],[11,0,11,25],[32,19,32,21],[24,2,24,25],[25,0,27,25],[28,2,29,14],[28,15,29,16],[26,27,29,52],[28,17,29,18],[28,19,29,21],[28,22,29,25],[30,2,30,14],[30,29,30,31],[30,32,30,34],[30,35,30,43],[30,44,30,47],[30,15,30,16],[30,17,30,18],[30,19,30,21],[30,22,30,25],[11,27,11,52],[33,19,33,21],[31,15,31,16],[31,17,31,18],[31,19,31,21],[31,22,31,25],[33,44,33,47],[31,29,31,31],[33,15,33,16],[33,22,33,25],[31,32,31,34],[31,35,31,43],[31,44,31,47],[32,29,32,31],[32,32,32,34],[32,35,32,43],[32,44,32,47],[33,29,33,31],[33,32,33,34],[33,35,33,43],[32,22,32,25],[33,17,33,18],[32,15,32,16],[32,17,32,18]]}
[]
[]
[]
[]
[]
["Republic of the Philippines",null,null,null,null,null,null,null,null,null,null,null,null,null,null,null,null,null,null,null,null,null,null,null,null,null,null,"Republic of the Philippines"]
["Department of Education",null,null,null,null,null,null,null,null,null,null,null,null,null,null,null,null,null,null,null,null,null,null,null,null,null,null,"Department of Education"]
["Region VII, Central Visayas",null,null,null,null,null,null,null,null,null,null,null,null,null,null,null,null,null,null,null,null,null,null,null,null,null,null,"Region VII, Central Visayas"]
["DIVISION OF LAPU-LAPU CITY",null,null,null,null,null,null,null,null,null,null,null,null,null,null,null,null,null,null,null,null,null,null,null,null,null,null,"DIVISION OF LAPU-LAPU CITY"]
["MARIGONDON ELEMENTARY SCHOOL",null,null,null,null,null,null,null,null,null,null,null,null,null,null,null,null,null,null,null,null,null,null,null,null,null,null,"MARIGONDON ELEMENTARY SCHOOL"]
["Marigondon, Lapu-Lapu City",null,null,null,null,null,null,null,null,null,null,null,null,null,null,null,null,null,null,null,null,null,null,null,null,null,null,"Marigondon, Lapu-Lapu City"]
["OFFICE OF THE PRINCIPAL",null,null,null,null,null,null,null,null,null,null,null,null,null,null,null,null,null,null,null,null,null,null,null,null,null,null,"OFFICE OF THE PRINCIPAL"]
[]
[null,null,null,null,null,null,null,null,null,null,null,null,null,null,null,null,"2018-01-10",null,null,null,null,null,null,null,null,null,null,null,null,null,null,null,null,null,null,null,null,null,null,null,null,null,null,"2018-02-25"]
["DR. MARILYN S. ANDALES"]
["Schools Division Superintendent"]
["Division of Lapu-Lapu City",null,null,null,null,null,null,null,null,null,null,null,null,null,null,null,null,null,null,null,null,null,null,null,null,null,null,"DR. MARILYN S. ANDALES, CESO VI"]
["B.M. Dimataga St., Lapu-Lapu City",null,null,null,null,null,null,null,null,null,null,null,null,null,null,null,null,null,null,null,null,null,null,null,null,null,null,"Schools Division Superintendent"]
[null,null,null,null,null,null,null,null,null,null,null,null,null,null,null,null,null,null,null,null,null,null,null,null,null,null,null,"Division of Lapu-Lapu City"]
[null,null,null,null,null,null,null,null,null,null,null,null,null,null,null,null,null,null,null,null,null,null,null,null,null,null,null,"B.M. Dimataga St., Lapu-Lapu City"]
["Madam:"]
[]
[null,null,"Greetings!",null,null,null,null,null,null,null,null,null,null,null,null,null,null,null,null,null,null,null,null,null,null,null,null,"Madam:"]
[]
[null,null,"I would like to request your good office for the release of JANUARY 2018 MOOE allocation of this",null,null,null,null,null,null,null,null,null,null,null,null,null,null,null,null,null,null,null,null,null,null,null,null,null,null,"Greetings!"]
[{"$f":"\"school in the amount of \"&SpellNumber(W49)&\" (P  \"&\"280,000\"&\"). The said amount will be used to pay the following: \"","v":"school in the amount of One Hundred Ninety  Thousand Four Hundred Sixty Six Pesos Only (P  280,000). The said amount will be used to pay the following: "}]
[null,null,null,null,null,null,null,null,null,null,null,null,null,null,null,null,null,null,null,null,null,null,null,null,null,null,null,{"$f":"\"             I would like to submit herewith the Liquidation Report for \"&CDR!G16&\" MOOE Fund in the amount of \"&SpellNumber(217666)&\" (P  \"&\"217,666.00\"&\"). The following were the transactions of the said MOOE Fund:\"","v":"             I would like to submit herewith the Liquidation Report for JANUARY 2020 MOOE Fund in the amount of Two Hundred Seventeen Thousand Six Hundred Sixty Six Pesos Only (P  217,666.00). The following were the transactions of the said MOOE Fund:"}]
[]
[null,null,"Item Description",null,null,null,null,null,null,null,null,null,null,null,null,"Unit",null,"Qty",null,"Estimated\nAmount",null,null,"Total Amount"]
[]
[null,null,"Electricity (Meco)",null,null,null,null,null,null,null,null,null,null,null,null,null,null,1,null,{"$f":"53422+127.13","v":53549.13},null,null,{"$f":"T31*R31","v":53549.13},null,null,null,null,null,null,"Date",null,null,"DV No.",null,null,"Payee",null,null,null,null,null,null,null,null,"Amount"]
[null,null,"Security Guards",null,null,null,null,null,null,null,null,null,null,null,null,null,null,4,null,8500,null,null,{"$f":"T32*R32","v":34000},null,null,null,null,null,null,{"$f":"RD!A17","v":"2018-02-06"},null,null,{"$f":"RD!E17","v":2001001},null,null,{"$f":"RD!M17","v":"Mactan Electric Company (MECO)"},null,null,null,null,null,null,null,null,{"$f":"RD!AA17","v":53422.049999999996}]
[null,null,"Repair and Maintenance (Program of Work)",null,null,null,null,null,null,null,null,null,null,null,null,null,null,1,null,{"$f":"P!AA46","v":89891.875},null,null,{"$f":"T33*R33","v":89891.875},null,null,null,null,null,null,{"$f":"RD!A18","v":"2018-02-06"},null,null,{"$f":"RD!E18","v":2001002},null,null,{"$f":"RD!M18","v":"High Security Agency"},null,null,null,null,null,null,null,null,{"$f":"RD!AA18","v":34000}]
[null,null,"Globe (Innove)",null,null,null,null,null,null,null,null,null,null,null,null,null,null,1,null,3000,null,null,{"$f":"T34*R34","v":3000},null,null,null,null,null,null,{"$f":"RD!A19","v":"2018-02-06"},null,null,{"$f":"RD!E19","v":2001003},null,null,{"$f":"RD!M19","v":"Globe"},null,null,null,null,null,null,null,null,{"$f":"RD!AA19","v":3000}]
[null,null,"Fedelity Bond",null,null,null,null,null,null,null,null,null,null,null,null,null,null,1,null,1500,null,null,{"$f":"T35*R35","v":1500},null,null,null,null,null,null,{"$f":"RD!A20","v":"2020-01-28"},null,null,{"$f":"RD!E20","v":2001004},null,null,{"$f":"RD!M20","v":"ROY ENTERPRISES"},null,null,null,null,null,null,null,null,{"$f":"RD!AA20","v":20660.5}]
[null,null,"Office Supplies",null,null,null,null,null,null,null,null,null,null,null,null,null,null,null,null,null,null,null,null,null,null,null,null,null,null,{"$f":"RD!A21","v":"2018-02-10"},null,null,{"$f":"RD!E21","v":2001005},null,null,{"$f":"RD!M21","v":"SAVER DEPOT"},null,null,null,null,null,null,null,null,{"$f":"RD!AA21","v":10250}]
[null,null,null,"Bondpaper Long, Sub 20",null,null,null,null,null,null,null,null,null,null,null,"ream",null,20,null,159,null,null,{"$f":"T37*R37","v":3180},null,null,null,null,null,null,{"$f":"RD!A22","v":"2018-02-08"},null,null,{"$f":"RD!E22","v":2001006},null,null,{"$f":"RD!M22","v":"Duane & Dwight"},null,null,null,null,null,null,null,null,{"$f":"RD!AA22","v":5335}]
[null,null,null,"White board pen, (black, blue & red)",null,null,null,null,null,null,null,null,null,null,null,"pcs",null,10,null,35,null,null,{"$f":"T38*R38","v":350},null,null,null,null,null,null,{"$f":"RD!A23","v":"2018-02-10"},null,null,{"$f":"RD!E23","v":2001007},null,null,{"$f":"RD!M23","v":"Savers Depot"},null,null,null,null,null,null,null,null,{"$f":"RD!AA23","v":10328}]
[null,null,null,"Printer, CMYK",null,null,null,null,null,null,null,null,null,null,null,"unit",null,1,null,4995,null,null,{"$f":"T39*R39","v":4995},null,null,null,null,null,null,{"$f":"RD!A24","v":"2018-02-08"},null,null,{"$f":"RD!E24","v":2001008},null,null,{"$f":"RD!M24","v":"La Nueva Supermarket"},null,null,null,null,null,null,null,null,{"$f":"RD!AA24","v":3607.5}]
[null,null,null,null,null,null,null,null,null,null,null,null,null,null,null,null,null,null,null,null,null,null,{"$f":"T40*R40","v":0},null,null,null,null,null,null,{"$f":"RD!A25","v":"2018-02-10"},null,null,{"$f":"RD!E25","v":2001009},null,null,{"$f":"RD!M25","v":"Vannix Computers"},null,null,null,null,null,null,null,null,{"$f":"RD!AA25","v":4995}]
[null,null,null,null,null,null,null,null,null,null,null,null,null,null,null,null,null,null,null,null,null,null,{"$f":"T41*R41","v":0},null,null,null,null,null,null,{"$f":"RD!A26","v":"2018-02-25"},null,null,{"$f":"RD!E26","v":2001010},null,null,{"$f":"RD!M26","v":"Ko-Jack E. Ibaño"},null,null,null,null,null,null,null,null,{"$f":"RD!AA26","v":753}]
[null,null,null,null,null,null,null,null,null,null,null,null,null,null,null,null,null,null,null,null,null,null,{"$f":"T42*R42","v":0},null,null,null,null,null,null,{"$f":"RD!A27","v":"2018-02-11"},null,null,{"$f":"RD!E27","v":2001011},null,null,{"$f":"RD!M27","v":"Northern Septic Tank Services"},null,null,null,null,null,null,null,null,{"$f":"RD!AA27","v":27200}]
[null,null,null,null,null,null,null,null,null,null,null,null,null,null,null,null,null,null,null,null,null,null,0,null,null,null,null,null,null,{"$f":"RD!A28","v":"2018-02-11"},null,null,{"$f":"RD!E28","v":2001012},null,null,{"$f":"RD!M28","v":"Onecall Marketing"},null,null,null,null,null,null,null,null,{"$f":"RD!AA28","v":28380}]
[null,null,null,null,null,null,null,null,null,null,null,null,null,null,null,null,null,null,null,null,null,null,0,null,null,null,null,null,null,{"$f":"RD!A29","v":"2018-02-13"},null,null,{"$f":"RD!E29","v":2001013},null,null,{"$f":"RD!M29","v":"Jonathan D. Pioquinto"},null,null,null,null,null,null,null,null,{"$f":"RD!AA29","v":24750}]
[null,null,null,null,null,null,null,null,null,null,null,null,null,null,null,null,null,null,null,null,null,null,0]
[null,null,null,null,null,null,null,null,null,null,null,null,null,null,null,null,null,null,null,null,null,null,0,null,null,null,null,null,null,null,null,null,null,null,null,"TOTAL",null,null,null,null,null,null,null,null,{"$f":"SUM(AS32:AV45)","v":226681.05}]
[null,null,null,null,null,null,null,null,null,null,null,null,null,null,null,null,null,null,null,null,null,null,0]
[null,null,null,null,null,null,null,null,null,null,null,null,null,null,null,null,null,null,null,null,null,null,0]
[null,null,"Total Amount",null,null,null,null,null,null,null,null,null,null,null,null,null,null,null,null,"                                                                                                                                                                                                                                                                                                                                                                                                                                                                                                                                                                                                                                                                                                                                                                                                                                                                                                                                                                                                                                                                                                                                                                                                                                                                                                                                                                                                                                                                                                                                                                                                                                                                                          ",null,null,{"$f":"SUM(W31:Z48)","v":190466.005},null,null,null,null,null,null,"Thank you very much and more power."]
[]
[null,null,null,null,null,null,null,null,null,null,null,null,null,null,null,null,null,null," "]
["Approval Recommended:"]
[null,null,"Your approval on this request is highly appreciated.",null,null,null,null,null,null,null,null,null,null,null,null,null,null,null,null,null,null,null,null,null,null,null,null,null,null,null,null,null,null,null,null,null,null,null,null,null,null,null,null,"Very truly yours,"]
[null,null,null,null,null,null,null,null,null,null,null,null,null,null,null,null,null,"Very truly yours,"]
[null,null,"More power and God bless you.",null,null,null,null,null,null,null,null,null,null,null,null,null,null,null,null,null,null,null,null,null,null,null,null,null,null,null,null,null,null,null,null,null,null,null,null,null,null,null,null,null,null,null,{"$f":"U57","v":"SUSAN R. OBIEDO"}]
[null,null,null,null,null,null,null,null,null,null,null,null,null,null,null,null,null,null,null,null,null,null,null,null,null,null,null,null,null,null,null,null,null,null,null,null,null,null,null,null,null,null,null,null,null,"  Principal I"]
[null,null,null,null,null,null,null,null,null,null,null,null,null,null,null,null,null,null,null,null,"SUSAN R. OBIEDO"]
[null,null,null,null,null,null,null,null,null,null,null,null,null,null,null,null,null,null,null,"  Principal I"]
[null,null,null,"MADIELINE M. EPONDULAN",null,null,null,null,null,null,null,null,null,null,null,null,null,null,null,null,null,null,null,null,null,null,null,"Inspected by: (South District Internal Control Committee)"]
[null,null,null,"Administrative Officer V"]
[null,null,null,null,null,null,null,null,null,null,null,null,null,null,null,null,null,null,null,null,null,null,null,null,null,null,null,null,null,null,null,null,null,"VALENTINA A. ABING",null,null,null,null,null,null,null,"MA. MARIZA A. MAGLANGIT"]
[null,null,null,null,null,null,null,null,null,null,null,null,null,null,null,null,null,null,null,null,null,null,null,null,null,null,null,null,null,null,null,null,null,"Principal II",null,null,null,null,null,null,null,"PSDS-District 5&6"]
[null,null,null,null,null,null,null,null,"Approved:"]
[]
[null,null,null,null,null,null,null,null,null,null,null,null,null,"MARILYN S. ANDALES, Ed.D., CESO VI"]
[null,null,null,null,null,null,null,null,null,null,null,null,null," Schools Division Superintendent"]
[]
[]
[]
[]
[null,null,null,null,"Address: Marigondon, Lapu-Lapu City",null,null,null,null,null,null,null,null,null,null,null,null,null,null,null,null,null,null,null,null,null,null,null,null,null,null,"Address: Marigondon, Lapu-Lapu City"]
[null,null,null,null,"Telephone no: (32) 495-6265",null,null,null,null,null,null,null,null,null,null,null,null,null,null,null,null,null,null,null,null,null,null,null,null,null,null,"Telephone no: (32) 495-6265"]

{"sheet":"P","index":1,"n_rows":59,"n_cols":28,"rows_kept":59,"cut":false,"hidden":false,"merged":[[3,17,4,26],[2,25,2,26],[0,17,0,26],[34,8,34,13],[6,18,6,22],[5,26,6,26],[5,25,6,25],[5,24,6,24],[5,23,6,23],[5,17,5,22],[25,8,25,13],[7,19,7,22],[50,8,50,11],[49,8,49,11],[45,8,45,11],[44,8,44,11],[40,8,40,13],[58,0,58,1],[49,0,49,1],[50,0,50,1],[52,0,52,1],[56,0,56,1],[57,0,57,1],[53,0,53,1],[51,0,51,1],[55,0,55,1],[38,0,38,1],[39,0,39,1],[40,0,40,1],[41,0,41,1],[42,0,42,1],[43,0,43,1],[44,0,44,1],[47,0,47,1],[54,0,54,1],[45,0,45,1],[48,0,48,1],[46,0,46,1],[33,0,34,6],[37,0,37,1],[35,0,36,1],[35,2,36,2],[35,3,36,3],[35,4,36,4],[35,5,36,5],[35,6,36,6],[30,0,30,1],[30,2,31,6],[31,0,32,1],[32,2,32,6],[16,3,16,4],[17,3,17,4],[18,3,18,4],[21,0,23,0],[21,1,24,3],[21,6,24,6],[22,4,24,5],[25,0,25,1],[25,2,25,6],[26,0,29,1],[26,2,28,6],[29,2,29,3],[14,5,14,6],[4,0,4,6],[7,0,7,6],[8,0,8,6],[9,0,9,6],[12,0,12,6],[13,0,13,6],[11,0,11,6],[0,0,0,6],[1,0,1,6],[2,0,2,6],[3,0,3,6],[10,0,10,6],[5,0,5,6],[6,0,6,6]]}
[null,null,null,null,null,null,null,null,"(15) BREAKDOWN OF ESTIMATED EXPENDITURES",null,null,null,null,null,"% of Total","Amount",null,"BREAKDOWN OF MATERIALS"]
[null,null,null,null,null,null,null,null,"(15.1) ESTIMATED CONTRACT COST"]
[null,null,null,null,null,null,null,null,null,"A. Direct Cost",null,null,null,null,null,null,null,"Name and Location of Project",null,null,null,null,null,null,"Date Allotment:",{"$f":"P!B22","v":"2018-01-09"}]
[null,null,null,null,null,null,null,null,null,null,"1. Mobilization/Demobilization",null,null,null,null,null,null,{"$f":"A27","v":"I. Installation of Floodlight (Spotlight) in 5 buildings. II. Replacement of Tiles in SEF (Grade 4 Building). III.  Repair & Installation of additional CCTV.   "}]
[null,null,null,null,null,null,null,null,null,null,"2. Materials",null,null,null,{"$f":"P5/P26","v":0.72022638308523435},{"$f":"G40+G43+G46","v":64742.5}]
[{"$f":"Tran!A6","v":"Republic of the Philippines"},null,null,null,null,null,null,null,null,null,null,"2.1. Supply/Delivery",null,null,null,null,null,"ITEM",null,null,null,null,null,"Unit","Quantity","Estimated\nCost","Total Amount"]
[{"$f":"Tran!A7","v":"Department of Education"},null,null,null,null,null,null,null,null,null,null,"2.2. Testing of Materials",null,null,null,null,null,"No.","Description"]
["Region VII, Central Visayas",null,null,null,null,null,null,null,null,null,null,null,null,null,null,null,null,null,"I.","Electrical",null,null,null,null,null,null,{"$f":"SUM(AA9:AA18)","v":14952.5}]
["DIVISION OF LAPU-LAPU CITY",null,null,null,null,null,null,null,null,null,"3. Labor",null,null,null,{"$f":"P9/P26","v":0.27977361691476565},{"$f":"G51","v":25149.375},null,null,null,"Loomex wire, #12",null,null,null,"roll",1,2560,{"$f":"Y9*Z9","v":2560}]
["MARIGONDON ELEMENTARY SCHOOL",null,null,null,null,null,null,null,null,null,null,"3.1. Direct Labor",null,null,null,null,null,null,null,"Staple wire # 1,concrete",null,null,null,"box",4,45,180]
["Marigondon, Lapu-Lapu City",null,null,null,null,null,null,null,null,null,null,"3.2. Leaves",null,null,null,null,null,null,null,"Safety breaker, Surface type (15amp)",null,null,null,"pcs",5,387.5,1937.5]
["OFFICE OF THE PRINCIPAL",null,null,null,null,null,null,null,null,null,null,"3.3. SSS/GSIS",null,null,null,null,null,null,null,"Flood light, Led 30w",null,null,null,"set",3,1350,4050]
[null,null,null,null,null,null,null,null,null,null,null,"3.4. Medicare",null,null,null,null,null,null,null,"Flood light, Led 50w",null,null,null,"set",2,3000,6000]
["INDIVIDUAL PROJECT PROGRAM OF WORK",null,null,null,null,null,null,null,null,null,null,"3.5. State Insurance",null,null,null,null,null,null,null,"Electrical Tape, Big",null,null,null,"roll",5,45,225]
[null,null,null,null,"(1) Date","2018-01-09",null,null,null,null,null,null,null,null,null,null,null,null,null,null,null,null,null,null,null,null,0]
[null,null,null,null,null,null,null,null,null,null,"4. Equipment Expenses",null,null,null,null,null,null,null,null,null,null,null,null,null,null,null,0]
[null,null,"(2)Agency","DepEd",null,null,null,null,null,null,"5. Supervision",null,null,null,null,null,null,null,null,null,null,null,null,null,null,null,0]
[null,null,"(3) Region","VII",null,null,null,null,null,null,"6. Miscellaneous",null,null,null,null,null,null,null,null,null,null,null,null,null,null,null,{"$f":"Y18*Z18","v":0}]
[null,null,"(4) District/City","South District/LLC",null,null,null,null,null,null,null,null,null,null,null,null,null,null,"I.","Carpentry/Masonry",null,null,null,null,null,null,{"$f":"SUM(AA20:AA25)","v":23595}]
[null,null,null,null,null,null,null,null,null,"B. Indirect Cost",null,null,null,null,null,null,null,null,null,"Tiles, 60 x 60",null,null,null,"pcs",100,169,16900]
["(5) Name/Location of Project","(7) Source of Funds",null,null,"(8) Issued Obligated",null,"(9) Released",null,null,null,"1. Profit (10% to 15% of A1 to A6)",null,null,null,null,null,null,null,null,"Adhesive",null,null,null,"bag",15,235,3525]
["Repair and Maintenance",{"$f":"F15","v":"2018-01-09"},null,null,"     Authority",null,"CDO",null,null,null,"2. Tax (3% of A1 to B1)",null,null,null,null,null,null,null,null,"Cement",null,null,null,"bag",16,190,3040]
[null,null,null,null,null,null,null,null,null,null,null,"            0.9224",null,null,null,null,null,null,null,"Tile Grout",null,null,null,"bag",2,65,130]
[null,null,null,null,null,null,null,null,null,null,null,null,null,null,null,null,null,null,null,null,null,null,null,null,null,null,0]
["(6) Plan Set No.",null,null,null,null,null,null,null,null,null,null,null,null,null,null,null,null,null,null,null,null,null,null,null,null,null,0]
["(10) Project Description",null,"(11) Calendar Days to Complete",null,null,null,null,null,"SUB-TOTAL",null,null,null,null,null,1,{"$f":"SUM(P2:P25)","v":89891.875},null,null,"II.","Installation of CCTV Cameras",null,null,null,null,null,null,{"$f":"SUM(AA27:AA38)","v":26195}]
["I. Installation of Floodlight (Spotlight) in 5 buildings. II. Replacement of Tiles in SEF (Grade 4 Building). III.  Repair & Installation of additional CCTV.   ",null,10,null,null,null,null,null,"(15.2) II. ESTIMATED GOVERNMENT EXPENSES",null,null,null,null,null,null,null,null,null,null,"Coaxial Cable",null,null,null,"roll",1.5,8000,{"$f":"Y27*Z27","v":12000}]
[null,null,null,null,null,null,null,null,null,null,"1. ROW/ Site Acquisition",null,null,null,null,null,null,null,null,"DC Adapter 12v, 5A",null,null,null,"pcs",1,580,580]
[null,null,null,null,null,null,null,null,null,null,"2. Soil Exploration",null,null,null,null,null,null,null,null,"Camera",null,null,null,"pcs",5,1570,7850]
[null,null,"(13) Equipment to be used",null,null,null,null,null,null,null,"3. Project Management (Up tile grout 5% of ",null,null,null,null,null,null,null,null,"BNC Cable, 30m",null,null,null,"pcs",3,390,1170]
["(12) Technical Personnel Required",null,"Carpentry, Masonry & Electrical Tools",null,null,null,null,null,null,null,null,"Estimated Contract Cost)",null,null,null,null,null,null,null,"BNC, Adaptor, Male",null,null,null,"pcs",15,45,675]
["Carpenter/Painter/Electrician",null,null,null,null,null,null,null,null,null,null,null,null,null,null,null,null,null,null,"BNC, Adaptor, Female",null,null,null,"pcs",15,45,675]
[null,null,"IMPLEMENTATION PROCEDURE: ADM./CONTRACT",null,null,null,null,null,null,null,"4. Materials to be furnished by the Government",null,null,null,null,null,null,null,null,"BNC, Barrel",null,null,null,"pcs",15,35,{"$f":"Y33*Z33","v":525}]
["(14) Estimated Cost by Item of Work\n              (Materials and Labor Only)",null,null,null,null,null,null,null,null,null,null,null,null,null,null,null,null,null,null,"Coaxial cable, 20m",null,null,null,"roll",4,290,1160]
[null,null,null,null,null,null,null,null,"SUB-TOTAL",null,null,null,null,null,0,null,null,null,null,"Coaxial cable, 30m",null,null,null,"roll",4,390,1560]
["(14.1) \nScope of Work to be done Item",null,"(14.2)\n% of Total","(14.3)\nUnit","(14.4)\nQuantity","(14.5) \nUnit Price","(14.6) \nTotal Amount",null,"(15.3) III CONTINGENCIES",null,null,null,null,null,null,null,null,null,null,null,null,null,null,null,null,null,0]
[null,null,null,null,null,null,null,null,null,"A. PHYSICAL CONTINGENCIES (Up to 15% of the",null,null,null,null,null,null,null,null,null,null,null,null,null,null,null,null,0]
[null,null,null,null,null,null,null,null,null,null,null,"Estimated Contract Cost)",null,null,null,null,null,null,null,null,null,null,null,null,null,null,0]
[null,null,null,null,null,null,null,null,null,"B. PRICE CONTINGENCIES (Up to 10% of 15.I.A and 15.1B",null,null,null,null,null,null,null,null,"A. Sub-Total (Materials)",null,null,null,null,null,null,null,{"$f":"AA8+AA26+AA19","v":64742.5}]
[{"$f":"S8&\" \"&T8","v":"I. Electrical"},null,{"$f":"G40/$G$59","v":0.16633872638656164},null,null,null,{"$f":"AA8","v":14952.5}]
[null,null,null,null,null,null,null,null,"TOTAL ESTIMATED PROJECT COST",null,null,null,null,null,1,{"$f":"SUM(P5:P9)","v":89891.875},null,null,"III","Labor",null,{"$f":"AA41/AA39","v":0.38845233038575899},null,null,null,null,{"$f":"SUM(AA42:AA45)","v":25149.375},{"$f":"Tran!T49","v":"                                                                                                                                                                                                                                                                                                                                                                                                                                                                                                                                                                                                                                                                                                                                                                                                                                                                                                                                                                                                                                                                                                                                                                                                                                                                                                                                                                                                                                                                                                                                                                                                                                                                                          "}]
[null,null,null,null,null,null,null,null,null,null,null,null,null,null,null,null,null,null,null,{"$f":"S8&\" \"&T8","v":"I. Electrical"},null,null,null,null,null,null,{"$f":"AA8*0.35","v":5233.375}]
[{"$f":"S19&\" \"&T19","v":"I. Carpentry/Masonry"},null,{"$f":"G43/$G$59","v":0.26248200963657725},null,null,null,{"$f":"AA19","v":23595},null,"Prepared by:",null,null,null,"Checked by:",null,"Submitted by:",null,null,null,null,{"$f":"S19&\" \"&T19","v":"I. Carpentry/Masonry"},null,null,null,null,null,null,{"$f":"AA19*0.4","v":9438}]
[null,null,null,null,null,null,null,null,null,null,null,null,null,null,null,null,null,null,null,{"$f":"S26&\" \"&T26","v":"II. Installation of CCTV Cameras"},null,null,null,null,null,null,{"$f":"AA26*0.4","v":10478}]
[null,null,null,null,null,null,null,null,"ZIGMUND JESS J. CID",null,null,null,null,"JONAS Y. JACALAN",null,{"$f":"Tran!U57","v":"SUSAN R. OBIEDO"}]
[{"$f":"S26&\" \"&T26","v":"II. Installation of CCTV Cameras"},null,{"$f":"G46/$G$59","v":0.29140564706209543},null,null,null,{"$f":"AA26","v":26195},null,"Teacher I, Property Custodian",null,null,null,null,"ENGINNER - III",null,{"$f":"Tran!T58","v":"  Principal I"},null,null,"GRAND TOTAL",null,null,null,null,null,null,null,{"$f":"AA41+AA39","v":89891.875}]
[null,null,null,null,null,null,null,null,null,null,null,null,null,null,null,null,null,null,null,null,null,null,null,null,null,null,null,{"$f":"AB8*0.39","v":0}]
[null,null,null,null,null,null,null,null,"Approval Recommended:",null,null,null,"Approved:",null,"Date:",null,null,null,null,null,null,"Recommended by:",null,null,"Approved by:",null,null,{"$f":"AB24*0.4","v":0}]
[]
[null,null,null,null,null,null,null,null,{"$f":"N45","v":"JONAS Y. JACALAN"},null,null,null,null,"MARILYN S. ANDALES, Ed.D., CESO VI",null,"____________"]
[{"$f":"S41&\".  \"&T41","v":"III.  Labor"},null,{"$f":"G51/$G$59","v":0.27977361691476565},null,null,null,{"$f":"AA41","v":25149.375},null,{"$f":"N46","v":"ENGINNER - III"},null,null,null,null," Schools Division Superintendent",null,null,null,null,null,"ZIGMUND JESS J. CID",null,null,{"$f":"N45","v":"JONAS Y. JACALAN"},null,null,{"$f":"N50","v":"MARILYN S. ANDALES, Ed.D., CESO VI"}]
[null,null,null,null,null,null,null,null,null,null,null,null,null,null,null,null,null,null,null,"Teacher I, Property Custodian",null,null,{"$f":"N46","v":"ENGINNER - III"},null,null,{"$f":"N51","v":" Schools Division Superintendent"}]
[]
[]
[]
[]
[]
[]
["GRAND TOTAL",null,{"$f":"SUM(C38:C58)","v":0.99999999999999989},null,null,null,{"$f":"SUM(G39:G58)","v":89891.875}]

{"sheet":"CDR","index":2,"n_rows":44,"n_cols":18,"rows_kept":44,"cut":false,"hidden":false,"merged":[[39,0,39,3],[39,4,39,7],[39,8,39,12],[42,1,42,3],[40,0,40,3],[40,4,40,7],[42,4,42,7],[42,8,42,12],[40,8,40,12],[14,0,14,12],[18,0,20,0],[18,1,20,1],[18,2,20,2],[18,3,18,5],[18,6,18,12],[19,3,20,3],[19,4,20,4],[19,5,20,5],[19,6,20,6],[19,7,20,7],[19,8,20,8],[15,6,15,10],[19,9,20,9],[19,10,19,12],[5,0,5,12],[6,0,6,12],[7,0,7,12],[13,0,13,12],[8,0,8,12],[9,0,9,12],[10,0,10,12],[11,0,11,12],[12,0,12,12],[0,0,0,12],[1,0,1,12],[2,0,2,12],[3,0,3,12],[4,0,4,12]]}
[]
[]
[]
[]
[]
[{"$f":"Tran!A6","v":"Republic of the Philippines"}]
[{"$f":"Tran!A7","v":"Department of Education"}]
[{"$f":"Tran!A8","v":"Region VII, Central Visayas"}]
[{"$f":"Tran!A9","v":"DIVISION OF LAPU-LAPU CITY"}]
[{"$f":"Tran!A10","v":"MARIGONDON ELEMENTARY SCHOOL"}]
[{"$f":"Tran!A11","v":"Marigondon, Lapu-Lapu City"}]
[{"$f":"Tran!A12","v":"OFFICE OF THE PRINCIPAL"}]
[]
[]
["CASH DISBURSEMENT REGISTER"]
[null,null,null,null,null,"FOR THE PERIOD","JANUARY 2020"]
[]
[{"$f":"\"TYPE OF WORKING FUND: \"&G16","v":"TYPE OF WORKING FUND: JANUARY 2020"}]
["Date","Reference\n(OR/RER/\nCheck #)","Payee/\nParticulars","Cash Advance",null,null,"Breakdown of Payments"]
[null,null,null,"Amount \nReceived","Payments","Balance","Travel\nExpenses","Training\nExpenses","Office\nSupplies\nExpenses","Repair and \nMaintenance\nof School Building","Other Accounts"]
[null,null,null,null,null,null,null,null,null,null,"Account\nName","Acount\nCode","Amount"]
["[1]","[2]","[3]","[4]","[5]","[6]","[7]","[8]","[9]","[10]","[11]","[12]","[13]"]
[{"$f":"CheqDetail!C20","v":"2018-02-02"},null,"REBECCA P. TORING",150000,null,{"$f":"D23","v":150000},null,null,null,null,null,null,null,null,null,22033.99]
[{"$f":"RD!A17","v":"2018-02-06"},"3859851-52",{"$f":"RD!M17","v":"Mactan Electric Company (MECO)"},null,{"$f":"IF(RD!AA17=0,0,RD!AA17)","v":53422.049999999996},{"$f":"IF(E24=0,\"\",F23+D24-E24)","v":96577.950000000012},null,null,null,null,"Electricity",767,{"$f":"E24","v":53422.049999999996},null,null,12600]
[{"$f":"RD!A18","v":"2018-02-06"},150,{"$f":"RD!M18","v":"High Security Agency"},null,{"$f":"IF(RD!AA18=0,0,RD!AA18)","v":34000},62577.950000000012,null,null,null,null,"Security Services",797,{"$f":"E25","v":34000},null,null,2519.65]
[{"$f":"RD!A19","v":"2018-02-06"},"11287478144531-20",{"$f":"RD!M19","v":"Globe"},null,{"$f":"IF(RD!AA19=0,0,RD!AA19)","v":3000},59577.950000000012,null,null,null,null,"Telephone with Internet",774,{"$f":"E26","v":3000},null,null,4474]
[{"$f":"RD!A20","v":"2020-01-28"},202289,{"$f":"RD!M20","v":"ROY ENTERPRISES"},null,{"$f":"IF(RD!AA20=0,0,RD!AA20)","v":20660.5},38917.450000000012,null,null,null,null,"Fidelity Bond",892,{"$f":"E27","v":20660.5},null,null,4900]
[{"$f":"RD!A21","v":"2018-02-10"},173566,{"$f":"RD!M21","v":"SAVER DEPOT"},null,{"$f":"IF(RD!AA21=0,0,RD!AA21)","v":10250},28667.450000000012,null,null,null,{"$f":"E28","v":10250},null,null,null,null,null,1600]
[{"$f":"RD!A22","v":"2018-02-08"},12561,{"$f":"RD!M22","v":"Duane & Dwight"},null,{"$f":"IF(RD!AA22=0,0,RD!AA22)","v":5335},23332.450000000012,null,null,null,{"$f":"E29","v":5335}]
[{"$f":"RD!A23","v":"2018-02-10"},60699,{"$f":"RD!M23","v":"Savers Depot"},null,{"$f":"IF(RD!AA23=0,0,RD!AA23)","v":10328},13004.450000000012,null,null,null,{"$f":"E30","v":10328}]
[{"$f":"RD!A24","v":"2018-02-08"},1239659,{"$f":"RD!M24","v":"La Nueva Supermarket"},null,{"$f":"IF(RD!AA24=0,0,RD!AA24)","v":3607.5},9396.9500000000116,null,null,{"$f":"E31","v":3607.5}]
[{"$f":"RD!A25","v":"2018-02-10"},2126,{"$f":"RD!M25","v":"Vannix Computers"},null,{"$f":"IF(RD!AA25=0,0,RD!AA25)","v":4995},4401.9500000000116,null,null,{"$f":"E32","v":4995}]
[{"$f":"RD!A26","v":"2018-02-25"},null,{"$f":"RD!M26","v":"Ko-Jack E. Ibaño"},null,{"$f":"IF(RD!AA26=0,0,RD!AA26)","v":753},3648.9500000000116,{"$f":"E33","v":753},null,null,null,null,null,null,null,null,1540]
[{"$f":"RD!A27","v":"2018-02-11"},4162,{"$f":"RD!M27","v":"Northern Septic Tank Services"},null,{"$f":"IF(RD!AA27=0,0,RD!AA27)","v":27200},-23551.049999999988,null,null,null,{"$f":"E34","v":27200},null,null,null,null,null,{"$f":"SUM(P23:P33)","v":49667.640000000007}]
[{"$f":"RD!A28","v":"2018-02-11"},null,{"$f":"RD!M28","v":"Onecall Marketing"},null,{"$f":"IF(RD!AA28=0,0,RD!AA28)","v":28380},-51931.049999999988,null,null,null,{"$f":"E35","v":28380},null,null,null,null,null,null,null,1601015]
[{"$f":"RD!A29","v":"2018-02-13"},null,{"$f":"RD!M29","v":"Jonathan D. Pioquinto"},null,{"$f":"IF(RD!AA29=0,0,RD!AA29)","v":24750},-76681.049999999988,null,null,null,{"$f":"E36","v":24750}]
[null,null,"Total",{"$f":"SUM(D23:D36)","v":150000},{"$f":"SUM(E23:E36)","v":226681.05},{"$f":"D37-E37","v":-76681.049999999988},{"$f":"SUM(G23:G36)","v":753},{"$f":"SUM(H23:H36)","v":0},{"$f":"SUM(I23:I36)","v":8602.5},{"$f":"SUM(J23:J36)","v":106243},null,null,{"$f":"SUM(M24:M36)","v":111082.54999999999},null,null,null,100]
["Certified Correct",null,null,null,"Certified: Supporting Documents Complete",null,null,null,null,null,null,null,null,null,null,null,25]
[null,null,null,null,null,null,null,null,null,null,null,null,null,null,null,null,80]
["REBECCA P. TORING",null,null,null,"MA. GLACEL L. TISOY",null,null,null,"MARILYN S. ANDALES, Ed.D., CESO VI",null,null,null,null,null,null,null,38.5]
["Principal I",null,null,null,"Accountant III",null,null,null,"Schools Division Superintendent",null,null,null,null,null,null,null,45]
[null,null,null,null," ",null,null,null,null,null,null,null,null,null,null,null,52]
["Date","2018-02-10",null,null,"Date",null,null,null,"Date",null,null,null,null,null,null,null,{"$f":"SUM(Q37:Q42)","v":340.5}]
[null,null,null,null,null,null,null,null,null,null,null,null,null,null,null,null,{"$f":"#REF!-Q43","v":{"$error":"#REF!"}}]

{"sheet":"RD","index":3,"n_rows":38,"n_cols":36,"rows_kept":38,"cut":false,"hidden":false,"merged":[[17,8,17,11],[16,26,16,31],[16,19,16,25],[17,19,17,25],[20,19,20,25],[22,19,22,25],[23,19,23,25],[20,26,20,31],[21,26,21,31],[22,26,22,31],[23,26,23,31],[20,8,20,11],[21,8,21,11],[22,8,22,11],[23,8,23,11],[20,12,20,18],[21,12,21,18],[22,12,22,18],[23,12,23,18],[7,0,7,31],[15,0,15,3],[18,4,18,7],[18,8,18,11],[18,12,18,18],[17,0,17,3],[16,0,16,3],[16,4,16,7],[16,8,16,11],[16,12,16,18],[17,12,17,18],[8,0,8,31],[9,0,9,31],[11,0,11,31],[12,27,12,31],[13,4,13,11],[13,27,13,31],[15,26,15,31],[17,26,17,31],[15,4,15,7],[15,8,15,11],[15,12,15,18],[15,19,15,25],[17,4,17,7],[27,12,27,18],[27,19,27,25],[27,26,27,31],[28,0,28,3],[28,4,28,7],[28,8,28,11],[28,12,28,18],[28,19,28,25],[19,0,19,3],[19,4,19,7],[19,8,19,11],[24,0,24,3],[24,4,24,7],[24,8,24,11],[24,12,24,18],[19,12,19,18],[19,19,19,25],[19,26,19,31],[24,19,24,25],[24,26,24,31],[20,0,20,3],[21,0,21,3],[22,0,22,3],[23,0,23,3],[37,26,37,31],[26,26,26,31],[34,22,34,28],[36,18,36,24],[33,2,33,21],[33,22,33,28],[29,0,29,3],[29,4,29,7],[29,8,29,11],[29,12,29,18],[26,0,26,3],[34,6,34,10],[28,26,28,31],[27,0,27,3],[27,4,27,7],[27,8,27,11],[34,2,34,5],[34,11,34,14],[34,15,34,19],[29,19,29,25],[30,0,30,31],[29,26,29,31],[32,15,32,17],[26,8,26,11],[0,0,0,31],[1,0,1,31],[2,0,2,31],[5,0,5,31],[25,4,25,7],[25,8,25,11],[25,12,25,18],[26,4,26,7],[25,26,25,31],[26,19,26,25],[25,19,25,25],[25,0,25,3],[26,12,26,18],[18,26,18,31],[18,0,18,3],[18,19,18,25],[20,4,20,7],[21,4,21,7],[22,4,22,7],[23,4,23,7],[21,19,21,25],[3,0,3,31],[4,0,4,31],[6,0,6,31]]}
[]
[]
[]
[]
[]
[{"$f":"Tran!A6","v":"Republic of the Philippines"}]
[{"$f":"Tran!A7","v":"Department of Education"}]
[{"$f":"Tran!A8","v":"Region VII, Central Visayas"}]
[{"$f":"Tran!A9","v":"DIVISION OF LAPU-LAPU CITY"}]
[{"$f":"Tran!A10","v":"MARIGONDON ELEMENTARY SCHOOL"}]
[]
["REPORT OF DISBURSEMENT"]
[null,null,null,null,null,null,null,null,null,null,null,null,null,null,null,null,null,null,null,null,null,null,null,null,"Report No.:",null,null,{"$f":"E17","v":2001001}]
["Period Covered: ",null,null,null,{"$f":"PODate1","v":"2020-01-27"},null,null,null,null,null,null,null,null,null,null,null,null,null,null,null,null,null,null,null,"Sheet No.:",null,null,1]
[]
["Date",null,null,null,"DV/Payroll\nNo.",null,null,null,"Responsibility\nCenter Code",null,null,null,"Payee",null,null,null,null,null,null,"Nature of Payment",null,null,null,null,null,null,"Amount"]
[{"$f":"IF(M17=0,\"\",DVDate1)","v":"2018-02-06"},null,null,null,{"$f":"IF(M17=0,\"\",DVNo1)","v":2001001},null,null,null,null,null,null,null,{"$f":"DV_1","v":"Mactan Electric Company (MECO)"},null,null,null,null,null,null,{"$f":"IF(M17=0,\"\",\"CASH\")","v":"CASH"},null,null,null,null,null,null,{"$f":"DVAmount1","v":53422.049999999996},null,null,null,null,null,null,null,{"$f":"AA21","v":10250}]
[{"$f":"IF(M18=0,\"\",DVDate2)","v":"2018-02-06"},null,null,null,{"$f":"IF(M18=0,\"\",E17+1)","v":2001002},null,null,null,null,null,null,null,{"$f":"DV_2","v":"High Security Agency"},null,null,null,null,null,null,"CASH",null,null,null,null,null,null,{"$f":"DVAmount2","v":34000},null,null,null,null,null,null,null,{"$f":"AA22","v":5335}]
[{"$f":"IF(M19=0,\"\",DVDate3)","v":"2018-02-06"},null,null,null,{"$f":"IF(M19=0,\"\",E18+1)","v":2001003},null,null,null,null,null,null,null,{"$f":"DV_3","v":"Globe"},null,null,null,null,null,null,"CASH",null,null,null,null,null,null,{"$f":"DVAmount3","v":3000},null,null,null,null,null,null,null,{"$f":"AA23","v":10328}]
[{"$f":"IF(M20=0,\"\",DVDate4)","v":"2020-01-28"},null,null,null,2001004,null,null,null,null,null,null,null,{"$f":"DV_4","v":"ROY ENTERPRISES"},null,null,null,null,null,null,"CASH",null,null,null,null,null,null,{"$f":"DVAmount4","v":20660.5},null,null,null,null,null,null,null,{"$f":"AA28","v":28380}]
[{"$f":"IF(M21=0,\"\",DVDate5)","v":"2018-02-10"},null,null,null,2001005,null,null,null,null,null,null,null,{"$f":"DV_5","v":"SAVER DEPOT"},null,null,null,null,null,null,{"$f":"IF(M21=0,\"\",\"CASH\")","v":"CASH"},null,null,null,null,null,null,{"$f":"DVAmount5","v":10250},null,null,null,null,null,null,null,{"$f":"SUM(AI17:AI20)","v":54293},{"$f":"AI21*0.4","v":21717.200000000001}]
[{"$f":"IF(M22=0,\"\",DVDate6)","v":"2018-02-08"},null,null,null,2001006,null,null,null,null,null,null,null,{"$f":"DV_6","v":"Duane & Dwight"},null,null,null,null,null,null,"CASH",null,null,null,null,null,null,{"$f":"DVAmount6","v":5335}]
[{"$f":"IF(M23=0,\"\",DVDate7)","v":"2018-02-10"},null,null,null,2001007,null,null,null,null,null,null,null,{"$f":"DV_7","v":"Savers Depot"},null,null,null,null,null,null,"CASH",null,null,null,null,null,null,{"$f":"DVAmount7","v":10328}]
[{"$f":"IF(M24=0,\"\",DVDate8)","v":"2018-02-08"},null,null,null,2001008,null,null,null,null,null,null,null,{"$f":"DV_8","v":"La Nueva Supermarket"},null,null,null,null,null,null,"CASH",null,null,null,null,null,null,{"$f":"DVAmount8","v":3607.5}]
[{"$f":"IF(M25=0,\"\",DVDate9)","v":"2018-02-10"},null,null,null,2001009,null,null,null,null,null,null,null,{"$f":"DV_9","v":"Vannix Computers"},null,null,null,null,null,null,"CASH",null,null,null,null,null,null,{"$f":"DVAmount9","v":4995},null,null,null,null,null,null,null,null,{"$f":"AI20*0.4","v":11352}]
[{"$f":"IF(M26=0,\"\",DVDate10)","v":"2018-02-25"},null,null,null,2001010,null,null,null,null,null,null,null,{"$f":"DV_10","v":"Ko-Jack E. Ibaño"},null,null,null,null,null,null,"CASH",null,null,null,null,null,null,{"$f":"DVAmount10","v":753}]
[{"$f":"IF(M27=0,\"\",DVDate11)","v":"2018-02-11"},null,null,null,2001011,null,null,null,null,null,null,null,{"$f":"DV_11","v":"Northern Septic Tank Services"},null,null,null,null,null,null,"CASH",null,null,null,null,null,null,{"$f":"DVAmount11","v":27200}]
[{"$f":"IF(M28=0,\"\",DVDate12)","v":"2018-02-11"},null,null,null,2001012,null,null,null,null,null,null,null,{"$f":"DV_12","v":"Onecall Marketing"},null,null,null,null,null,null,{"$f":"IF(M28=0,\"\",\"CASH\")","v":"CASH"},null,null,null,null,null,null,{"$f":"DVAmount12","v":28380},null,null,null,null,null,null,null,{"$f":"AA28-175.03","v":28204.97}]
["2018-02-13",null,null,null,2001013,null,null,null,null,null,null,null,{"$f":"DV_13","v":"Jonathan D. Pioquinto"},null,null,null,null,null,null,{"$f":"IF(M29=0,\"\",\"CASH\")","v":"CASH"},null,null,null,null,null,null,{"$f":"'P1'!N30","v":24750}]
[null,null,null,null,null,null,null,null,null,null,null,null,null,null,null,null,null,null,null,"Total",null,null,null,null,null,null,{"$f":"SUM(AA17:AF29)","v":226681.05}]
["CERTIFICATION"]
[]
[null,null,"                I hereby certify that this Report of Disbursement in",null,null,null,null,null,null,null,null,null,null,null,null,1,null,null," sheet is a full, true and correct statement of the"]
[null,null,"disbursements made by me and that this is in liquidation of the cash advance granted last",null,null,null,null,null,null,null,null,null,null,null,null,null,null,null,null,null,null,null,{"$f":"CheqDetail!C12","v":"2018-01-31"},null,null,null,null,null,null,null,null,null,null,{"$f":"217666-AA30","v":-9015.0499999999884}]
[null,null,"in the amount of ",null,null,null,{"$f":"CheqDetail!C13","v":217666},null,null,null,null,"per check no.",null,null,null,{"$f":"CheqDetail!C11","v":123516},null,null,null,null,"dated",null,{"$f":"W34","v":"2018-01-31"}]
[]
[null,null,null,null,null,null,null,null,null,null,{"$f":"'7DV'!D46","v":"KO-JACK E. IBAÑO"},null,null,null,null,null,null,null,{"$f":"CDR!B43","v":"2018-02-10"}]
[null,null,null,null,null,null,null,null,null,null,{"$f":"'7DV'!D47","v":"Teacher III, School Bookkeeper-Designate"},null,null,null,null,null,null,null,null,null,null,"Date",null,null,null,null,{"$f":"G35-AA30","v":-9015.0499999999884}]

{"sheet":"Form2","index":4,"n_rows":29,"n_cols":38,"rows_kept":29,"cut":false,"hidden":true,"merged":[[17,25,17,28],[17,29,17,32],[27,18,27,32],[28,18,28,32],[18,17,18,18],[18,19,18,20],[18,21,18,22],[18,23,18,24],[18,25,18,28],[18,29,18,32],[17,17,17,18],[17,19,17,20],[17,21,17,22],[17,23,17,24],[18,1,18,7],[18,8,18,10],[18,11,18,12],[18,13,18,14],[18,15,18,16],[17,1,17,7],[17,8,17,10],[17,11,17,12],[17,13,17,14],[17,15,17,16],[16,29,16,32],[15,19,15,20],[15,21,15,22],[15,23,15,24],[15,25,15,28],[15,29,15,32],[16,19,16,20],[16,21,16,22],[16,23,16,24],[16,8,16,10],[16,11,16,12],[16,13,16,14],[16,15,16,16],[16,25,16,28],[16,17,16,18],[13,0,15,0],[13,1,14,7],[13,8,14,10],[13,11,13,16],[13,17,13,24],[14,11,14,12],[15,17,15,18],[14,13,14,14],[14,15,14,16],[14,17,14,18],[14,19,14,20],[15,1,15,7],[15,8,15,10],[15,11,15,12],[15,13,15,14],[15,15,15,16],[26,1,26,16],[27,1,27,16],[28,1,28,16],[8,3,8,13],[8,28,8,32],[9,3,9,13],[9,28,9,32],[10,3,10,13],[10,28,10,32],[14,21,14,22],[14,23,14,24],[11,3,11,13],[11,28,11,32],[13,25,14,28],[13,29,14,32],[16,1,16,7]]}
[null,null,null,null,null,null,null,null,null,null,null,null,null,null,null,null,"Republic of the Philippines"]
[null,null,null,null,null,null,null,null,null,null,null,null,null,null,null,null,"Department of Education"]
[null,null,null,null,null,null,null,null,null,null,null,null,null,null,null,null,"SOCIAL EXPENDITURE MANAGEMENT PROJECT"]
[]
[null,null,null,null,null,null,null,null,null,null,null,null,null,null,null,null,"Form 2"]
[null,null,null,null,null,null,null,null,null,null,null,null,null,null,null,null,"School Liquidation Report"]
[null,null,null,null,null,null,null,null,null,null,null,null,null,null,null,null,"Period Covered: School Year 2019-2020"]
[]
["School",null,null,"Marigondon Elementary School",null,null,null,null,null,null,null,null,null,null,null,null,null,null,null,null,null,null,null,null,null,null,null,"Date:","2017-02-14"]
["School Address",null,null,"Marigondon, Lapu-Lapu City",null,null,null,null,null,null,null,null,null,null,null,null,null,null,null,null,null,null,null,null,null,null,null,"MOOE Cash Advance:",{"$f":"CheqDetail!C13","v":217666}]
["Division",null,null,"Lapu-Lapu City",null,null,null,null,null,null,null,null,null,null,null,null,null,null,null,null,null,null,null,null,null,null,null,"Check No.:",{"$f":"CheqDetail!C11","v":123516}]
["District",null,null,"South District",null,null,null,null,null,null,null,null,null,null,null,null,null,null,null,null,null,null,null,null,null,null,null,"Date of Check:",{"$f":"CheqDetail!C12","v":"2018-01-31"}]
[]
["No","Description of Work",null,null,null,null,null,null,"Estimated Cost",null,null,"ACTUAL SCHEDULE",null,null,null,null,null,"ACTUAL COST (PESOS)",null,null,null,null,null,null,null,"Remarks",null,null,null,"Supporting Documents Attached"]
[null,null,null,null,null,null,null,null,null,null,null,"Date Started",null,"Date Completed",null,"No. of Days",null,"Materials",null,"Contract",null,"Labor",null,"Total"]
[null,"(1)",null,null,null,null,null,null,"(2)",null,null,"(3)",null,"(4)",null,"(5)",null,"(6)",null,"(7)",null,"(8)",null,"(6+7+8=9)",null,"(11)",null,null,null,"(12)"]
[1,{"$f":"P!R4","v":"I. Installation of Floodlight (Spotlight) in 5 buildings. II. Replacement of Tiles in SEF (Grade 4 Building). III.  Repair & Installation of additional CCTV.   "},null,null,null,null,null,null,{"$f":"P!AA46","v":89891.875},null,null,{"$f":"'P1'!F10","v":"2018-02-10"},null,{"$f":"'P1'!G10","v":"2018-02-23"},null,15,null,{"$f":"RD!AI21","v":54293},null,null,null,{"$f":"'P1'!N30","v":24750},null,{"$f":"SUM(R17:W17)","v":79043},null,null,null,null,null,"Receipts and Payroll"]
[2,null,null,null,null,null,null,null,null,null,null,null,null,null,null,null,null,null,null,null,null,null,null,null,null,null,null,null,null,null,null,null,null,null,null,null,null,34000]
[3,null,null,null,null,null,null,null,null,null,null,null,null,null,null,null,null,null,null,null,null,null,null,null,null,null,null,null,null,null,null,null,null,null,null,null,null,41290.89]
["Prepared by:",null,null,null,null,null,null,null,null,null,null,null,"CETIFIED TRUE AND CORRECT:",null,null,null,null,null,null,null,null,null,null,null,null,null,null,null,null,null,null,null,null,null,null,null,null,3000]
[null,null,null,null,null,null,null,null,null,null,null,null,null,null,null,null,null,null,null,null,null,null,null,null,null,null,null,null,null,null,null,null,null,null,null,null,88484.25,78290.89]
[null,null,null,null,null,{"$f":"'1PR'!C40","v":"EVELYN S. ONGCO"},null,null,null,null,null,null,null,null,null,null,"CHONA A. OBREGON",null,null,null,null,null,null,null,null,null,"REBECCA P. TORING"]
[null,null,null,null,null,{"$f":"'1PR'!C41","v":"Teacher IIII, Property Custodian"},null,null,null,null,null,null,null,null,null,null,"Master Teacher II",null,null,null,null,null,null,null,null,null,"Principal I"]
[]
["TO BE FILLED UP BY PFSED/SEMP-PMO",null,null,null,null,null,null,null,null,null,null,null,null,null,null,null,null,null,null,"INSPECTED BY:"]
["FINDINGS:"]
[]
[null,null,null,null,null,null,null,null,null,null,null,null,null,null,null,null,null,null,"GERMINIANO A. ENECUELA"]
[null,null,null,null,null,null,null,null,null,null,null,null,null,null,null,null,null,null,"Education Supervisor I, TLE and Physical Facilities Coordinator"]

{"sheet":"7DV","index":5,"n_rows":55,"n_cols":215,"rows_kept":55,"cut":false,"hidden":false,"merged":[[7,54,7,66],[8,54,8,66],[7,41,7,53],[8,41,8,53],[7,27,7,39],[8,27,8,39],[7,190,7,202],[8,190,8,202],[7,177,7,189],[8,177,8,189],[7,164,7,176],[8,164,8,176],[7,151,7,163],[8,151,8,163],[7,137,7,149],[8,137,8,149],[7,123,7,135],[8,123,8,135],[7,109,7,121],[8,109,8,121],[7,96,7,108],[8,96,8,108],[7,82,7,94],[8,82,8,94],[39,148,39,149],[47,160,47,162],[50,117,50,120],[50,131,50,134],[50,145,50,148],[50,159,50,162],[51,117,51,120],[51,131,51,134],[51,145,51,148],[51,159,51,162],[34,162,34,163],[46,158,46,163],[35,160,35,161],[35,162,35,163],[36,160,36,161],[36,162,36,163],[37,151,38,159],[37,160,37,161],[37,162,37,163],[38,160,38,161],[38,162,38,163],[35,132,35,133],[35,134,35,135],[35,146,35,147],[35,148,35,149],[48,123,48,129],[48,137,48,143],[48,151,48,157],[47,125,47,127],[47,132,47,134],[36,132,36,133],[36,134,36,135],[36,146,36,147],[36,148,36,149],[38,134,38,135],[38,146,38,147],[38,148,38,149],[39,160,39,161],[39,162,39,163],[45,130,45,135],[45,144,45,149],[45,158,45,163],[52,111,52,113],[52,125,52,127],[52,139,52,141],[52,153,52,155],[47,146,47,148],[47,153,47,155],[47,139,47,141],[39,151,39,159],[37,123,38,131],[37,132,37,133],[39,109,39,117],[39,118,39,119],[39,120,39,121],[39,123,39,131],[39,132,39,133],[38,118,38,119],[38,120,38,121],[38,132,38,133],[46,116,46,121],[46,130,46,135],[46,144,46,149],[37,134,37,135],[37,137,38,145],[37,146,37,147],[37,148,37,149],[48,109,48,115],[47,111,47,113],[47,118,47,120],[45,116,45,121],[39,134,39,135],[39,137,39,145],[39,146,39,147],[30,160,30,161],[30,162,30,163],[31,118,31,119],[34,118,34,119],[31,120,31,121],[31,132,31,133],[31,134,31,135],[31,146,31,147],[31,148,31,149],[31,160,31,161],[31,162,31,163],[32,118,32,119],[33,118,33,119],[32,120,32,121],[32,132,32,133],[32,134,32,135],[32,146,32,147],[32,148,32,149],[32,160,32,161],[32,162,32,163],[33,132,33,133],[33,134,33,135],[33,146,33,147],[33,148,33,149],[33,160,33,161],[33,162,33,163],[34,120,34,121],[34,132,34,133],[34,134,34,135],[34,146,34,147],[34,148,34,149],[34,160,34,161],[29,160,29,161],[29,162,29,163],[28,160,28,161],[28,162,28,163],[28,132,28,133],[28,134,28,135],[28,146,28,147],[28,118,28,119],[28,120,28,121],[27,160,27,161],[27,162,27,163],[26,118,26,119],[26,120,26,121],[26,132,26,133],[26,134,26,135],[26,146,26,147],[26,148,26,149],[26,160,26,161],[26,162,26,163],[27,118,27,119],[27,120,27,121],[24,160,24,161],[24,162,24,163],[25,118,25,119],[25,120,25,121],[25,132,25,133],[25,134,25,135],[23,118,23,119],[23,120,23,121],[23,132,23,133],[23,134,23,135],[23,146,23,147],[23,148,23,149],[25,146,25,147],[25,148,25,149],[23,160,23,161],[23,162,23,163],[25,160,25,161],[25,162,25,163],[24,118,24,119],[24,120,24,121],[24,132,24,133],[21,162,21,163],[22,118,22,119],[22,120,22,121],[22,132,22,133],[22,134,22,135],[22,146,22,147],[22,148,22,149],[22,160,22,161],[22,162,22,163],[19,151,22,159],[21,118,21,119],[21,120,21,121],[21,132,21,133],[21,134,21,135],[21,148,21,149],[19,162,19,163],[20,118,20,119],[20,120,20,121],[20,162,20,163],[19,123,22,131],[19,132,19,133],[19,134,19,135],[19,137,22,145],[19,148,19,149],[17,151,17,159],[17,160,17,161],[17,162,17,163],[18,118,18,119],[18,120,18,121],[18,132,18,133],[18,134,18,135],[18,146,18,147],[18,148,18,149],[18,160,18,161],[18,162,18,163],[17,118,17,119],[17,120,17,121],[17,123,17,131],[17,132,17,133],[17,134,17,135],[17,137,17,145],[17,146,17,147],[17,148,17,149],[15,151,15,156],[15,157,15,163],[16,109,16,114],[16,115,16,118],[16,119,16,121],[16,123,16,128],[16,129,16,132],[16,133,16,135],[16,137,16,142],[16,143,16,146],[16,147,16,149],[16,151,16,156],[16,157,16,160],[16,161,16,163],[15,109,15,114],[15,115,15,121],[14,109,14,114],[14,115,14,118],[14,119,14,121],[15,123,15,128],[15,129,15,135],[15,137,15,142],[15,143,15,149],[12,132,12,135],[14,151,14,156],[14,157,14,160],[14,161,14,163],[13,109,13,114],[13,115,13,118],[13,119,13,121],[13,123,13,128],[13,129,13,132],[13,133,13,135],[13,137,13,142],[13,143,13,146],[13,147,13,149],[13,151,13,156],[14,123,14,128],[14,129,14,132],[14,133,14,135],[14,137,14,142],[14,143,14,146],[14,147,14,149],[33,91,33,92],[6,137,6,149],[6,151,6,163],[0,109,0,121],[0,123,0,135],[0,137,0,149],[0,151,0,163],[1,109,1,121],[1,123,1,135],[1,137,1,149],[1,151,1,163],[2,109,2,121],[2,123,2,135],[2,137,2,149],[2,151,2,163],[13,157,13,160],[13,161,13,163],[10,151,10,163],[11,151,11,158],[11,160,11,163],[10,123,10,135],[10,137,10,149],[11,109,11,116],[11,118,11,121],[11,123,11,130],[11,132,11,135],[11,137,11,144],[11,146,11,149],[10,109,10,121],[12,109,12,116],[12,118,12,121],[12,123,12,130],[48,68,48,74],[12,137,12,144],[12,146,12,149],[12,151,12,158],[12,160,12,163],[36,107,36,108],[46,89,46,94],[46,103,46,108],[47,105,47,107],[36,63,36,64],[33,63,33,64],[3,109,3,121],[3,123,3,135],[3,137,3,149],[3,151,3,163],[9,109,9,121],[9,123,9,135],[9,137,9,149],[9,151,9,163],[4,109,4,121],[4,123,4,135],[4,137,4,149],[4,151,4,163],[5,109,5,121],[5,123,5,135],[5,137,5,149],[5,151,5,163],[6,109,6,121],[6,123,6,135],[38,107,38,108],[33,77,33,78],[33,79,33,80],[30,107,30,108],[50,104,50,107],[52,56,52,58],[52,70,52,72],[52,84,52,86],[52,98,52,100],[51,104,51,107],[39,54,39,62],[39,63,39,64],[39,65,39,66],[39,68,39,76],[39,77,39,78],[39,79,39,80],[39,82,39,90],[39,91,39,92],[39,93,39,94],[39,96,39,104],[39,105,39,106],[39,107,39,108],[45,61,45,66],[45,75,45,80],[45,89,45,94],[45,103,45,108],[51,62,51,65],[51,76,51,79],[51,90,51,93],[48,82,48,88],[48,96,48,102],[50,62,50,65],[50,76,50,79],[50,90,50,93],[48,54,48,60],[37,109,38,117],[37,118,37,119],[37,120,37,121],[19,109,22,117],[19,118,19,119],[19,120,19,121],[17,109,17,117],[24,134,24,135],[24,146,24,147],[24,148,24,149],[28,148,28,149],[20,132,20,133],[20,134,20,135],[20,148,20,149],[29,118,29,119],[29,120,29,121],[29,132,29,133],[29,134,29,135],[29,146,29,147],[29,148,29,149],[27,132,27,133],[27,134,27,135],[27,146,27,147],[27,148,27,149],[30,132,30,133],[30,134,30,135],[30,146,30,147],[30,148,30,149],[35,118,35,119],[35,120,35,121],[36,118,36,119],[36,120,36,121],[32,105,32,106],[26,105,26,106],[30,77,30,78],[30,118,30,119],[30,120,30,121],[37,96,38,104],[37,107,37,108],[38,63,38,64],[38,65,38,66],[38,77,38,78],[38,79,38,80],[38,91,38,92],[36,65,36,66],[36,77,36,78],[36,79,36,80],[36,91,36,92],[36,93,36,94],[37,91,37,92],[37,93,37,94],[35,65,35,66],[34,107,34,108],[35,91,35,92],[35,93,35,94],[35,105,35,106],[34,105,34,106],[37,63,37,64],[37,65,37,66],[37,68,38,76],[37,77,37,78],[37,79,37,80],[37,82,38,90],[33,120,33,121],[46,75,46,80],[47,56,47,58],[47,63,47,65],[47,70,47,72],[47,77,47,79],[47,84,47,86],[47,91,47,93],[47,98,47,100],[37,105,37,106],[36,105,36,106],[46,61,46,66],[37,54,38,62],[35,63,35,64],[33,65,33,66],[25,105,25,106],[27,65,27,66],[27,77,27,78],[27,79,27,80],[30,105,30,106],[27,63,27,64],[28,102,28,103],[28,100,28,101],[29,63,29,64],[29,65,29,66],[29,77,29,78],[29,79,29,80],[29,91,29,92],[29,93,29,94],[28,63,28,64],[28,65,28,66],[38,105,38,106],[38,93,38,94],[35,107,35,108],[31,63,31,64],[31,65,31,66],[31,77,31,78],[31,79,31,80],[31,91,31,92],[31,93,31,94],[31,105,31,106],[26,79,26,80],[29,105,29,106],[31,107,31,108],[32,63,32,64],[32,65,32,66],[32,77,32,78],[32,79,32,80],[29,107,29,108],[30,63,30,64],[30,65,30,66],[32,107,32,108],[33,107,33,108],[34,65,34,66],[34,63,34,64],[34,77,34,78],[34,79,34,80],[34,91,34,92],[34,93,34,94],[35,77,35,78],[35,79,35,80],[33,93,33,94],[33,105,33,106],[32,91,32,92],[32,93,32,94],[28,79,28,80],[28,91,28,92],[28,77,28,78],[28,107,28,108],[28,93,28,94],[28,105,28,106],[27,91,27,92],[27,93,27,94],[25,91,25,92],[25,93,25,94],[26,107,26,108],[24,107,24,108],[23,93,23,94],[23,105,23,106],[25,63,25,64],[25,65,25,66],[26,63,26,64],[26,65,26,66],[26,77,26,78],[25,77,25,78],[25,79,25,80],[25,107,25,108],[24,93,24,94],[24,105,24,106],[22,107,22,108],[21,63,21,64],[21,77,21,78],[21,79,21,80],[20,79,20,80],[19,93,19,94],[19,96,22,104],[22,77,22,78],[21,93,21,94],[22,63,22,64],[22,65,22,66],[21,65,21,66],[18,79,18,80],[18,91,18,92],[23,107,23,108],[30,79,30,80],[30,91,30,92],[30,93,30,94],[27,105,27,106],[27,107,27,108],[26,91,26,92],[26,93,26,94],[23,63,23,64],[23,65,23,66],[23,77,23,78],[23,79,23,80],[23,91,23,92],[24,63,24,64],[24,65,24,66],[24,77,24,78],[24,79,24,80],[24,91,24,92],[16,82,16,87],[16,88,16,91],[16,92,16,94],[17,54,17,62],[17,63,17,64],[17,65,17,66],[17,68,17,76],[17,77,17,78],[17,79,17,80],[17,82,17,90],[17,93,17,94],[18,93,18,94],[21,91,21,92],[20,93,20,94],[20,77,20,78],[18,105,18,106],[18,107,18,108],[19,105,19,106],[19,107,19,108],[20,105,20,106],[20,107,20,108],[21,105,21,106],[19,77,19,78],[19,79,19,80],[19,82,22,90],[21,107,21,108],[22,79,22,80],[22,91,22,92],[22,93,22,94],[22,105,22,106],[20,63,20,64],[20,65,20,66],[5,27,5,39],[15,82,15,87],[15,88,15,94],[12,54,12,61],[12,63,12,66],[11,54,11,61],[11,63,11,66],[11,68,11,75],[14,74,14,77],[14,78,14,80],[14,82,14,87],[14,88,14,91],[14,92,14,94],[12,68,12,75],[12,77,12,80],[12,82,12,89],[11,77,11,80],[11,82,11,89],[11,91,11,94],[9,27,9,39],[13,88,13,91],[13,92,13,94],[14,54,14,59],[14,60,14,63],[14,64,14,66],[14,68,14,73],[6,41,6,53],[6,27,6,39],[15,74,15,80],[15,33,15,39],[7,68,7,80],[8,68,8,80],[5,0,5,12],[14,24,14,26],[15,14,15,19],[15,20,15,26],[13,24,13,26],[0,14,0,26],[1,14,1,26],[2,14,2,26],[3,14,3,26],[4,14,4,26],[5,14,5,26],[11,14,11,21],[11,23,11,26],[6,14,6,26],[9,14,9,26],[10,14,10,26],[11,0,11,7],[11,9,11,12],[12,0,12,7],[6,0,6,12],[7,0,7,12],[10,0,10,12],[13,0,13,5],[0,0,0,12],[1,0,1,12],[2,0,2,12],[3,0,3,12],[4,0,4,12],[8,0,8,12],[9,0,9,12],[7,14,7,26],[8,14,8,26],[0,96,0,108],[1,54,1,66],[1,68,1,80],[1,82,1,94],[1,96,1,108],[2,54,2,66],[2,68,2,80],[2,82,2,94],[2,96,2,108],[0,54,0,66],[0,68,0,80],[0,82,0,94],[3,54,3,66],[3,68,3,80],[3,82,3,94],[0,27,0,39],[0,41,0,53],[1,27,1,39],[1,41,1,53],[2,27,2,39],[2,41,2,53],[3,27,3,39],[3,41,3,53],[4,27,4,39],[4,41,4,53],[6,96,6,108],[5,41,5,53],[6,54,6,66],[6,68,6,80],[6,82,6,94],[3,96,3,108],[4,54,4,66],[4,96,4,108],[5,54,5,66],[5,68,5,80],[5,82,5,94],[5,96,5,108],[4,68,4,80],[4,82,4,94],[18,63,18,64],[18,65,18,66],[18,77,18,78],[9,96,9,108],[10,96,10,108],[15,54,15,59],[15,60,15,66],[10,54,10,66],[13,54,13,59],[11,105,11,108],[14,96,14,101],[14,102,14,105],[14,106,14,108],[12,96,12,103],[15,68,15,73],[12,105,12,108],[13,96,13,101],[13,102,13,105],[13,106,13,108],[13,68,13,73],[11,96,11,103],[12,91,12,94],[15,96,15,101],[15,102,15,108],[13,74,13,77],[13,78,13,80],[13,82,13,87],[17,107,17,108],[16,54,16,59],[16,60,16,63],[16,64,16,66],[16,68,16,73],[13,41,13,46],[13,47,13,50],[13,51,13,53],[14,51,14,53],[17,96,17,104],[17,105,17,106],[16,96,16,101],[16,102,16,105],[16,106,16,108],[15,41,15,46],[15,47,15,53],[14,47,14,50],[16,47,16,50],[14,41,14,46],[16,41,16,46],[17,91,17,92],[16,74,16,77],[16,78,16,80],[22,50,22,51],[22,52,22,53],[16,51,16,53],[9,54,9,66],[9,68,9,80],[9,82,9,94],[13,60,13,63],[13,64,13,66],[10,27,10,39],[10,41,10,53],[11,27,11,34],[11,36,11,39],[11,41,11,48],[11,50,11,53],[10,68,10,80],[10,82,10,94],[9,41,9,53],[12,50,12,53],[12,27,12,34],[12,36,12,39],[12,41,12,48],[13,27,13,32],[13,33,13,36],[13,37,13,39],[19,52,19,53],[20,91,20,92],[18,36,18,37],[19,54,22,62],[19,63,19,64],[19,65,19,66],[19,68,22,76],[19,91,19,92],[16,6,16,9],[16,10,16,12],[22,11,22,12],[15,6,15,12],[15,0,15,5],[16,14,16,19],[17,14,17,22],[16,24,16,26],[17,25,17,26],[14,33,14,36],[17,36,17,37],[19,36,19,37],[20,36,20,37],[21,36,21,37],[14,37,14,39],[18,23,18,24],[18,25,18,26],[14,14,14,19],[14,20,14,23],[15,27,15,32],[14,27,14,32],[16,37,16,39],[20,38,20,39],[21,38,21,39],[19,27,22,35],[22,36,22,37],[17,38,17,39],[17,27,17,35],[22,38,22,39],[18,38,18,39],[19,38,19,39],[16,0,16,5],[31,23,31,24],[31,25,31,26],[29,1,29,2],[28,5,28,6],[28,9,28,10],[23,9,23,10],[23,11,23,12],[27,11,27,12],[26,3,26,4],[26,5,27,6],[27,9,27,10],[25,11,25,12],[19,11,19,12],[25,9,25,10],[13,14,13,19],[13,20,13,23],[29,5,29,6],[30,1,30,4],[29,11,29,12],[30,11,30,12],[30,5,30,6],[29,9,29,10],[28,11,28,12],[28,1,28,2],[30,9,30,10],[28,23,28,24],[29,23,29,24],[30,25,30,26],[29,25,29,26],[28,25,28,26],[12,9,12,12],[26,1,27,2],[12,14,12,21],[12,23,12,26],[26,9,26,10],[16,20,16,23],[25,23,25,24],[25,25,25,26],[17,23,17,24],[13,6,13,9],[13,10,13,12],[22,9,22,10],[14,0,14,5],[14,6,14,9],[14,10,14,12],[17,9,17,10],[21,25,21,26],[22,23,22,24],[24,9,24,10],[24,11,24,12],[26,11,26,12],[17,11,17,12],[20,11,20,12],[21,11,21,12],[19,23,19,24],[19,14,22,22],[21,9,21,10],[26,23,26,24],[18,9,18,10],[19,9,19,10],[18,11,18,12],[27,23,27,24],[22,25,22,26],[20,9,20,10],[29,50,29,51],[29,52,29,53],[25,38,25,39],[17,0,17,8],[19,0,22,8],[17,41,17,49],[17,50,17,51],[17,52,17,53],[16,27,16,32],[16,33,16,36],[25,52,25,53],[23,36,23,37],[23,38,23,39],[23,50,23,51],[23,52,23,53],[24,36,24,37],[24,38,24,39],[24,50,24,51],[24,52,24,53],[19,50,19,51],[25,50,25,51],[18,50,18,51],[18,52,18,53],[19,41,22,49],[21,50,21,51],[21,52,21,53],[20,50,20,51],[20,52,20,53],[19,25,19,26],[20,23,20,24],[20,25,20,26],[21,23,21,24],[27,36,27,37],[27,38,27,39],[29,36,29,37],[29,38,29,39],[29,28,29,31],[29,32,29,33],[28,28,28,29],[23,23,23,24],[23,25,23,26],[24,23,24,24],[24,25,24,26],[26,25,26,26],[28,32,28,33],[26,50,26,51],[26,52,26,53],[26,38,26,39],[25,36,25,37],[26,36,26,37],[24,28,25,29],[24,30,24,31],[24,32,25,33],[26,28,26,29],[26,32,26,33],[27,28,27,29],[27,32,27,33],[27,25,27,26],[27,50,27,51],[27,52,27,53],[28,36,28,37],[28,38,28,39],[28,50,28,51],[28,52,28,53],[50,49,50,52],[51,49,51,52],[30,38,30,39],[30,50,30,51],[30,52,30,53],[32,50,32,51],[32,52,32,53],[39,52,39,53],[45,48,45,53],[46,34,46,39],[46,48,46,53],[39,27,39,35],[39,36,39,37],[39,38,39,39],[39,41,39,49],[39,50,39,51],[37,50,37,51],[34,50,34,51],[37,52,37,53],[47,50,47,52],[37,27,38,35],[37,36,37,37],[37,38,37,39],[37,41,38,49],[38,50,38,51],[38,52,38,53],[35,50,35,51],[35,52,35,53],[36,36,36,37],[36,38,36,39],[36,50,36,51],[36,52,36,53],[33,50,33,51],[33,52,33,53],[30,23,30,24],[31,9,31,10],[31,11,31,12],[34,52,34,53],[38,36,38,37],[38,38,38,39],[37,23,37,24],[31,36,31,37],[31,38,31,39],[31,50,31,51],[31,52,31,53],[38,25,38,26],[34,23,34,24],[34,25,34,26],[35,23,35,24],[35,25,35,26],[36,23,36,24],[36,25,36,26],[30,36,30,37],[38,11,38,12],[36,9,36,10],[36,11,36,12],[33,11,33,12],[34,11,34,12],[35,9,35,10],[35,11,35,12],[32,9,32,10],[32,11,32,12],[34,9,34,10],[33,9,33,10],[52,43,52,45],[47,29,47,31],[47,36,47,38],[47,43,47,45],[50,35,50,38],[32,36,32,37],[32,38,32,39],[45,21,45,26],[48,27,48,33],[48,41,48,47],[32,23,32,24],[32,25,32,26],[33,23,33,24],[33,25,33,26],[45,34,45,39],[51,35,51,38],[37,14,38,22],[52,16,52,18],[51,22,51,25],[35,36,35,37],[35,38,35,39]],"merged_total":1351,"flags":["merged_cut"]}
[]
[]
[]
[]
[{"$f":"RD!A6","v":"Republic of the Philippines"},null,null,null,null,null,null,null,null,null,null,null,null,null,{"$f":"A5","v":"Republic of the Philippines"},null,null,null,null,null,null,null,null,null,null,null,null,{"$f":"A5","v":"Republic of the Philippines"},null,null,null,null,null,null,null,null,null,null,null,null,null,{"$f":"A5","v":"Republic of the Philippines"},null,null,null,null,null,null,null,null,null,null,null,null,{"$f":"A5","v":"Republic of the Philippines"},null,null,null,null,null,null,null,null,null,null,null,null,null,{"$f":"A5","v":"Republic of the Philippines"},null,null,null,null,null,null,null,null,null,null,null,null,null,{"$f":"A5","v":"Republic of the Philippines"},null,null,null,null,null,null,null,null,null,null,null,null,null,{"$f":"A5","v":"Republic of the Philippines"},null,null,null,null,null,null,null,null,null,null,null,null,{"$f":"A5","v":"Republic of the Philippines"},null,null,null,null,null,null,null,null,null,null,null,null,null,{"$f":"DF5","v":"Republic of the Philippines"},null,null,null,null,null,null,null,null,null,null,null,null,null,{"$f":"DT5","v":"Republic of the Philippines"},null,null,null,null,null,null,null,null,null,null,null,null,null,{"$f":"EH5","v":"Republic of the Philippines"},null,null,null,null,null,null,null,null,null,null,null,null,{"$f":"EV5","v":"Republic of the Philippines"},null,null,null,null,null,null,null,null,null,null,null,null,{"$f":"FI5","v":"Republic of the Philippines"},null,null,null,null,null,null,null,null,null,null,null,null,{"$f":"FV5","v":"Republic of the Philippines"},null,null,null,null,null,null,null,null,null,null,null,null,{"$f":"GI5","v":"Republic of the Philippines"}]
[{"$f":"RD!A7","v":"Department of Education"},null,null,null,null,null,null,null,null,null,null,null,null,null,{"$f":"A6","v":"Department of Education"},null,null,null,null,null,null,null,null,null,null,null,null,{"$f":"A6","v":"Department of Education"},null,null,null,null,null,null,null,null,null,null,null,null,null,{"$f":"A6","v":"Department of Education"},null,null,null,null,null,null,null,null,null,null,null,null,{"$f":"A6","v":"Department of Education"},null,null,null,null,null,null,null,null,null,null,null,null,null,{"$f":"A6","v":"Department of Education"},null,null,null,null,null,null,null,null,null,null,null,null,null,{"$f":"A6","v":"Department of Education"},null,null,null,null,null,null,null,null,null,null,null,null,null,{"$f":"A6","v":"Department of Education"},null,null,null,null,null,null,null,null,null,null,null,null,{"$f":"A6","v":"Department of Education"},null,null,null,null,null,null,null,null,null,null,null,null,null,{"$f":"DF6","v":"Department of Education"},null,null,null,null,null,null,null,null,null,null,null,null,null,{"$f":"DT6","v":"Department of Education"},null,null,null,null,null,null,null,null,null,null,null,null,null,{"$f":"EH6","v":"Department of Education"},null,null,null,null,null,null,null,null,null,null,null,null,{"$f":"EV6","v":"Department of Education"},null,null,null,null,null,null,null,null,null,null,null,null,{"$f":"FI6","v":"Department of Education"},null,null,null,null,null,null,null,null,null,null,null,null,{"$f":"FV6","v":"Department of Education"},null,null,null,null,null,null,null,null,null,null,null,null,{"$f":"GI6","v":"Department of Education"}]
[{"$f":"RD!A8","v":"Region VII, Central Visayas"},null,null,null,null,null,null,null,null,null,null,null,null,null,"Region VII, Central Visayas",null,null,null,null,null,null,null,null,null,null,null,null,{"$f":"A7","v":"Region VII, Central Visayas"},null,null,null,null,null,null,null,null,null,null,null,null,null,{"$f":"A7","v":"Region VII, Central Visayas"},null,null,null,null,null,null,null,null,null,null,null,null,{"$f":"A7","v":"Region VII, Central Visayas"},null,null,null,null,null,null,null,null,null,null,null,null,null,{"$f":"A7","v":"Region VII, Central Visayas"},null,null,null,null,null,null,null,null,null,null,null,null,null,{"$f":"A7","v":"Region VII, Central Visayas"},null,null,null,null,null,null,null,null,null,null,null,null,null,{"$f":"A7","v":"Region VII, Central Visayas"},null,null,null,null,null,null,null,null,null,null,null,null,{"$f":"A7","v":"Region VII, Central Visayas"},null,null,null,null,null,null,null,null,null,null,null,null,null,"Region VII, Central Visayas",null,null,null,null,null,null,null,null,null,null,null,null,null,"Region VII, Central Visayas",null,null,null,null,null,null,null,null,null,null,null,null,null,"Region VII, Central Visayas",null,null,null,null,null,null,null,null,null,null,null,null,"Region VII, Central Visayas",null,null,null,null,null,null,null,null,null,null,null,null,"Region VII, Central Visayas",null,null,null,null,null,null,null,null,null,null,null,null,"Region VII, Central Visayas",null,null,null,null,null,null,null,null,null,null,null,null,"Region VII, Central Visayas"]
[{"$f":"RD!A9","v":"DIVISION OF LAPU-LAPU CITY"},null,null,null,null,null,null,null,null,null,null,null,null,null,"DIVISION OF LAPU-LAPU CITY",null,null,null,null,null,null,null,null,null,null,null,null,{"$f":"A8","v":"DIVISION OF LAPU-LAPU CITY"},null,null,null,null,null,null,null,null,null,null,null,null,null,{"$f":"A8","v":"DIVISION OF LAPU-LAPU CITY"},null,null,null,null,null,null,null,null,null,null,null,null,{"$f":"A8","v":"DIVISION OF LAPU-LAPU CITY"},null,null,null,null,null,null,null,null,null,null,null,null,null,{"$f":"A8","v":"DIVISION OF LAPU-LAPU CITY"},null,null,null,null,null,null,null,null,null,null,null,null,null,{"$f":"A8","v":"DIVISION OF LAPU-LAPU CITY"},null,null,null,null,null,null,null,null,null,null,null,null,null,{"$f":"A8","v":"DIVISION OF LAPU-LAPU CITY"},null,null,null,null,null,null,null,null,null,null,null,null,{"$f":"A8","v":"DIVISION OF LAPU-LAPU CITY"},null,null,null,null,null,null,null,null,null,null,null,null,null,"DIVISION OF LAPU-LAPU CITY",null,null,null,null,null,null,null,null,null,null,null,null,null,"DIVISION OF LAPU-LAPU CITY",null,null,null,null,null,null,null,null,null,null,null,null,null,"DIVISION OF LAPU-LAPU CITY",null,null,null,null,null,null,null,null,null,null,null,null,"DIVISION OF LAPU-LAPU CITY",null,null,null,null,null,null,null,null,null,null,null,null,"DIVISION OF LAPU-LAPU CITY",null,null,null,null,null,null,null,null,null,null,null,null,"DIVISION OF LAPU-LAPU CITY",null,null,null,null,null,null,null,null,null,null,null,null,"DIVISION OF LAPU-LAPU CITY"]
[{"$f":"RD!A10","v":"MARIGONDON ELEMENTARY SCHOOL"},null,null,null,null,null,null,null,null,null,null,null,null,null,"MARIGONDON ELEMENTARY SCHOOL",null,null,null,null,null,null,null,null,null,null,null,null,{"$f":"A9","v":"MARIGONDON ELEMENTARY SCHOOL"},null,null,null,null,null,null,null,null,null,null,null,null,null,{"$f":"A9","v":"MARIGONDON ELEMENTARY SCHOOL"},null,null,null,null,null,null,null,null,null,null,null,null,{"$f":"A9","v":"MARIGONDON ELEMENTARY SCHOOL"},null,null,null,null,null,null,null,null,null,null,null,null,null,{"$f":"A9","v":"MARIGONDON ELEMENTARY SCHOOL"},null,null,null,null,null,null,null,null,null,null,null,null,null,{"$f":"A9","v":"MARIGONDON ELEMENTARY SCHOOL"},null,null,null,null,null,null,null,null,null,null,null,null,null,{"$f":"A9","v":"MARIGONDON ELEMENTARY SCHOOL"},null,null,null,null,null,null,null,null,null,null,null,null,{"$f":"A9","v":"MARIGONDON ELEMENTARY SCHOOL"},null,null,null,null,null,null,null,null,null,null,null,null,null,"MARIGONDON ELEMENTARY SCHOOL",null,null,null,null,null,null,null,null,null,null,null,null,null,{"$f":"DT9","v":"MARIGONDON ELEMENTARY SCHOOL"},null,null,null,null,null,null,null,null,null,null,null,null,null,{"$f":"EH9","v":"MARIGONDON ELEMENTARY SCHOOL"},null,null,null,null,null,null,null,null,null,null,null,null,"MARIGONDON ELEMENTARY SCHOOL",null,null,null,null,null,null,null,null,null,null,null,null,"MARIGONDON ELEMENTARY SCHOOL",null,null,null,null,null,null,null,null,null,null,null,null,"MARIGONDON ELEMENTARY SCHOOL",null,null,null,null,null,null,null,null,null,null,null,null,"MARIGONDON ELEMENTARY SCHOOL"]
[]
["DISBURSEMENT VOUCHER",null,null,null,null,null,null,null,null,null,null,null,null,null,"DISBURSEMENT VOUCHER",null,null,null,null,null,null,null,null,null,null,null,null,"DISBURSEMENT VOUCHER",null,null,null,null,null,null,null,null,null,null,null,null,null,"DISBURSEMENT VOUCHER",null,null,null,null,null,null,null,null,null,null,null,null,"DISBURSEMENT VOUCHER",null,null,null,null,null,null,null,null,null,null,null,null,null,"DISBURSEMENT VOUCHER",null,null,null,null,null,null,null,null,null,null,null,null,null,"DISBURSEMENT VOUCHER",null,null,null,null,null,null,null,null,null,null,null,null,null,"DISBURSEMENT VOUCHER",null,null,null,null,null,null,null,null,null,null,null,null,"DISBURSEMENT VOUCHER",null,null,null,null,null,null,null,null,null,null,null,null,null,"DISBURSEMENT VOUCHER",null,null,null,null,null,null,null,null,null,null,null,null,null,"DISBURSEMENT VOUCHER",null,null,null,null,null,null,null,null,null,null,null,null,null,"DISBURSEMENT VOUCHER",null,null,null,null,null,null,null,null,null,null,null,null,"DISBURSEMENT VOUCHER",null,null,null,null,null,null,null,null,null,null,null,null,"DISBURSEMENT VOUCHER",null,null,null,null,null,null,null,null,null,null,null,null,"DISBURSEMENT VOUCHER",null,null,null,null,null,null,null,null,null,null,null,null,"DISBURSEMENT VOUCHER"]
["MODE OF PAYMENT",null,null,null,null,null,null,null,"No.: ",2001001,null,null,null,null,"MODE OF PAYMENT",null,null,null,null,null,null,null,"No.: ",{"$f":"J12+1","v":2001002},null,null,null,"MODE OF PAYMENT",null,null,null,null,null,null,null,"No.: ",{"$f":"X12+1","v":2001003},null,null,null,null,"MODE OF PAYMENT",null,null,null,null,null,null,null,"No.: ",{"$f":"AK12+1","v":2001004},null,null,null,"MODE OF PAYMENT",null,null,null,null,null,null,null,"No.: ",{"$f":"AY12+1","v":2001005},null,null,null,null,"MODE OF PAYMENT",null,null,null,null,null,null,null,"No.: ",{"$f":"BL12+1","v":2001006},null,null,null,null,"MODE OF PAYMENT",null,null,null,null,null,null,null,"No.: ",{"$f":"BZ12+1","v":2001007},null,null,null,null,"MODE OF PAYMENT",null,null,null,null,null,null,null,"No.: ",{"$f":"CN12+1","v":2001008},null,null,null,"MODE OF PAYMENT",null,null,null,null,null,null,null,"No.: ",{"$f":"DB12+1","v":2001009},null,null,null,null,"MODE OF PAYMENT",null,null,null,null,null,null,null,"No.: ",{"$f":"DO12+1","v":2001010},null,null,null,null,"MODE OF PAYMENT",null,null,null,null,null,null,null,"No.: ",{"$f":"EC12+1","v":2001011},null,null,null,null,"MODE OF PAYMENT",null,null,null,null,null,null,null,"No.: ",{"$f":"EQ12+1","v":2001012},null,null,null,"MODE OF PAYMENT",null,null,null,null,null,null,null,"No.: ",{"$f":"FE12+1","v":2001013},null,null,null,"MODE OF PAYMENT",null,null,null,null,null,null,null,"No.: ",{"$f":"FR12+1","v":2001014},null,null,null,"MODE OF PAYMENT",null,null,null,null,null,null,null,"No.: ",{"$f":"GE12+1","v":2001015},null,null,null,"MODE OF PAYMENT",null,null,null,null,null,null,null,"No.: ",{"$f":"GR12+1","v":2001016}]
["o MDS Check  o Commercial Check   o ADA o Others",null,null,null,null,null,null,null,"Date: ","2018-02-06",null,null,null,null,"o MDS Check  o Commercial Check   o ADA o Others",null,null,null,null,null,null,null,"Date: ","2018-02-06",null,null,null,"o MDS Check  o Commercial Check   o ADA o Others",null,null,null,null,null,null,null,"Date: ","2018-02-06",null,null,null,null,"o MDS Check  o Commercial Check   o ADA o Others",null,null,null,null,null,null,null,"Date: ","2020-01-28",null,null,null,"o MDS Check  o Commercial Check   o ADA o Others",null,null,null,null,null,null,null,"Date: ","2018-02-10",null,null,null,null,"o MDS Check  o Commercial Check   o ADA o Others",null,null,null,null,null,null,null,"Date: ","2018-02-08",null,null,null,null,"o MDS Check  o Commercial Check   o ADA o Others",null,null,null,null,null,null,null,"Date: ","2018-02-10",null,null,null,null,"o MDS Check  o Commercial Check   o ADA o Others",null,null,null,null,null,null,null,"Date: ","2018-02-08",null,null,null,"o MDS Check  o Commercial Check   o ADA o Others",null,null,null,null,null,null,null,"Date: ","2018-02-10",null,null,null,null,"o MDS Check  o Commercial Check   o ADA o Others",null,null,null,null,null,null,null,"Date: ","2018-02-25",null,null,null,null,"o MDS Check  o Commercial Check   o ADA o Others",null,null,null,null,null,null,null,"Date: ","2018-02-11",null,null,null,null,"o MDS Check  o Commercial Check   o ADA o Others",null,null,null,null,null,null,null,"Date: ","2018-02-11",null,null,null,"o MDS Check  o Commercial Check   o ADA o Others",null,null,null,null,null,null,null,"Date: ","2018-02-11",null,null,null,"o MDS Check  o Commercial Check   o ADA o Others",null,null,null,null,null,null,null,"Date: ","2017-01-24",null,null,null,"o MDS Check  o Commercial Check   o ADA o Others",null,null,null,null,null,null,null,"Date: ","2017-07-05",null,null,null,"o MDS Check  o Commercial Check   o ADA o Others",null,null,null,null,null,null,null,"Date: ","2017-07-05"]
["Payee/Office:",null,null,null,null,null,"TIN/Employe No.",null,null,null,"OS/BUS. No.:",null,null,null,"Payee/Office:",null,null,null,null,null,"TIN/Employe No.",null,null,null,"OS/BUS. No.:",null,null,"Payee/Office:",null,null,null,null,null,"TIN/Employe No.",null,null,null,"OS/BUS. No.:",null,null,null,"Payee/Office:",null,null,null,null,null,"TIN/Employe No.",null,null,null,"OS/BUS. No.:",null,null,"Payee/Office:",null,null,null,null,null,"TIN/Employe No.",null,null,null,"OS/BUS. No.:",null,null,null,"Payee/Office:",null,null,null,null,null,"TIN/Employe No.",null,null,null,"OS/BUS. No.:",null,null,null,"Payee/Office:",null,null,null,null,null,"TIN/Employe No.",null,null,null,"OS/BUS. No.:",null,null,null,"Payee/Office:",null,null,null,null,null,"TIN/Employe No.",null,null,null,"OS/BUS. No.:",null,null,"Payee/Office:",null,null,null,null,null,"TIN/Employe No.",null,null,null,"OS/BUS. No.:",null,null,null,"Payee/Office:",null,null,null,null,null,"TIN/Employe No.",null,null,null,"OS/BUS. No.:",null,null,null,"Payee/Office:",null,null,null,null,null,"TIN/Employe No.",null,null,null,"OS/BUS. No.:",null,null,null,"Payee/Office:",null,null,null,null,null,"TIN/Employe No.",null,null,null,"OS/BUS. No.:",null,null,"Payee/Office:",null,null,null,null,null,"TIN/Employe No.",null,null,null,"OS/BUS. No.:",null,null,"Payee/Office:",null,null,null,null,null,"TIN/Employe No.",null,null,null,"OS/BUS. No.:",null,null,"Payee/Office:",null,null,null,null,null,"TIN/Employe No.",null,null,null,"OS/BUS. No.:",null,null,"Payee/Office:",null,null,null,null,null,"TIN/Employe No.",null,null,null,"OS/BUS. No.:"]
["Mactan Electric Company (MECO)",null,null,null,null,null,null,null,null,null,null,null,null,null,"High Security Agency",null,null,null,null,null,null,null,null,null,null,null,null,"Globe",null,null,null,null,null," ",null,null,null,null,null,null,null,{"$f":"POName1","v":"ROY ENTERPRISES"},null,null,null,null,null,null,null,null,null,null,null,null,{"$f":"POName2","v":"SAVER DEPOT"},null,null,null,null,null,null,null,null,null,null,null,null,null,{"$f":"POName3","v":"Duane & Dwight"},null,null,null,null,null,null,null,null,null,null,null,null,null,{"$f":"POName4","v":"Savers Depot"},null,null,null,null,null,null,null,null,null,null,null,null,null,{"$f":"POName5","v":"La Nueva Supermarket"},null,null,null,null,null,null,null,null,null,null,null,null,{"$f":"POName6","v":"Vannix Computers"},null,null,null,null,null,null,null,null,null,null,null,null,null,"Ko-Jack E. Ibaño",null,null,null,null,null,null,null,null,null,null,null,null,null,{"$f":"POName8","v":"Northern Septic Tank Services"},null,null,null,null,null,null,null,null,null,null,null,null,null,{"$f":"POName7","v":"Onecall Marketing"},null,null,null,null,null,null,null,null,null,null,null,null,"Jonathan D. Pioquinto",null,null,null,null,null,null,null,null,null,null,null,null,"Ellein Mae Castillo",null,null,null,null,null,null,null,null,null,null,null,null,"Billy Kid Ochea",null,null,null,null,null,null,null,null,null,null,null,null,"Ko-Jack E. Ibaño"]
["Address:",null,null,null,null,null,"Responsibility Center:340-2916",null,null,null,null,null,null,null,"Address:",null,null,null,null,null,"Responsibility Center:",null,null,null,null,null,null,"Address:",null,null,null,null,null,"Responsibility Center:",null,null,null,null,null,null,null,"Address:",null,null,null,null,null,"Responsibility Center:",null,null,null,null,null,null,"Address:",null,null,null,null,null,"Responsibility Center:",null,null,null,null,null,null,null,"Address:",null,null,null,null,null,"Responsibility Center:",null,null,null,null,null,null,null,"Address:",null,null,null,null,null,"Responsibility Center:",null,null,null,null,null,null,null,"Address:",null,null,null,null,null,"Responsibility Center:",null,null,null,null,null,null,"Address:",null,null,null,null,null,"Responsibility Center:",null,null,null,null,null,null,null,"Address:",null,null,null,null,null,"Responsibility Center:",null,null,null,null,null,null,null,"Address:",null,null,null,null,null,"Responsibility Center:",null,null,null,null,null,null,null,"Address:",null,null,null,null,null,"Responsibility Center:",null,null,null,null,null,null,"Address:",null,null,null,null,null,"Responsibility Center:",null,null,null,null,null,null,"Address:",null,null,null,null,null,"Responsibility Center:",null,null,null,null,null,null,"Address:",null,null,null,null,null,"Responsibility Center:",null,null,null,null,null,null,"Address:",null,null,null,null,null,"Responsibility Center:"]
["Pajo, Lapu-Lapu City, Tel. No. 340-8134",null,null,null,null,null,"Title:",null,null,null,"Code:",null,null,null,"Mandaue City",null,null,null,null,null,"Title:",null,null,null,"Code:",null,null,"Gaisano Island Mall, Pusok Lapu-Lapu City",null,null,null,null,null,"Title:",null,null,null,"Code:",null,null,null,{"$f":"POAdd1","v":"Pajo, Lapu-Lapu City"},null,null,null,null,null,"Title:",null,null,null,"Code:",null,null,{"$f":"POAdd2","v":"Sudtunggan, Lapu-Lapu City"},null,null,null,null,null,"Title:",null,null,null,"Code:",null,null,null,{"$f":"POAdd3","v":"Marigondon LLC"},null,null,null,null,null,"Title:",null,null,null,"Code:",null,null,null,{"$f":"POAdd4","v":"Basak, Lapu-Lapu City"},null,null,null,null,null,"Title:",null,null,null,"Code:",null,null,null,{"$f":"POAdd5","v":"Pajo, Lapu-Lapu City"},null,null,null,null,null,"Title:",null,null,null,"Code:",null,null,{"$f":"POAdd6","v":"A.C. Cortes Ave. Mandaue City"},null,null,null,null,null,"Title:",null,null,null,"Code:",null,null,null,"Marigondon, Lapu-lapu city",null,null,null,null,null,"Title:",null,null,null,"Code:",null,null,null,{"$f":"POAdd8","v":"Poblacion, Mandaue City"},null,null,null,null,null,"Title:",null,null,null,"Code:",null,null,null,{"$f":"POAdd7","v":"7 Molave St, Brgy Camputhaw, Cebu City"},null,null,null,null,null,"Title:",null,null,null,"Code:",null,null,"Bankal Acacia, Lapu-Lapu City",null,null,null,null,null,"Title:",null,null,null,"Code:",null,null,{"$f":"POAdd9","v":0},null,null,null,null,null,"Title:",null,null,null,"Code:",null,null,{"$f":"POAdd9","v":0},null,null,null,null,null,"Title:",null,null,null,"Code:",null,null,{"$f":"POAdd9","v":0},null,null,null,null,null,"Title:",null,null,null,"Code:"]
["PARTICULARS",null,null,null,null,null,null,null,null,"Amount",null,"Remarks",null,null,"PARTICULARS",null,null,null,null,null,null,null,null,"Amount",null,"Remarks",null,"PARTICULARS",null,null,null,null,null,null,null,null,"Amount",null,"Remarks",null,null,"PARTICULARS",null,null,null,null,null,null,null,null,"Amount",null,"Remarks",null,"PARTICULARS",null,null,null,null,null,null,null,null,"Amount",null,"Remarks",null,null,"PARTICULARS",null,null,null,null,null,null,null,null,"Amount",null,"Remarks",null,null,"PARTICULARS",null,null,null,null,null,null,null,null,"Amount",null,"Remarks",null,null,"PARTICULARS",null,null,null,null,null,null,null,null,"Amount",null,"Remarks",null,"PARTICULARS",null,null,null,null,null,null,null,null,"Amount",null,"Remarks",null,null,"PARTICULARS",null,null,null,null,null,null,null,null,"Amount",null,"Remarks",null,null,"PARTICULARS",null,null,null,null,null,null,null,null,"Amount",null,"Remarks",null,null,"PARTICULARS",null,null,null,null,null,null,null,null,"Amount",null,"Remarks",null,"PARTICULARS",null,null,null,null,null,null,null,null,"Amount",null,"Remarks",null,"PARTICULARS",null,null,null,null,null,null,null,null,"Amount",null,"Remarks",null,"PARTICULARS",null,null,null,null,null,null,null,null,"Amount",null,"Remarks",null,"PARTICULARS",null,null,null,null,null,null,null,null,"Amount",null,"Remarks"]
[]
["        To payment for electricity (MECO) of Marigondon Elementary School in the amount of . . . . . . . . . . . ",null,null,null,null,null,null,null,null,null,null,null,null,null,"        To payment for the services of four (4) security guards of Marigondon Elem School for the month of January 2018 in the amount of . . . .",null,null,null,null,null,null,null,null,null,null,null,null,"        To payment for the telephone w/ Internet bill of Marigondon Elementary School in the amount of . . . .",null,null,null,null,null,null,null,null,null,null,null,null,null,"            To payment for supplies and materials of Marigondon Elem School in the amount of . . . . . . .",null,null,null,null,null,null,null,null,null,null,null,null,"            To payment for supplies and materials of Marigondon Elem School in the amount of . . . . . . .",null,null,null,null,null,null,null,null,null,null,null,null,null,"            To payment for the Food and Snacks of Marigondon Elem School teachers in the amount of . . . . . . .",null,null,null,null,null,null,null,null,null,null,null,null,null,"        To payment for office supplies of Marigondon Elem School in the amount of . . . . . . . .",null,null,null,null,null,null,null,null,null,null,null,null,null,"        To payment for office supplies of Marigondon Elem School in the amount of . . . . . . . .",null,null,null,null,null,null,null,null,null,null,null,null,"        To payment for Ink Toner of Marigondon Elem School in the amount of . . . . . . .",null,null,null,null,null,null,null,null,null,null,null,null,null,"             To payment for the Travelling Expenses of Mr. Ko-Jack E. Ibaño of Marigondon Elementary School in the amount of . . . . . . . .",null,null,null,null,null,null,null,null,null,null,null,null,null,"        To payment for Septic vault suction  for Marigondon Elem School in the amount of . . . . . . . ",null,null,null,null,null,null,null,null,null,null,null,null,null,"        To payment for Ink Office Supply of Marigondon Elem School in the amount of . . . . . . . ",null,null,null,null,null,null,null,null,null,null,null,null,"        To payment for the labor I. Installation of Floodlight (Spotlight) in 5 buildings. II. Replacement of Tiles in SEF (Grade 4 Building). III.  Repair & Installation of additional CCTV. of Marigondon Elem School in the amount of . . . . . . . ",null,null,null,null,null,null,null,null,null,null,null,null,"        To payment for Registration Kindergarten Festival of Talent (Regional Level) of Marigondon Elem School in the amount of . . . . . . . ",null,null,null,null,null,null,null,null,null,null,null,null,"        To payment for Labor Repair & Maintanance of Marigondon Elem School in the amount of . . . . . . . ",null,null,null,null,null,null,null,null,null,null,null,null,"        To payment for Labor Repair & Maintanance of Marigondon Elem School in the amount of . . . . . . . "]
[]
[]
[null,null,null,null,null,null,null,null,null,{"$f":"F31","v":53422.049999999996},null,null,null,null,null,null,null,null,null,null,null,null,null,34000,null,null,null,null,null,null,null,null,null,null,null,null,{"$f":"AG30","v":3000},null,null,null,null,null,null,null,null,null,null,null,null,null,{"$f":"POAmount1","v":20660.5},null,null,null,null,null,null,null,null,null,null,null,null,{"$f":"POAmount2","v":10250},null,null,null,null,null,null,null,null,null,null,null,null,null,{"$f":"POAmount3","v":5335},null,null,null,null,null,null,null,null,null,null,null,null,null,{"$f":"POAmount4","v":10328},null,null,null,null,null,null,null,null,null,null,null,null,null,{"$f":"POamount5","v":3607.5},null,null,null,null,null,null,null,null,null,null,null,null,{"$f":"POAmount6","v":4995},null,null,null,null,null,null,null,null,null,null,null,null,null,753,null,null,null,null,null,null,null,null,null,null,null,null,null,{"$f":"POAmount8","v":27200},null,null,null,null,null,null,null,null,null,null,null,null,null,{"$f":"POAmount7","v":28380},null,null,null,null,null,null,null,null,null,null,null,null,{"$f":"'P1'!N30","v":24750},null,null,null,null,null,null,null,null,null,null,null,null,null,null,null,null,null,null,null,null,null,null,null,null,null,{"$f":"'P1'!N30","v":24750},null,null,null,null,null,null,null,null,null,null,null,null,753]
[]
[null,null,null,null,null,null,null,null,null,null,null,null,null,null,null,null,null,null,null,null,null,null,null,null,null,null,null,null,"Account No",null,"Period Covered",null,"Amount"]
[null,null,null,null,null,null,null,null,null,null,null,null,null,null,null,null,null,null,null,null,null,null,null,null,null,null,null,null,null,null,"From","To"]
[null,"Account No",null,"Period Covered",null,"Amount",null,null,null,null,null,null,null,null,null,null,null,null,null,null,null,null,null,null,null,null,null,null,832167748,null,"2018-01-03","2018-02-03",1000]
[null,null,null,"From","To",null,null,null,null,null,null,null,null,null,null,null,null,null,null,null,null,null,null,null,null,null,null,null,867218102,null,"2018-01-03","2018-02-03",2000]
[null,26400104,null,"2018-11-28","2018-12-28",42442.27]
[null,26400631,null,"2018-11-28","2018-12-28",10979.78,null,null,null,null,null,null,null,null,null,null,null,null,null,null,null,null,null,null,null,null,null,null,"Total",null,null,null,{"$f":"SUM(AG27:AH29)","v":3000},null,null,null,null,null,null,null,null,null,null,null,null,null,null,null,null,null,null,null,null,null,null,null,null,null,null,null,null,null,null,null,null,null,null,null,null,null,null,null,null,null,null,null,null,null,null,null,null,null,null,null,null,null,null,null,null,null,null,null,null,null,null,null,null,null,null,null,null," "]
[null,"Total",null,null,null,{"$f":"SUM(F29:G30)","v":53422.049999999996}]
[]
[]
[null,null,null,null,null,null,null,null,null,null,null,null,null,null,null,null,null,null,null,null,null,null,null,null,null,null,null,null,null,null,null," "]
[]
[]
["Amount in Words:",null,null,null,null,null,null,null,null,null,null,null,null,null,"Amount in Words:",null,null,null,null,null,null,null,null,null,null,null,null,"Amount in Words:",null,null,null,null,null,null,null,null,null,null,null,null,null,"Amount in Words:",null,null,null,null,null,null,null,null,null,null,null,null,"Amount in Words:",null,null,null,null,null,null,null,null,null,null,null,null,null,"Amount in Words:",null,null,null,null,null,null,null,null,null,null,null,null,null,"Amount in Words:",null,null,null,null,null,null,null,null,null,null,null,null,null,"Amount in Words:",null,null,null,null,null,null,null,null,null,null,null,null,"Amount in Words:",null,null,null,null,null,null,null,null,null,null,null,null,null,"Amount in Words:",null,null,null,null,null,null,null,null,null,null,null,null,null,"Amount in Words:",null,null,null,null,null,null,null,null,null,null,null,null,null,"Amount in Words:",null,null,null,null,null,null,null,null,null,null,null,null,"Amount in Words:",null,null,null,null,null,null,null,null,null,null,null,null,"Amount in Words:",null,null,null,null,null,null,null,null,null,null,null,null,"Amount in Words:",null,null,null,null,null,null,null,null,null,null,null,null,"Amount in Words:"]
[{"$f":"SpellNumber(J23)","v":"Fifty Three Thousand Four Hundred Twenty Two Pesos and Five Centavos Only"},null,null,null,null,null,null,null,null,null,null,null,null,null,{"$f":"SpellNumber(X23)","v":"Thirty Four Thousand  Pesos Only"},null,null,null,null,null,null,null,null,null,null,null,null,{"$f":"SpellNumber(AK23)","v":"Three Thousand  Pesos Only"},null,null,null,null,null,null,null,null,null,null,null,null,null,{"$f":"SpellNumber(AY40)","v":"Twenty  Thousand Six Hundred Sixty  Pesos and Fifty  Centavos Only"},null,null,null,null,null,null,null,null,null,null,null,null,{"$f":"SpellNumber(BL23)","v":"Ten Thousand Two Hundred Fifty  Pesos Only"},null,null,null,null,null,null,null,null,null,null,null,null,null,{"$f":"SpellNumber(BZ23)","v":"Five Thousand Three Hundred Thirty Five Pesos Only"},null,null,null,null,null,null,null,null,null,null,null,null,null,{"$f":"SpellNumber(CN23)","v":"Ten Thousand Three Hundred Twenty Eight Pesos Only"},null,null,null,null,null,null,null,null,null,null,null,null,null,{"$f":"SpellNumber(DB40)","v":"Three Thousand Six Hundred Seven Pesos and Fifty  Centavos Only"},null,null,null,null,null,null,null,null,null,null,null,null,{"$f":"SpellNumber(DO23)","v":"Four Thousand Nine Hundred Ninety Five Pesos Only"},null,null,null,null,null,null,null,null,null,null,null,null,null,{"$f":"SpellNumber(EC23)","v":"Seven Hundred Fifty Three Pesos Only"},null,null,null,null,null,null,null,null,null,null,null,null,null,{"$f":"SpellNumber(EQ23)","v":"Twenty Seven Thousand Two Hundred  Pesos Only"},null,null,null,null,null,null,null,null,null,null,null,null,null,{"$f":"SpellNumber(FE40)","v":"Twenty Eight Thousand Three Hundred Eighty  Pesos Only"},null,null,null,null,null,null,null,null,null,null,null,null,{"$f":"SpellNumber(FR40)","v":"Twenty Four Thousand Seven Hundred Fifty  Pesos Only"},null,null,null,null,null,null,null,null,null,null,null,null,{"$f":"SpellNumber(GE40)","v":"Pesos Only"},null,null,null,null,null,null,null,null,null,null,null,null,{"$f":"SpellNumber(GR40)","v":"Twenty Four Thousand Seven Hundred Fifty  Pesos Only"},null,null,null,null,null,null,null,null,null,null,null,null,{"$f":"SpellNumber(HE40)","v":"Seven Hundred Fifty Three Pesos Only"}]
[]
["AMOUNT DUE ==>",null,null,null,null,null,null,null,null,{"$f":"J23","v":53422.049999999996},null,null,null,null,"AMOUNT DUE ==>",null,null,null,null,null,null,null,null,{"$f":"X23","v":34000},null,null,null,"AMOUNT DUE ==>",null,null,null,null,null,null,null,null,{"$f":"AK23","v":3000},null,null,null,null,"AMOUNT DUE ==>",null,null,null,null,null,null,null,null,{"$f":"AY23","v":20660.5},null,null,null,"AMOUNT DUE ==>",null,null,null,null,null,null,null,null,{"$f":"BL23","v":10250},null,null,null,null,"AMOUNT DUE ==>",null,null,null,null,null,null,null,null,{"$f":"BZ23","v":5335},null,null,null,null,"AMOUNT DUE ==>",null,null,null,null,null,null,null,null,{"$f":"CN23","v":10328},null,null,null,null,"AMOUNT DUE ==>",null,null,null,null,null,null,null,null,{"$f":"DB23","v":3607.5},null,null,null,"AMOUNT DUE ==>",null,null,null,null,null,null,null,null,{"$f":"DO23","v":4995},null,null,null,null,"AMOUNT DUE ==>",null,null,null,null,null,null,null,null,{"$f":"EC23","v":753},null,null,null,null,"AMOUNT DUE ==>",null,null,null,null,null,null,null,null,{"$f":"EQ23","v":27200},null,null,null,null,"AMOUNT DUE ==>",null,null,null,null,null,null,null,null,{"$f":"FE23","v":28380},null,null,null,"AMOUNT DUE ==>",null,null,null,null,null,null,null,null,{"$f":"FR23","v":24750},null,null,null,"AMOUNT DUE ==>",null,null,null,null,null,null,null,null,{"$f":"GE23","v":0},null,null,null,"AMOUNT DUE ==>",null,null,null,null,null,null,null,null,{"$f":"GR23","v":24750},null,null,null,"AMOUNT DUE ==>",null,null,null,null,null,null,null,null,{"$f":"HE23","v":753}]
["A. Certified:",null,null,null,null,null,null,"B. Approved for Payment:",null,null,null,null,null,null,"A. Certified:",null,null,null,null,null,null,"B. Approved for Payment:",null,null,null,null,null,"A. Certified:",null,null,null,null,null,null,"B. Approved for Payment:",null,null,null,null,null,null,"A. Certified:",null,null,null,null,null,null,"B. Approved for Payment:",null,null,null,null,null,"A. Certified:",null,null,null,null,null,null,"B. Approved for Payment:",null,null,null,null,null,null,"A. Certified:",null,null,null,null,null,null,"B. Approved for Payment:",null,null,null,null,null,null,"A. Certified:",null,null,null,null,null,null,"B. Approved for Payment:",null,null,null,null,null,null,"A. Certified:",null,null,null,null,null,null,"B. Approved for Payment:",null,null,null,null,null,"A. Certified:",null,null,null,null,null,null,"B. Approved for Payment:",null,null,null,null,null,null,"A. Certified:",null,null,null,null,null,null,"B. Approved for Payment:",null,null,null,null,null,null,"A. Certified:",null,null,null,null,null,null,"B. Approved for Payment:",null,null,null,null,null,null,"A. Certified:",null,null,null,null,null,null,"B. Approved for Payment:",null,null,null,null,null,"A. Certified:",null,null,null,null,null,null,"B. Approved for Payment:",null,null,null,null,null,"A. Certified:",null,null,null,null,null,null,"B. Approved for Payment:",null,null,null,null,null,"A. Certified:",null,null,null,null,null,null,"B. Approved for Payment:",null,null,null,null,null,"A. Certified:",null,null,null,null,null,null,"B. Approved for Payment:"]
[null,"o Supporting Documents complete and proper",null,null,null,null,null,null,null,null,null,null,null,null,null,"o Supporting Documents complete and proper",null,null,null,null,null,null,null,null,null,null,null,null,"o Supporting Documents complete and proper",null,null,null,null,null,null,null,null,null,null,null,null,null,"o Supporting Documents complete and proper",null,null,null,null,null,null,null,null,null,null,null,null,"o Supporting Documents complete and proper",null,null,null,null,null,null,null,null,null,null,null,null,null,"o Supporting Documents complete and proper",null,null,null,null,null,null,null,null,null,null,null,null,null,"o Supporting Documents complete and proper",null,null,null,null,null,null,null,null,null,null,null,null,null,"o Supporting Documents complete and proper",null,null,null,null,null,null,null,null,null,null,null,null,"o Supporting Documents complete and proper",null,null,null,null,null,null,null,null,null,null,null,null,null,"o Supporting Documents complete and proper",null,null,null,null,null,null,null,null,null,null,null,null,null,"o Supporting Documents complete and proper",null,null,null,null,null,null,null,null,null,null,null,null,null,"o Supporting Documents complete and proper",null,null,null,null,null,null,null,null,null,null,null,null,"o Supporting Documents complete and proper",null,null,null,null,null,null,null,null,null,null,null,null,"o Supporting Documents complete and proper",null,null,null,null,null,null,null,null,null,null,null,null,"o Supporting Documents complete and proper",null,null,null,null,null,null,null,null,null,null,null,null,"o Supporting Documents complete and proper"]
[null,"o Cash Advance",null,null,null,null,null,null,null,null,null,null,null,null,null,"o Cash Advance",null,null,null,null,null,null,null,null,null,null,null,null,"o Cash Advance",null,null,null,null,null,null,null,null,null,null,null,null,null,"o Cash Advance",null,null,null,null,null,null,null,null,null,null,null,null,"o Cash Advance",null,null,null,null,null,null,null,null,null,null,null,null,null,"o Cash Advance",null,null,null,null,null,null,null,null,null,null,null,null,null,"o Cash Advance",null,null,null,null,null,null,null,null,null,null,null,null,null,"o Cash Advance",null,null,null,null,null,null,null,null,null,null,null,null,"o Cash Advance",null,null,null,null,null,null,null,null,null,null,null,null,null,"o Cash Advance",null,null,null,null,null,null,null,null,null,null,null,null,null,"o Cash Advance",null,null,null,null,null,null,null,null,null,null,null,null,null,"o Cash Advance",null,null,null,null,null,null,null,null,null,null,null,null,"o Cash Advance",null,null,null,null,null,null,null,null,null,null,null,null,"o Cash Advance",null,null,null,null,null,null,null,null,null,null,null,null,"o Cash Advance",null,null,null,null,null,null,null,null,null,null,null,null,"o Cash Advance"]
[null,"o Subject to ADA (where applicable)",null,null,null,null,null,null,null,null,null,null,null,null,null,"o Subject to ADA (where applicable)",null,null,null,null,null,null,null,null,null,null,null,null,"o Subject to ADA (where applicable)",null,null,null,null,null,null,null,null,null,null,null,null,null,"o Subject to ADA (where applicable)",null,null,null,null,null,null,null,null,null,null,null,null,"o Subject to ADA (where applicable)",null,null,null,null,null,null,null,null,null,null,null,null,null,"o Subject to ADA (where applicable)",null,null,null,null,null,null,null,null,null,null,null,null,null,"o Subject to ADA (where applicable)",null,null,null,null,null,null,null,null,null,null,null,null,null,"o Subject to ADA (where applicable)",null,null,null,null,null,null,null,null,null,null,null,null,"o Subject to ADA (where applicable)",null,null,null,null,null,null,null,null,null,null,null,null,null,"o Subject to ADA (where applicable)",null,null,null,null,null,null,null,null,null,null,null,null,null,"o Subject to ADA (where applicable)",null,null,null,null,null,null,null,null,null,null,null,null,null,"o Subject to ADA (where applicable)",null,null,null,null,null,null,null,null,null,null,null,null,"o Subject to ADA (where applicable)",null,null,null,null,null,null,null,null,null,null,null,null,"o Subject to ADA (where applicable)",null,null,null,null,null,null,null,null,null,null,null,null,"o Subject to ADA (where applicable)",null,null,null,null,null,null,null,null,null,null,null,null,"o Subject to ADA (where applicable)"]
[]
[null,null,null,"KO-JACK E. IBAÑO",null,null,null,"REBECCA P. TORING",null,null,null,null,null,null,null,null,null,{"$f":"$D$46","v":"KO-JACK E. IBAÑO"},null,null,null,"REBECCA P. TORING",null,null,null,null,null,null,null,null,{"$f":"$D$46","v":"KO-JACK E. IBAÑO"},null,null,null,"REBECCA P. TORING",null,null,null,null,null,null,null,null,null,{"$f":"$D$46","v":"KO-JACK E. IBAÑO"},null,null,null,"REBECCA P. TORING",null,null,null,null,null,null,null,null,"KO-JACK E. IBAÑO",null,null,null,"REBECCA P. TORING",null,null,null,null,null,null,null,null,null,{"$f":"$D$46","v":"KO-JACK E. IBAÑO"},null,null,null,"REBECCA P. TORING",null,null,null,null,null,null,null,null,null,{"$f":"$D$46","v":"KO-JACK E. IBAÑO"},null,null,null,"REBECCA P. TORING",null,null,null,null,null,null,null,null,null,{"$f":"$D$46","v":"KO-JACK E. IBAÑO"},null,null,null,"REBECCA P. TORING",null,null,null,null,null,null,null,null,"KO-JACK E. IBAÑO",null,null,null,"REBECCA P. TORING",null,null,null,null,null,null,null,null,null,{"$f":"$D$46","v":"KO-JACK E. IBAÑO"},null,null,null,"REBECCA P. TORING",null,null,null,null,null,null,null,null,null,{"$f":"$D$46","v":"KO-JACK E. IBAÑO"},null,null,null,"REBECCA P. TORING",null,null,null,null,null,null,null,null,null,{"$f":"$D$46","v":"KO-JACK E. IBAÑO"},null,null,null,"REBECCA P. TORING",null,null,null,null,null,null,null,null,{"$f":"$D$46","v":"KO-JACK E. IBAÑO"},null,null,null,"REBECCA P. TORING",null,null,null,null,null,null,null,null,{"$f":"$D$46","v":"KO-JACK E. IBAÑO"},null,null,null,"REBECCA P. TORING",null,null,null,null,null,null,null,null,{"$f":"$D$46","v":"KO-JACK E. IBAÑO"},null,null,null,"REBECCA P. TORING",null,null,null,null,null,null,null,null,{"$f":"$D$46","v":"KO-JACK E. IBAÑO"},null,null,null,"REBECCA P. TORING"]
[null,null,null,"Teacher III, School Bookkeeper-Designate",null,null,null,"Principal I",null,null,null,null,null,null,null,null,null,{"$f":"$D$47","v":"Teacher III, School Bookkeeper-Designate"},null,null,null,"Principal I",null,null,null,null,null,null,null,null,{"$f":"$D$47","v":"Teacher III, School Bookkeeper-Designate"},null,null,null,"Principal I",null,null,null,null,null,null,null,null,null,{"$f":"$D$47","v":"Teacher III, School Bookkeeper-Designate"},null,null,null,"Principal I",null,null,null,null,null,null,null,null,"Teacher I, School Bookkeeper-Designate",null,null,null,"Principal I",null,null,null,null,null,null,null,null,null,{"$f":"$D$47","v":"Teacher III, School Bookkeeper-Designate"},null,null,null,"Principal I",null,null,null,null,null,null,null,null,null,{"$f":"$D$47","v":"Teacher III, School Bookkeeper-Designate"},null,null,null,"Principal I",null,null,null,null,null,null,null,null,null,{"$f":"$D$47","v":"Teacher III, School Bookkeeper-Designate"},null,null,null,"Principal I",null,null,null,null,null,null,null,null,"Teacher I, School Bookkeeper-Designate",null,null,null,"Principal I",null,null,null,null,null,null,null,null,null,{"$f":"$D$47","v":"Teacher III, School Bookkeeper-Designate"},null,null,null,"Principal I",null,null,null,null,null,null,null,null,null,{"$f":"$D$47","v":"Teacher III, School Bookkeeper-Designate"},null,null,null,"Principal I",null,null,null,null,null,null,null,null,null,{"$f":"$D$47","v":"Teacher III, School Bookkeeper-Designate"},null,null,null,"Principal I",null,null,null,null,null,null,null,null,{"$f":"$D$47","v":"Teacher III, School Bookkeeper-Designate"},null,null,null,"Principal I",null,null,null,null,null,null,null,null,{"$f":"$D$47","v":"Teacher III, School Bookkeeper-Designate"},null,null,null,"Principal I",null,null,null,null,null,null,null,null,{"$f":"$D$47","v":"Teacher III, School Bookkeeper-Designate"},null,null,null,"Principal I",null,null,null,null,null,null,null,null,{"$f":"$D$47","v":"Teacher III, School Bookkeeper-Designate"},null,null,null,"Principal I"]
[null,"Date:",{"$f":"J13","v":"2018-02-06"},null,null,null,null,null,"Date:",{"$f":"C48","v":"2018-02-06"},null,null,null,null,null,"Date:",{"$f":"X13","v":"2018-02-06"},null,null,null,null,null,"Date:",{"$f":"X13","v":"2018-02-06"},null,null,null,null,"Date:",{"$f":"AK13","v":"2018-02-06"},null,null,null,null,null,"Date:",{"$f":"AK13","v":"2018-02-06"},null,null,null,null,null,"Date:",{"$f":"AY13","v":"2020-01-28"},null,null,null,null,null,"Date:",{"$f":"AY13","v":"2020-01-28"},null,null,null,null,"Date:",{"$f":"BL13","v":"2018-02-10"},null,null,null,null,null,"Date:",{"$f":"BE48","v":"2018-02-10"},null,null,null,null,null,"Date:",{"$f":"BZ13","v":"2018-02-08"},null,null,null,null,null,"Date:",{"$f":"BZ13","v":"2018-02-08"},null,null,null,null,null,"Date:",{"$f":"CN13","v":"2018-02-10"},null,null,null,null,null,"Date:",{"$f":"CN13","v":"2018-02-10"},null,null,null,null,null,"Date:",{"$f":"DB13","v":"2018-02-08"},null,null,null,null,null,"Date:",{"$f":"DB13","v":"2018-02-08"},null,null,null,null,"Date:",{"$f":"DO13","v":"2018-02-10"},null,null,null,null,null,"Date:",{"$f":"DH48","v":"2018-02-10"},null,null,null,null,null,"Date:",{"$f":"EC13","v":"2018-02-25"},null,null,null,null,null,"Date:",{"$f":"EC13","v":"2018-02-25"},null,null,null,null,null,"Date:",{"$f":"EQ13","v":"2018-02-11"},null,null,null,null,null,"Date:",{"$f":"EQ13","v":"2018-02-11"},null,null,null,null,null,"Date:",{"$f":"FE13","v":"2018-02-11"},null,null,null,null,null,"Date:",{"$f":"FE13","v":"2018-02-11"},null,null,null,null,"Date:",{"$f":"FR13","v":"2018-02-11"},null,null,null,null,null,"Date:",{"$f":"FR13","v":"2018-02-11"},null,null,null,null,"Date:",{"$f":"GE13","v":"2017-01-24"},null,null,null,null,null,"Date:",{"$f":"GE13","v":"2017-01-24"},null,null,null,null,"Date:",{"$f":"GR13","v":"2017-07-05"},null,null,null,null,null,"Date:",{"$f":"GR13","v":"2017-07-05"},null,null,null,null,"Date:",{"$f":"HE13","v":"2017-07-05"},null,null,null,null,null,"Date:",{"$f":"HE13","v":"2017-07-05"}]
["C. Received Payment:",null,null,null,null,null,null,"D. Journal Entry Payment:",null,null,null,null,null,null,"C. Received Payment:",null,null,null,null,null,null,"D. Journal Entry Payment:",null,null,null,null,null,"C. Received Payment:",null,null,null,null,null,null,"D. Journal Entry Payment:",null,null,null,null,null,null,"C. Received Payment:",null,null,null,null,null,null,"D. Journal Entry Payment:",null,null,null,null,null,"C. Received Payment:",null,null,null,null,null,null,"D. Journal Entry Payment:",null,null,null,null,null,null,"C. Received Payment:",null,null,null,null,null,null,"D. Journal Entry Payment:",null,null,null,null,null,null,"C. Received Payment:",null,null,null,null,null,null,"D. Journal Entry Payment:",null,null,null,null,null,null,"C. Received Payment:",null,null,null,null,null,null,"D. Journal Entry Payment:",null,null,null,null,null,"C. Received Payment:",null,null,null,null,null,null,"D. Journal Entry Payment:",null,null,null,null,null,null,"C. Received Payment:",null,null,null,null,null,null,"D. Journal Entry Payment:",null,null,null,null,null,null,"C. Received Payment:",null,null,null,null,null,null,"D. Journal Entry Payment:",null,null,null,null,null,null,"C. Received Payment:",null,null,null,null,null,null,"D. Journal Entry Payment:",null,null,null,null,null,"C. Received Payment:",null,null,null,null,null,null,"D. Journal Entry Payment:",null,null,null,null,null,"C. Received Payment:",null,null,null,null,null,null,"D. Journal Entry Payment:",null,null,null,null,null,"C. Received Payment:",null,null,null,null,null,null,"D. Journal Entry Payment:",null,null,null,null,null,"C. Received Payment:",null,null,null,null,null,null,"D. Journal Entry Payment:"]
[null,null,null,null,null,null,null,null,null,null,null,null,null,null," ",null,null,null,null,null,null,null,null,null,null,null,null,null,null,null,null,null,null,null,null,null,null,null,null,null,null,null,null,null,null,null,null,null,null,null,null,null,null,null,null,null,null,null,null,null,null,null,null,null,null,null,null,null," ",null,null,null,null,null,null,null,null,null,null,null,null,null,null,null,null,null,null,null,null,null,null,null,null,null,null,null,null,null,null,null,null,null,null,null,null,null,null,null,null,null,null,null,null,null,null,null,null,null,null,null,null,null,null," "]
[null,null,null,null,null,"Date: _____________",null,"No.: ",{"$f":"RIGHT(DVNo1,1)","v":"1"},null,null,null,null,null,null,null,null,null,null,"Date: _____________",null,"No.: ",{"$f":"I51+1","v":2},null,null,null,null,null,null,null,null,null,"Date: _____________",null,"No.: ",{"$f":"W51+1","v":3},null,null,null,null,null,null,null,null,null,null,"Date: _____________",null,"No.: ",{"$f":"AJ51+1","v":4},null,null,null,null,null,null,null,null,null,"Date: _____________",null,"No.: ",{"$f":"AX51+1","v":5},null,null,null,null,null,null,null,null,null,null,"Date: _____________",null,"No.: ",{"$f":"BK51+1","v":6},null,null,null,null,null,null,null,null,null,null,"Date: _____________",null,"No.: ",{"$f":"BY51+1","v":7},null,null,null,null,null,null,null,null,null,null,"Date: _____________",null,"No.: ",{"$f":"CM51+1","v":8},null,null,null,null,null,null,null,null,null,"Date: _____________",null,"No.: ",{"$f":"DA51+1","v":9},null,null,null,null,null,null,null,null,null,null,"Date: _____________",null,"No.: ",null,null,null,null,null,null,null,null,null,null,null,"Date: _____________",null,"No.: ",null,null,null,null,null,null,null,null,null,null,null,"Date: _____________",null,"No.: ",null,null,null,null,null,null,null,null,null,null,"Date: _____________",null,"No.: ",null,null,null,null,null,null,null,null,null,null,"Date: _____________",null,"No.: ",null,null,null,null,null,null,null,null,null,null,"Date: _____________",null,"No.: ",null,null,null,null,null,null,null,null,null,null,"Date: _____________",null,"No.: "]
["Signature: ______________ ",null,null,"Date:",null,"Bank Name: _______",null,"Date:",{"$f":"DVDate1","v":"2018-02-06"},null,null,null,null,null,"Signature: ______________ ",null,null,"Date:",null,"Bank Name: _______",null,"Date:",{"$f":"DVDate2","v":"2018-02-06"},null,null,null,null,"Signature: ______________ ",null,null,"Date:",null,"Bank Name: _______",null,"Date:",{"$f":"DVDate3","v":"2018-02-06"},null,null,null,null,null,"Signature: ______________ ",null,null,"Date:",null,"Bank Name: _______",null,"Date:",{"$f":"DVDate4","v":"2020-01-28"},null,null,null,null,"Signature: ______________ ",null,null,"Date:",null,"Bank Name: _______",null,"Date:",{"$f":"DVDate4","v":"2020-01-28"},null,null,null,null,null,"Signature: ______________ ",null,null,"Date:",null,"Bank Name: _______",null,"Date:",{"$f":"DVDate6","v":"2018-02-08"},null,null,null,null,null,"Signature: ______________ ",null,null,"Date:",null,"Bank Name: _______",null,"Date:",{"$f":"DVDate7","v":"2018-02-10"},null,null,null,null,null,"Signature: ______________ ",null,null,"Date:",null,"Bank Name: _______",null,"Date:",{"$f":"DVDate8","v":"2018-02-08"},null,null,null,null,"Signature: ______________ ",null,null,"Date:",null,"Bank Name: _______",null,"Date:",{"$f":"DVDate9","v":"2018-02-10"},null,null,null,null,null,"Signature: ______________ ",null,null,"Date:",null,"Bank Name: _______",null,"Date:",null,null,null,null,null,null,"Signature: ______________ ",null,null,"Date:",null,"Bank Name: _______",null,"Date:",null,null,null,null,null,null,"Signature: ______________ ",null,null,"Date:",null,"Bank Name: _______",null,"Date:",null,null,null,null,null,"Signature: ______________ ",null,null,"Date:",null,"Bank Name: _______",null,"Date:",null,null,null,null,null,"Signature: ______________ ",null,null,"Date:",null,"Bank Name: _______",null,"Date:",null,null,null,null,null,"Signature: ______________ ",null,null,"Date:",null,"Bank Name: _______",null,"Date:",null,null,null,null,null,"Signature: ______________ ",null,null,"Date:",null,"Bank Name: _______",null,"Date:"]
["Printed Name:",null,null,null,null,"OR #/ relevant",null,null,null,null,null,null,null,null,"Printed Name:",null,null,null,null,"OR #/ relevant",null,null,null,null,null,null,null,"Printed Name:",null,null,null,null,"OR #/ relevant",null,null,null,null,null,null,null,null,"Printed Name:",null,null,null,null,"OR #/ relevant",null,null,null,null,null,null,null,"Printed Name:",null,null,null,null,"OR #/ relevant",null,null,null,null,null,null,null,null,"Printed Name:",null,null,null,null,"OR #/ relevant",null,null,null,null,null,null,null,null,"Printed Name:",null,null,null,null,"OR #/ relevant",null,null,null,null,null,null,null,null,"Printed Name:",null,null,null,null,"OR #/ relevant",null,null,null,null,null,null,null,"Printed Name:",null,null,null,null,"OR #/ relevant",null,null,null,null,null,null,null,null,"Printed Name:",null,null,null,null,"OR #/ relevant",null,null,null,null,null,null,null,null,"Printed Name:",null,null,null,null,"OR #/ relevant",null,null,null,null,null,null,null,null,"Printed Name:",null,null,null,null,"OR #/ relevant",null,null,null,null,null,null,null,"Printed Name:",null,null,null,null,"OR #/ relevant",null,null,null,null,null,null,null,"Printed Name:",null,null,null,null,"OR #/ relevant",null,null,null,null,null,null,null,"Printed Name:",null,null,null,null,"OR #/ relevant",null,null,null,null,null,null,null,"Printed Name:",null,null,null,null,"OR #/ relevant"]
[null,null,null,null,null,"Document issued",null,null,null,null,null,null,null,null,null,null,null,null,null,"Document issued",null,null,null,null,null,null,null,null,null,null,null,null,"Document issued",null,null,null,null,null,null,null,null,null,null,null,null,null,"Document issued",null,null,null,null,null,null,null,null,null,null,null,null,"Document issued",null,null,null,null,null,null,null,null,null,null,null,null,null,"Document issued",null,null,null,null,null,null,null,null,null,null,null,null,null,"Document issued",null,null,null,null,null,null,null,null,null,null,null,null,null,"Document issued",null,null,null,null,null,null,null,null,null,null,null,null,"Document issued",null,null,null,null,null,null,null,null,null,null,null,null,null,"Document issued",null,null,null,null,null,null,null,null,null,null,null,null,null,"Document issued",null,null,null,null,null,null,null,null,null,null,null,null,null,"Document issued",null,null,null,null,null,null,null,null,null,null,null,null,"Document issued",null,null,null,null,null,null,null,null,null,null,null,null,"Document issued",null,null,null,null,null,null,null,null,null,null,null,null,"Document issued",null,null,null,null,null,null,null,null,null,null,null,null,"Document issued"]
[7,null,null,null,null,null,null,null,null,null,null,null,null,null,7,null,null,null,null,null,null,null,null,null,null,null,null,7,null,null,null,null,null,null,null,null,null,null,null,null,null,7,null,null,null,null,null,null,null,null,null,null,null,null,7,null,null,null,null,null,null,null,null,null,null,null,null,null,7,null,null,null,null,null,null,null,null,null,null,null,null,null,7,null,null,null,null,null,null,null,null,null,null,null,null,null,7,null,null,null,null,null,null,null,null,null,null,null,null,7,null,null,null,null,null,null,null,null,null,null,null,null,null,7,null,null,null,null,null,null,null,null,null,null,null,null,null,7,null,null,null,null,null,null,null,null,null,null,null,null,null,7,null,null,null,null,null,null,null,null,null,null,null,null,7,null,null,null,null,null,null,null,null,null,null,null,null,7,null,null,null,null,null,null,null,null,null,null,null,null,7,null,null,null,null,null,null,null,null,null,null,null,null,7]

{"sheet":"5Ins","index":6,"n_rows":49,"n_cols":99,"rows_kept":49,"cut":false,"hidden":false,"merged":[[44,78,44,81],[45,78,45,81],[46,78,46,81],[0,77,0,87],[1,77,1,87],[3,78,3,84],[3,86,3,87],[4,80,4,81],[4,83,4,84],[4,86,4,87],[9,79,9,86],[38,79,38,81],[38,85,38,87],[44,56,44,59],[45,56,45,59],[46,56,46,59],[0,55,0,65],[1,55,1,65],[3,56,3,62],[3,64,3,65],[4,58,4,59],[4,61,4,62],[4,64,4,65],[9,57,9,64],[38,57,38,59],[38,63,38,65],[46,34,46,37],[44,23,44,26],[45,23,45,26],[46,23,46,26],[46,1,46,4],[46,12,46,15],[44,1,44,4],[45,1,45,4],[44,12,44,15],[45,12,45,15],[44,34,44,37],[45,34,45,37],[38,13,38,15],[38,19,38,21],[4,14,4,15],[4,17,4,18],[0,33,0,43],[1,33,1,43],[3,34,3,40],[3,42,3,43],[4,36,4,37],[4,39,4,40],[4,42,4,43],[0,22,0,32],[1,22,1,32],[3,23,3,29],[3,31,3,32],[4,25,4,26],[4,28,4,29],[4,31,4,32],[38,46,38,48],[38,52,38,54],[3,1,3,7],[3,9,3,10],[4,3,4,4],[4,6,4,7],[4,9,4,10],[1,0,1,10],[0,0,0,10],[38,24,38,26],[38,30,38,32],[0,11,0,21],[1,11,1,21],[3,12,3,18],[3,20,3,21],[38,35,38,37],[38,41,38,43],[38,8,38,10],[38,2,38,4],[9,2,9,9],[9,35,9,42],[9,24,9,31],[4,20,4,21],[9,13,9,20],[44,45,44,48],[45,45,45,48],[46,45,46,48],[0,66,0,76],[1,66,1,76],[3,67,3,73],[3,75,3,76],[4,69,4,70],[4,72,4,73],[4,75,4,76],[9,68,9,75],[38,68,38,70],[38,74,38,76],[44,67,44,70],[45,67,45,70],[46,67,46,70],[0,44,0,54],[1,44,1,54],[3,45,3,51],[3,53,3,54],[4,47,4,48],[4,50,4,51],[4,53,4,54],[9,46,9,53],[44,89,44,92],[45,89,45,92],[46,89,46,92],[0,88,0,98],[1,88,1,98],[3,89,3,95],[3,97,3,98],[4,91,4,92],[4,94,4,95],[4,97,4,98],[9,90,9,97],[38,90,38,92],[38,96,38,98]]}
["INSPECTION AND ACCEPTANCE REPORT",null,null,null,null,null,null,null,null,null,null,"INSPECTION AND ACCEPTANCE REPORT",null,null,null,null,null,null,null,null,null,null,"INSPECTION AND ACCEPTANCE REPORT",null,null,null,null,null,null,null,null,null,null,"INSPECTION AND ACCEPTANCE REPORT",null,null,null,null,null,null,null,null,null,null,"INSPECTION AND ACCEPTANCE REPORT",null,null,null,null,null,null,null,null,null,null,"INSPECTION AND ACCEPTANCE REPORT",null,null,null,null,null,null,null,null,null,null,"INSPECTION AND ACCEPTANCE REPORT",null,null,null,null,null,null,null,null,null,null,"INSPECTION AND ACCEPTANCE REPORT",null,null,null,null,null,null,null,null,null,null,"INSPECTION AND ACCEPTANCE REPORT"]
["MARIGONDON ELEMENTARY SCHOOL",null,null,null,null,null,null,null,null,null,null,"MARIGONDON ELEMENTARY SCHOOL",null,null,null,null,null,null,null,null,null,null,"MARIGONDON ELEMENTARY SCHOOL",null,null,null,null,null,null,null,null,null,null,"MARIGONDON ELEMENTARY SCHOOL",null,null,null,null,null,null,null,null,null,null,"MARIGONDON ELEMENTARY SCHOOL",null,null,null,null,null,null,null,null,null,null,"MARIGONDON ELEMENTARY SCHOOL",null,null,null,null,null,null,null,null,null,null,"MARIGONDON ELEMENTARY SCHOOL",null,null,null,null,null,null,null,null,null,null,"MARIGONDON ELEMENTARY SCHOOL",null,null,null,null,null,null,null,null,null,null,"MARIGONDON ELEMENTARY SCHOOL"]
[]
["Supplier: ",{"$f":"'4PO'!B15","v":"ROY ENTERPRISES"},null,null,null,null,null,null,"AR No. ",{"$f":"'1PR'!G4","v":2001001},null,"Supplier: ",{"$f":"'4PO'!K15","v":"SAVER DEPOT"},null,null,null,null,null,null,"AR No. ",{"$f":"J4+1","v":2001002},null,"Supplier: ",{"$f":"'4PO'!T15","v":"Duane & Dwight"},null,null,null,null,null,null,"AR No. ",{"$f":"U4+1","v":2001003},null,"Supplier: ",{"$f":"'4PO'!AC15","v":"Savers Depot"},null,null,null,null,null,null,"AR No. ",{"$f":"AF4+1","v":2001004},null,"Supplier: ",{"$f":"POName5","v":"La Nueva Supermarket"},null,null,null,null,null,null,"AR No. ",{"$f":"AQ4+1","v":2001005},null,"Supplier: ",{"$f":"'4PO'!AU15","v":"Vannix Computers"},null,null,null,null,null,null,"AR No. ",{"$f":"BB4+1","v":2001006},null,"Supplier: ",{"$f":"POName7","v":"Onecall Marketing"},null,null,null,null,null,null,"AR No. ",{"$f":"BM4+1","v":2001007},null,"Supplier: ",{"$f":"POName8","v":"Northern Septic Tank Services"},null,null,null,null,null,null,"AR No. ",{"$f":"BX4+1","v":2001008},null,"Supplier: ",{"$f":"POName9","v":0},null,null,null,null,null,null,"AR No. ",{"$f":"CI4+1","v":2001009}]
["PO No.:",{"$f":"'4PO'!H15","v":2001001},"Date:",{"$f":"PODate1","v":"2020-01-27"},null,"Invoice No.:",null,null,"Date:",null,null,"PO No.:",{"$f":"'4PO'!Q15","v":2001002},"Date:",{"$f":"PODate2","v":"2020-01-27"},null,"Invoice No.:",null,null,"Date:",null,null,"PO No.:",{"$f":"'4PO'!Z15","v":2001003},"Date:",{"$f":"'4PO'!Z16","v":"2018-01-11"},null,"Invoice No.:",null,null,"Date:",null,null,"PO No.:",{"$f":"X5+1","v":2001004},"Date:",{"$f":"'4PO'!AI16","v":"2018-01-11"},null,"Invoice No.:",null,null,"Date:",null,null,"PO No.:",{"$f":"AI5+1","v":2001005},"Date:",{"$f":"PODate5","v":"2018-01-11"},null,"Invoice No.:",null,null,"Date:",null,null,"PO No.:",{"$f":"AT5+1","v":2001006},"Date:",{"$f":"'4PO'!BA16","v":"2018-01-11"},null,"Invoice No.:",null,null,"Date:",null,null,"PO No.:",{"$f":"BE5+1","v":2001007},"Date:",{"$f":"PODate7","v":"2018-01-11"},null,"Invoice No.:",null,null,"Date:",null,null,"PO No.:",{"$f":"BP5+1","v":2001008},"Date:",{"$f":"PODate8","v":"2018-01-15"},null,"Invoice No.:",null,null,"Date:",null,null,"PO No.:",{"$f":"CA5+1","v":2001009},"Date:",{"$f":"PODate8","v":"2018-01-15"},null,"Invoice No.:",null,null,"Date:"]
["Requisitioning Officer:/Dept:",null,null,null,null,null,null,null,null,null,null,"Requisitioning Officer:/Dept:",null,null,null,null,null,null,null,null,null,null,"Requisitioning Officer:/Dept:",null,null,null,null,null,null,null,null,null,null,"Requisitioning Officer:/Dept:",null,null,null,null,null,null,null,null,null,null,"Requisitioning Officer:/Dept:",null,null,null,null,null,null,null,null,null,null,"Requisitioning Officer:/Dept:",null,null,null,null,null,null,null,null,null,null,"Requisitioning Officer:/Dept:",null,null,null,null,null,null,null,null,null,null,"Requisitioning Officer:/Dept:",null,null,null,null,null,null,null,null,null,null,"Requisitioning Officer:/Dept:"]
[null,null,"ZIGMUND JESS J. CID",null,null,null,null,null,null,null,null,null,null,{"$f":"$C$7","v":"ZIGMUND JESS J. CID"},null,null,null,null,null,null,null,null,null,null,{"$f":"$C$7","v":"ZIGMUND JESS J. CID"},null,null,null,null,null,null,null,null,null,null,{"$f":"$C$7","v":"ZIGMUND JESS J. CID"},null,null,null,null,null,null,null,null,null,null,{"$f":"$C$7","v":"ZIGMUND JESS J. CID"},null,null,null,null,null,null,null,null,null,null,{"$f":"$C$7","v":"ZIGMUND JESS J. CID"},null,null,null,null,null,null,null,null,null,null,{"$f":"$C$7","v":"ZIGMUND JESS J. CID"},null,null,null,null,null,null,null,null,null,null,{"$f":"$C$7","v":"ZIGMUND JESS J. CID"},null,null,null,null,null,null,null,null,null,null,{"$f":"$C$7","v":"ZIGMUND JESS J. CID"}]
[null,null,"Teacher I, Property Custodian",null,null,null,null,null,null,null,null,null,null,{"$f":"$C$8","v":"Teacher I, Property Custodian"},null,null,null,null,null,null,null,null,null,null,{"$f":"$C$8","v":"Teacher I, Property Custodian"},null,null,null,null,null,null,null,null,null,null,{"$f":"$C$8","v":"Teacher I, Property Custodian"},null,null,null,null,null,null,null,null,null,null,{"$f":"$C$8","v":"Teacher I, Property Custodian"},null,null,null,null,null,null,null,null,null,null,{"$f":"$C$8","v":"Teacher I, Property Custodian"},null,null,null,null,null,null,null,null,null,null,{"$f":"$C$8","v":"Teacher I, Property Custodian"},null,null,null,null,null,null,null,null,null,null,{"$f":"$C$8","v":"Teacher I, Property Custodian"},null,null,null,null,null,null,null,null,null,null,{"$f":"$C$8","v":"Teacher I, Property Custodian"}]
[]
["Item No.","Unit","Description",null,null,null,null,null,null,null,"Quantity","Item No.","Unit","Description",null,null,null,null,null,null,null,"Quantity","Item No.","Unit","Description",null,null,null,null,null,null,null,"Quantity","Item No.","Unit","Description",null,null,null,null,null,null,null,"Quantity","Item No.","Unit","Description",null,null,null,null,null,null,null,"Quantity","Item No.","Unit","Description",null,null,null,null,null,null,null,"Quantity","Item No.","Unit","Description",null,null,null,null,null,null,null,"Quantity","Item No.","Unit","Description",null,null,null,null,null,null,null,"Quantity","Item No.","Unit","Description",null,null,null,null,null,null,null,"Quantity"]
[{"$f":"'4PO'!A27","v":1},{"$f":"'4PO'!B27","v":"roll"},{"$f":"'4PO'!C27","v":"Loomex wire, #12"},null,null,null,null,null,null,null,{"$f":"'4PO'!G27","v":1},{"$f":"'4PO'!J27","v":3},{"$f":"'4PO'!K27","v":"set"},{"$f":"'4PO'!L27","v":"Flood light, Led 30w"},null,null,null,null,null,null,null,{"$f":"'4PO'!P27","v":3},{"$f":"'4PO'!S27","v":8},{"$f":"'4PO'!T27","v":"bag"},{"$f":"'4PO'!U27","v":"Adhesive"},null,null,null,null,null,null,null,{"$f":"'4PO'!Y27","v":13},{"$f":"'4PO'!AB27","v":4},{"$f":"'4PO'!AC27","v":"set"},{"$f":"'4PO'!AD27","v":"Flood light, Led 30w"},null,null,null,null,null,null,null,{"$f":"'4PO'!AH27","v":3},{"$f":"'4PO'!AK27","v":1},{"$f":"'4PO'!AL27","v":"ream"},{"$f":"'4PO'!AM27","v":"Bondpaper Long, Sub 20"},null,null,null,null,null,null,null,{"$f":"'4PO'!AQ27","v":20},{"$f":"'4PO'!AT27","v":1},{"$f":"'4PO'!AU27","v":"set"},{"$f":"'4PO'!AV27","v":"Printer, CMYK"},null,null,null,null,null,null,null,{"$f":"'4PO'!AZ27","v":1},{"$f":"'4PO'!BC27","v":1},{"$f":"'4PO'!BD27","v":"roll"},{"$f":"'4PO'!BE27","v":"Coaxial Cable"},null,null,null,null,null,null,null,{"$f":"'4PO'!BI27","v":1.5},{"$f":"'4PO'!AK27","v":1},{"$f":"'4PO'!BM27","v":"tl"},{"$f":"'4PO'!BN27","v":"Septic vault suction"},null,null,null,null,null,null,null,{"$f":"'4PO'!BR27","v":8},{"$f":"'4PO'!AT27","v":1},{"$f":"'4PO'!AU27","v":"set"},{"$f":"'4PO'!AV27","v":"Printer, CMYK"},null,null,null,null,null,null,null,{"$f":"'4PO'!AZ27","v":1}]
[{"$f":"'4PO'!A28","v":2},{"$f":"'4PO'!B28","v":"pcs"},{"$f":"'4PO'!C28","v":"Safety breaker, Surface type (15amp)"},null,null,null,null,null,null,null,{"$f":"'4PO'!G28","v":5},{"$f":"'4PO'!J28","v":4},{"$f":"'4PO'!K28","v":"set"},{"$f":"'4PO'!L28","v":"Flood light, Led 50w"},null,null,null,null,null,null,null,{"$f":"'4PO'!P28","v":2},{"$f":"'4PO'!S28","v":9},{"$f":"'4PO'!T28","v":"bag"},{"$f":"'4PO'!U28","v":"Cement"},null,null,null,null,null,null,null,{"$f":"'4PO'!Y28","v":12},{"$f":"'4PO'!AB28","v":5},{"$f":"'4PO'!AC28","v":"set"},{"$f":"'4PO'!AD28","v":"Flood light, Led 50w"},null,null,null,null,null,null,null,{"$f":"'4PO'!AH28","v":2},{"$f":"'4PO'!AK28","v":2},{"$f":"'4PO'!AL28","v":"pcs"},{"$f":"'4PO'!AM28","v":"White board pen, (black, blue & red)"},null,null,null,null,null,null,null,{"$f":"'4PO'!AQ28","v":9},{"$f":"'4PO'!AT28","v":0},{"$f":"'4PO'!AU28","v":0},{"$f":"'4PO'!AV28","v":0},null,null,null,null,null,null,null,{"$f":"'4PO'!AZ28","v":0},{"$f":"'4PO'!BC28","v":2},{"$f":"'4PO'!BD28","v":"pcs"},{"$f":"'4PO'!BE28","v":"DC Adapter 12v, 5A"},null,null,null,null,null,null,null,{"$f":"'4PO'!BI28","v":1},{"$f":"'4PO'!BL28","v":0},{"$f":"'4PO'!BM28","v":0},{"$f":"'4PO'!BN28","v":0},null,null,null,null,null,null,null,{"$f":"'4PO'!BR28","v":0},{"$f":"'4PO'!BW28","v":0},{"$f":"'4PO'!BX28","v":0},{"$f":"'4PO'!BY28","v":0},null,null,null,null,null,null,null,{"$f":"'4PO'!CC28","v":0}]
[{"$f":"'4PO'!A29","v":5},{"$f":"'4PO'!B29","v":"roll"},{"$f":"'4PO'!C29","v":"Electrical Tape, Big"},null,null,null,null,null,null,null,{"$f":"'4PO'!G29","v":5},{"$f":"'4PO'!J29","v":10},{"$f":"'4PO'!K29","v":"pck"},{"$f":"'4PO'!L29","v":"Staple wire, Concrete"},null,null,null,null,null,null,null,{"$f":"'4PO'!P29","v":1},{"$f":"'4PO'!S29","v":0},{"$f":"'4PO'!T29","v":0},{"$f":"'4PO'!U29","v":0},null,null,null,null,null,null,null,{"$f":"'4PO'!Y29","v":0},{"$f":"'4PO'!AB29","v":6},{"$f":"'4PO'!AC29","v":"pc"},{"$f":"'4PO'!AD29","v":"Allen Wrench"},null,null,null,null,null,null,null,{"$f":"'4PO'!AH29","v":1},{"$f":"'4PO'!AK29","v":0},{"$f":"'4PO'!AL29","v":0},{"$f":"'4PO'!AM29","v":0},null,null,null,null,null,null,null,{"$f":"'4PO'!AQ29","v":0},{"$f":"'4PO'!AT29","v":0},{"$f":"'4PO'!AU29","v":0},{"$f":"'4PO'!AV29","v":0},null,null,null,null,null,null,null,{"$f":"'4PO'!AZ29","v":0},{"$f":"'4PO'!BC29","v":3},{"$f":"'4PO'!BD29","v":"pcs"},{"$f":"'4PO'!BE29","v":"Camera"},null,null,null,null,null,null,null,{"$f":"'4PO'!BI29","v":5},{"$f":"'4PO'!BL29","v":0},{"$f":"'4PO'!BM29","v":0},{"$f":"'4PO'!BN29","v":0},null,null,null,null,null,null,null,{"$f":"'4PO'!BR29","v":0},{"$f":"'4PO'!BW29","v":0},{"$f":"'4PO'!BX29","v":0},{"$f":"'4PO'!BY29","v":0},null,null,null,null,null,null,null,{"$f":"'4PO'!CC29","v":0}]
[{"$f":"'4PO'!A30","v":6},{"$f":"'4PO'!B30","v":"pcs"},{"$f":"'4PO'!C30","v":"Tiles, 60 x 60"},null,null,null,null,null,null,null,{"$f":"'4PO'!G30","v":100},{"$f":"'4PO'!J30","v":11},{"$f":"'4PO'!K30","v":"pck"},{"$f":"'4PO'!L30","v":"Tox w/ screw"},null,null,null,null,null,null,null,{"$f":"'4PO'!P30","v":1},{"$f":"'4PO'!S30","v":0},{"$f":"'4PO'!T30","v":0},{"$f":"'4PO'!U30","v":0},null,null,null,null,null,null,null,{"$f":"'4PO'!Y30","v":0},{"$f":"'4PO'!AB30","v":7},{"$f":"'4PO'!AC30","v":"pc"},{"$f":"'4PO'!AD30","v":"Soldering Iron"},null,null,null,null,null,null,null,{"$f":"'4PO'!AH30","v":1},{"$f":"'4PO'!AK30","v":0},{"$f":"'4PO'!AL30","v":0},{"$f":"'4PO'!AM30","v":0},null,null,null,null,null,null,null,{"$f":"'4PO'!AQ30","v":0},{"$f":"'4PO'!AT30","v":0},{"$f":"'4PO'!AU30","v":0},{"$f":"'4PO'!AV30","v":0},null,null,null,null,null,null,null,{"$f":"'4PO'!AZ30","v":0},{"$f":"'4PO'!BC30","v":4},{"$f":"'4PO'!BD30","v":"pcs"},{"$f":"'4PO'!BE30","v":"BNC Cable, 30m"},null,null,null,null,null,null,null,{"$f":"'4PO'!BI30","v":3},{"$f":"'4PO'!BL30","v":0},{"$f":"'4PO'!BM30","v":0},{"$f":"'4PO'!BN30","v":0},null,null,null,null,null,null,null,{"$f":"'4PO'!BR30","v":0},{"$f":"'4PO'!BW30","v":0},{"$f":"'4PO'!BX30","v":0},{"$f":"'4PO'!BY30","v":0},null,null,null,null,null,null,null,{"$f":"'4PO'!CC30","v":0}]
[{"$f":"'4PO'!A31","v":9},{"$f":"'4PO'!B31","v":"bag"},{"$f":"'4PO'!C31","v":"Tile Grout"},null,null,null,null,null,null,null,{"$f":"'4PO'!G31","v":2},{"$f":"'4PO'!J31","v":12},{"$f":"'4PO'!K31","v":"pck"},{"$f":"'4PO'!L31","v":"Stainless, Plain washer 1/4"},null,null,null,null,null,null,null,{"$f":"'4PO'!P31","v":1},{"$f":"'4PO'!S31","v":0},{"$f":"'4PO'!T31","v":0},{"$f":"'4PO'!U31","v":0},null,null,null,null,null,null,null,{"$f":"'4PO'!Y31","v":0},{"$f":"'4PO'!AB31","v":8},{"$f":"'4PO'!AC31","v":"pck"},{"$f":"'4PO'!AD31","v":"Staple wire, Concrete"},null,null,null,null,null,null,null,{"$f":"'4PO'!AH31","v":1},{"$f":"'4PO'!AK31","v":0},{"$f":"'4PO'!AL31","v":0},{"$f":"'4PO'!AM31","v":0},null,null,null,null,null,null,null,{"$f":"'4PO'!AQ31","v":0},{"$f":"'4PO'!AT31","v":0},{"$f":"'4PO'!AU31","v":0},{"$f":"'4PO'!AV31","v":0},null,null,null,null,null,null,null,{"$f":"'4PO'!AZ31","v":0},{"$f":"'4PO'!BC31","v":5},{"$f":"'4PO'!BD31","v":"pcs"},{"$f":"'4PO'!BE31","v":"BNC, Adaptor, Male"},null,null,null,null,null,null,null,{"$f":"'4PO'!BI31","v":19},{"$f":"'4PO'!BL31","v":0},{"$f":"'4PO'!BM31","v":0},{"$f":"'4PO'!BN31","v":0},null,null,null,null,null,null,null,{"$f":"'4PO'!BR31","v":0},{"$f":"'4PO'!BW31","v":0},{"$f":"'4PO'!BX31","v":0},{"$f":"'4PO'!BY31","v":0},null,null,null,null,null,null,null,{"$f":"'4PO'!CC31","v":0}]
[{"$f":"'4PO'!A32","v":13},{"$f":"'4PO'!B32","v":"pcs"},{"$f":"'4PO'!C32","v":"Switch flush typew, 1 gang"},null,null,null,null,null,null,null,{"$f":"'4PO'!G32","v":1},{"$f":"'4PO'!J32","v":0},{"$f":"'4PO'!K32","v":0},{"$f":"'4PO'!L32","v":0},null,null,null,null,null,null,null,{"$f":"'4PO'!P32","v":0},{"$f":"'4PO'!S32","v":0},{"$f":"'4PO'!T32","v":0},{"$f":"'4PO'!U32","v":0},null,null,null,null,null,null,null,{"$f":"'4PO'!Y32","v":0},{"$f":"'4PO'!AB32","v":9},{"$f":"'4PO'!AC32","v":"pck"},{"$f":"'4PO'!AD32","v":"Tox w/ screw"},null,null,null,null,null,null,null,{"$f":"'4PO'!AH32","v":1},{"$f":"'4PO'!AK32","v":0},{"$f":"'4PO'!AL32","v":0},{"$f":"'4PO'!AM32","v":0},null,null,null,null,null,null,null,{"$f":"'4PO'!AQ32","v":0},{"$f":"'4PO'!AT32","v":0},{"$f":"'4PO'!AU32","v":0},{"$f":"'4PO'!AV32","v":0},null,null,null,null,null,null,null,{"$f":"'4PO'!AZ32","v":0},{"$f":"'4PO'!BC32","v":6},{"$f":"'4PO'!BD32","v":"pcs"},{"$f":"'4PO'!BE32","v":"BNC, Adaptor, Female"},null,null,null,null,null,null,null,{"$f":"'4PO'!BI32","v":19},{"$f":"'4PO'!BL32","v":0},{"$f":"'4PO'!BM32","v":0},{"$f":"'4PO'!BN32","v":0},null,null,null,null,null,null,null,{"$f":"'4PO'!BR32","v":0},{"$f":"'4PO'!BW32","v":0},{"$f":"'4PO'!BX32","v":0},{"$f":"'4PO'!BY32","v":0},null,null,null,null,null,null,null,{"$f":"'4PO'!CC32","v":0}]
[{"$f":"'4PO'!A33","v":14},{"$f":"'4PO'!B33","v":"pcs"},{"$f":"'4PO'!C33","v":"Floor drain"},null,null,null,null,null,null,null,{"$f":"'4PO'!G33","v":1},{"$f":"'4PO'!J33","v":0},{"$f":"'4PO'!K33","v":0},{"$f":"'4PO'!L33","v":0},null,null,null,null,null,null,null,{"$f":"'4PO'!P33","v":0},{"$f":"'4PO'!S33","v":0},{"$f":"'4PO'!T33","v":0},{"$f":"'4PO'!U33","v":0},null,null,null,null,null,null,null,{"$f":"'4PO'!Y33","v":0},{"$f":"'4PO'!AB33","v":10},{"$f":"'4PO'!AC33","v":"pck"},{"$f":"'4PO'!AC44","v":0},null,null,null,null,null,null,null,{"$f":"'4PO'!AH33","v":1},{"$f":"'4PO'!AK33","v":0},{"$f":"'4PO'!AL33","v":0},{"$f":"'4PO'!AM33","v":0},null,null,null,null,null,null,null,{"$f":"'4PO'!AQ33","v":0},{"$f":"'4PO'!AT33","v":0},{"$f":"'4PO'!AU33","v":0},{"$f":"'4PO'!AV33","v":0},null,null,null,null,null,null,null,{"$f":"'4PO'!AZ33","v":0},{"$f":"'4PO'!BC33","v":7},{"$f":"'4PO'!BD33","v":"pcs"},{"$f":"'4PO'!BE33","v":"BNC, Barrel"},null,null,null,null,null,null,null,{"$f":"'4PO'!BI33","v":19},{"$f":"'4PO'!BL33","v":0},{"$f":"'4PO'!BM33","v":0},{"$f":"'4PO'!BN33","v":0},null,null,null,null,null,null,null,{"$f":"'4PO'!BR33","v":0},{"$f":"'4PO'!BW33","v":0},{"$f":"'4PO'!BX33","v":0},{"$f":"'4PO'!BY33","v":0},null,null,null,null,null,null,null,{"$f":"'4PO'!CC33","v":0}]
[{"$f":"'4PO'!A34","v":15},{"$f":"'4PO'!B34","v":"pcs"},{"$f":"'4PO'!C34","v":"Diamond cutting wheel"},null,null,null,null,null,null,null,{"$f":"'4PO'!G34","v":2},{"$f":"'4PO'!J34","v":0},{"$f":"'4PO'!K34","v":0},{"$f":"'4PO'!L34","v":0},null,null,null,null,null,null,null,{"$f":"'4PO'!P34","v":0},{"$f":"'4PO'!S34","v":0},{"$f":"'4PO'!T34","v":0},{"$f":"'4PO'!U34","v":0},null,null,null,null,null,null,null,{"$f":"'4PO'!Y34","v":0},{"$f":"'4PO'!AB39","v":0},{"$f":"'4PO'!AC39","v":0},{"$f":"'4PO'!AC45","v":0},null,null,null,null,null,null,null,{"$f":"'4PO'!AH39","v":0},{"$f":"'4PO'!AK34","v":0},{"$f":"'4PO'!AL34","v":0},{"$f":"'4PO'!AM34","v":0},null,null,null,null,null,null,null,{"$f":"'4PO'!AQ34","v":0},{"$f":"'4PO'!AT34","v":0},{"$f":"'4PO'!AU34","v":0},{"$f":"'4PO'!AV34","v":0},null,null,null,null,null,null,null,{"$f":"'4PO'!AZ34","v":0},{"$f":"'4PO'!BC34","v":8},{"$f":"'4PO'!BD34","v":"roll"},{"$f":"'4PO'!BE34","v":"Coaxial cable, 20m"},null,null,null,null,null,null,null,{"$f":"'4PO'!BI34","v":3},{"$f":"'4PO'!BL34","v":0},{"$f":"'4PO'!BM34","v":0},{"$f":"'4PO'!BN34","v":0},null,null,null,null,null,null,null,{"$f":"'4PO'!BR34","v":0},{"$f":"'4PO'!BW34","v":0},{"$f":"'4PO'!BX34","v":0},{"$f":"'4PO'!BY34","v":0},null,null,null,null,null,null,null,{"$f":"'4PO'!CC34","v":0}]
[{"$f":"'4PO'!A35","v":0},{"$f":"'4PO'!B35","v":0},{"$f":"'4PO'!C35","v":0},null,null,null,null,null,null,null,{"$f":"'4PO'!G35","v":0},{"$f":"'4PO'!J35","v":0},{"$f":"'4PO'!K35","v":0},{"$f":"'4PO'!L35","v":0},null,null,null,null,null,null,null,{"$f":"'4PO'!P35","v":0},null,null,null,null,null,null,null,null,null,null,null,{"$f":"'4PO'!AB40","v":0},{"$f":"'4PO'!AC40","v":0},{"$f":"'4PO'!AC46","v":0},null,null,null,null,null,null,null,{"$f":"'4PO'!AH40","v":0},{"$f":"'4PO'!AK35","v":0},{"$f":"'4PO'!AL35","v":0},{"$f":"'4PO'!AM35","v":0},null,null,null,null,null,null,null,{"$f":"'4PO'!AQ35","v":0},{"$f":"'4PO'!AT44","v":0},{"$f":"'4PO'!AU44","v":0},{"$f":"'4PO'!AV44","v":0},null,null,null,null,null,null,null,{"$f":"'4PO'!AZ44","v":0},{"$f":"'4PO'!BC35","v":9},{"$f":"'4PO'!BD35","v":"roll"},{"$f":"'4PO'!BE35","v":"Coaxial cable, 30m"},null,null,null,null,null,null,null,{"$f":"'4PO'!BI35","v":4},{"$f":"'4PO'!BL35","v":0},{"$f":"'4PO'!BM35","v":0},{"$f":"'4PO'!BN35","v":0},null,null,null,null,null,null,null,{"$f":"'4PO'!BR35","v":0},{"$f":"'4PO'!BW44","v":0},{"$f":"'4PO'!BX44","v":0},{"$f":"'4PO'!BY44","v":0},null,null,null,null,null,null,null,{"$f":"'4PO'!CC44","v":0}]
[{"$f":"'4PO'!A36","v":0},{"$f":"'4PO'!B36","v":0},{"$f":"'4PO'!C36","v":0},null,null,null,null,null,null,null,{"$f":"'4PO'!G36","v":0},{"$f":"'4PO'!J36","v":0},{"$f":"'4PO'!K36","v":0},{"$f":"'4PO'!L36","v":0},null,null,null,null,null,null,null,{"$f":"'4PO'!P36","v":0},null,null,null,null,null,null,null,null,null,null,null,{"$f":"'4PO'!AB41","v":0},{"$f":"'4PO'!AC41","v":0},{"$f":"'4PO'!AD41","v":0},null,null,null,null,null,null,null,{"$f":"'4PO'!AH41","v":0},{"$f":"'4PO'!AK36","v":0},{"$f":"'4PO'!AL36","v":0},{"$f":"'4PO'!AM36","v":0},null,null,null,null,null,null,null,{"$f":"'4PO'!AQ36","v":0},{"$f":"'4PO'!AT45","v":0},{"$f":"'4PO'!AU45","v":0},{"$f":"'4PO'!AV45","v":0},null,null,null,null,null,null,null,{"$f":"'4PO'!AZ45","v":0},{"$f":"'4PO'!BC36","v":0},{"$f":"'4PO'!BD36","v":0},{"$f":"'4PO'!BE36","v":0},null,null,null,null,null,null,null,{"$f":"'4PO'!BI36","v":0},{"$f":"'4PO'!BL36","v":0},{"$f":"'4PO'!BM36","v":0},{"$f":"'4PO'!BN36","v":0},null,null,null,null,null,null,null,{"$f":"'4PO'!BR36","v":0},{"$f":"'4PO'!BW45","v":0},{"$f":"'4PO'!BX45","v":0},{"$f":"'4PO'!BY45","v":0},null,null,null,null,null,null,null,{"$f":"'4PO'!CC45","v":0}]
[{"$f":"'4PO'!A37","v":0},{"$f":"'4PO'!B37","v":0},{"$f":"'4PO'!C37","v":0},null,null,null,null,null,null,null,{"$f":"'4PO'!G37","v":0},{"$f":"'4PO'!J36","v":0},{"$f":"'4PO'!K37","v":0},{"$f":"'4PO'!L37","v":0},null,null,null,null,null,null,null,{"$f":"'4PO'!P36","v":0},null,null,null,null,null,null,null,null,null,null,null,{"$f":"'4PO'!AB44","v":0},{"$f":"'4PO'!AC44","v":0},{"$f":"'4PO'!AD44","v":0},null,null,null,null,null,null,null,{"$f":"'4PO'!AH44","v":0},{"$f":"'4PO'!AK46","v":0},{"$f":"'4PO'!AL46","v":0},{"$f":"'4PO'!AM46","v":0},null,null,null,null,null,null,null,{"$f":"'4PO'!AQ46","v":0},{"$f":"'4PO'!AT46","v":0},{"$f":"'4PO'!AU46","v":0},{"$f":"'4PO'!AV46","v":0},null,null,null,null,null,null,null,{"$f":"'4PO'!AZ46","v":0},{"$f":"'4PO'!BC37","v":0},{"$f":"'4PO'!BD37","v":0},{"$f":"'4PO'!BE37","v":0},null,null,null,null,null,null,null,{"$f":"'4PO'!BI37","v":0},{"$f":"'4PO'!BL46","v":0},{"$f":"'4PO'!BM46","v":0},{"$f":"'4PO'!BN46","v":0},null,null,null,null,null,null,null,{"$f":"'4PO'!BR46","v":0},{"$f":"'4PO'!BW46","v":0},{"$f":"'4PO'!BX46","v":0},{"$f":"'4PO'!BY46","v":0},null,null,null,null,null,null,null,{"$f":"'4PO'!CC46","v":0}]
[{"$f":"'4PO'!A38","v":0},{"$f":"'4PO'!B38","v":0},{"$f":"'4PO'!C38","v":0},null,null,null,null,null,null,null,{"$f":"'4PO'!G38","v":0},{"$f":"'4PO'!J37","v":0},{"$f":"'4PO'!K38","v":0},{"$f":"'4PO'!L37","v":0},null,null,null,null,null,null,null,{"$f":"'4PO'!P37","v":0},null,null,null,null,null,null,null,null,null,null,null,{"$f":"'4PO'!AB45","v":0},{"$f":"'4PO'!AC45","v":0},{"$f":"'4PO'!AD45","v":0},null,null,null,null,null,null,null,{"$f":"'4PO'!AH45","v":0},{"$f":"'4PO'!AK47","v":0},{"$f":"'4PO'!AL47","v":0},{"$f":"'4PO'!AM47","v":0},null,null,null,null,null,null,null,{"$f":"'4PO'!AQ47","v":0},{"$f":"'4PO'!AT47","v":0},{"$f":"'4PO'!AU47","v":0},{"$f":"'4PO'!AV47","v":0},null,null,null,null,null,null,null,{"$f":"'4PO'!AZ47","v":0},{"$f":"'4PO'!BC38","v":0},{"$f":"'4PO'!BD38","v":0},{"$f":"'4PO'!BE38","v":0},null,null,null,null,null,null,null,{"$f":"'4PO'!BI38","v":0},{"$f":"'4PO'!BL47","v":0},{"$f":"'4PO'!BM47","v":0},{"$f":"'4PO'!BN47","v":0},null,null,null,null,null,null,null,{"$f":"'4PO'!BR47","v":0},{"$f":"'4PO'!BW47","v":0},{"$f":"'4PO'!BX47","v":0},{"$f":"'4PO'!BY47","v":0},null,null,null,null,null,null,null,{"$f":"'4PO'!CC47","v":0}]
[{"$f":"'4PO'!A39","v":0},{"$f":"'4PO'!B39","v":0},{"$f":"'4PO'!C39","v":0},null,null,null,null,null,null,null,{"$f":"'4PO'!G39","v":0},{"$f":"'4PO'!J38","v":0},{"$f":"'4PO'!K39","v":0},{"$f":"'4PO'!L38","v":0},null,null,null,null,null,null,null,{"$f":"'4PO'!P38","v":0},null,null,null,null,null,null,null,null,null,null,null,{"$f":"'4PO'!AB46","v":0},{"$f":"'4PO'!AC46","v":0},{"$f":"'4PO'!AD46","v":0},null,null,null,null,null,null,null,{"$f":"'4PO'!AH46","v":0},{"$f":"'4PO'!AK48","v":0},{"$f":"'4PO'!AL48","v":0},{"$f":"'4PO'!AM48","v":0},null,null,null,null,null,null,null,{"$f":"'4PO'!AQ48","v":0},{"$f":"'4PO'!AT48","v":0},{"$f":"'4PO'!AU48","v":0},{"$f":"'4PO'!AV48","v":0},null,null,null,null,null,null,null,{"$f":"'4PO'!AZ48","v":0},{"$f":"'4PO'!BC39","v":0},{"$f":"'4PO'!BD39","v":0},{"$f":"'4PO'!BE39","v":0},null,null,null,null,null,null,null,{"$f":"'4PO'!BI39","v":0},{"$f":"'4PO'!BL48","v":0},{"$f":"'4PO'!BM48","v":0},{"$f":"'4PO'!BN48","v":0},null,null,null,null,null,null,null,{"$f":"'4PO'!BR48","v":0},{"$f":"'4PO'!BW48","v":0},{"$f":"'4PO'!BX48","v":0},{"$f":"'4PO'!BY48","v":0},null,null,null,null,null,null,null,{"$f":"'4PO'!CC48","v":0}]
[{"$f":"'4PO'!A40","v":0},{"$f":"'4PO'!B40","v":0},{"$f":"'4PO'!C40","v":0},null,null,null,null,null,null,null,{"$f":"'4PO'!G40","v":0},{"$f":"'4PO'!J39","v":0},{"$f":"'4PO'!K39","v":0},{"$f":"'4PO'!L39","v":0},null,null,null,null,null,null,null,{"$f":"'4PO'!P39","v":0},null,null,null,null,null,null,null,null,null,null,null,{"$f":"'4PO'!AB49","v":0},{"$f":"'4PO'!AC49","v":0},{"$f":"'4PO'!AD49","v":0},null,null,null,null,null,null,null,{"$f":"'4PO'!AH49","v":0},{"$f":"'4PO'!AK49","v":0},{"$f":"'4PO'!AL49","v":0},{"$f":"'4PO'!AM49","v":0},null,null,null,null,null,null,null,{"$f":"'4PO'!AQ49","v":0},{"$f":"'4PO'!AT49","v":0},{"$f":"'4PO'!AU49","v":0},{"$f":"'4PO'!AV49","v":0},null,null,null,null,null,null,null,{"$f":"'4PO'!AZ49","v":0},{"$f":"'4PO'!BC40","v":0},{"$f":"'4PO'!BD40","v":0},{"$f":"'4PO'!BE40","v":0},null,null,null,null,null,null,null,{"$f":"'4PO'!BI40","v":0},{"$f":"'4PO'!BL49","v":0},{"$f":"'4PO'!BM49","v":0},{"$f":"'4PO'!BN49","v":0},null,null,null,null,null,null,null,{"$f":"'4PO'!BR49","v":0},{"$f":"'4PO'!BW49","v":0},{"$f":"'4PO'!BX49","v":0},{"$f":"'4PO'!BY49","v":0},null,null,null,null,null,null,null,{"$f":"'4PO'!CC49","v":0}]
[{"$f":"'4PO'!A41","v":0},{"$f":"'4PO'!B41","v":0},{"$f":"'4PO'!C41","v":0},null,null,null,null,null,null,null,{"$f":"'4PO'!G41","v":0},{"$f":"'4PO'!J40","v":0},{"$f":"'4PO'!K40","v":0},{"$f":"'4PO'!L40","v":0},null,null,null,null,null,null,null,{"$f":"'4PO'!P40","v":0},null,null,null,null,null,null,null,null,null,null,null,{"$f":"'4PO'!AB50","v":0},{"$f":"'4PO'!AC50","v":0},{"$f":"'4PO'!AD50","v":0},null,null,null,null,null,null,null,{"$f":"'4PO'!AH50","v":0},{"$f":"'4PO'!AK50","v":0},{"$f":"'4PO'!AL50","v":0},{"$f":"'4PO'!AM50","v":0},null,null,null,null,null,null,null,{"$f":"'4PO'!AQ50","v":0},{"$f":"'4PO'!AT50","v":0},{"$f":"'4PO'!AU50","v":0},{"$f":"'4PO'!AV50","v":0},null,null,null,null,null,null,null,{"$f":"'4PO'!AZ50","v":0},{"$f":"'4PO'!BC41","v":0},{"$f":"'4PO'!BD41","v":0},{"$f":"'4PO'!BE41","v":0},null,null,null,null,null,null,null,{"$f":"'4PO'!BI41","v":0},{"$f":"'4PO'!BL50","v":0},{"$f":"'4PO'!BM50","v":0},{"$f":"'4PO'!BN50","v":0},null,null,null,null,null,null,null,{"$f":"'4PO'!BR50","v":0},{"$f":"'4PO'!BW50","v":0},{"$f":"'4PO'!BX50","v":0},{"$f":"'4PO'!BY50","v":0},null,null,null,null,null,null,null,{"$f":"'4PO'!CC50","v":0}]
[{"$f":"'4PO'!A42","v":0},{"$f":"'4PO'!B42","v":0},{"$f":"'4PO'!C42","v":0},null,null,null,null,null,null,null,{"$f":"'4PO'!G42","v":0},{"$f":"'4PO'!J41","v":0},{"$f":"'4PO'!K41","v":0},{"$f":"'4PO'!L41","v":0},null,null,null,null,null,null,null,{"$f":"'4PO'!P41","v":0},null,null,null,null,null,null,null,null,null,null,null,null,null,null,null,null,null,null,null,null,null,null,null,null,null,null,null,null,null,null,null,null,null,null,null,null,null,null,null,null,null,null,null,null,{"$f":"'4PO'!BC42","v":0},{"$f":"'4PO'!BD42","v":0},{"$f":"'4PO'!BE42","v":0},null,null,null,null,null,null,null,{"$f":"'4PO'!BI42","v":0}]
[{"$f":"'4PO'!A43","v":0},{"$f":"'4PO'!B43","v":0},{"$f":"'4PO'!C43","v":0},null,null,null,null,null,null,null,{"$f":"'4PO'!G43","v":0},{"$f":"'4PO'!J42","v":0},{"$f":"'4PO'!K42","v":0},{"$f":"'4PO'!L42","v":0},null,null,null,null,null,null,null,{"$f":"'4PO'!P42","v":0},null,null,null,null,null,null,null,null,null,null,null,null,null,null,null,null,null,null,null,null,null,null,null,null,null,null,null,null,null,null,null,null,null,null,null,null,null,null,null,null,null,null,null,null,{"$f":"'4PO'!BC43","v":0},{"$f":"'4PO'!BD43","v":0},{"$f":"'4PO'!BE43","v":0},null,null,null,null,null,null,null,{"$f":"'4PO'!BI43","v":0}]
[{"$f":"'4PO'!A44","v":0},{"$f":"'4PO'!B44","v":0},{"$f":"'4PO'!C44","v":0},null,null,null,null,null,null,null,{"$f":"'4PO'!G44","v":0},{"$f":"'4PO'!J43","v":0},{"$f":"'4PO'!K43","v":0},{"$f":"'4PO'!L43","v":0},null,null,null,null,null,null,null,{"$f":"'4PO'!P43","v":0},null,null,null,null,null,null,null,null,null,null,null,null,null,null,null,null,null,null,null,null,null,null,null,null,null,null,null,null,null,null,null,null,null,null,null,null,null,null,null,null,null,null,null,null,{"$f":"'4PO'!BC44","v":0},{"$f":"'4PO'!BD44","v":0},{"$f":"'4PO'!BE44","v":0},null,null,null,null,null,null,null,{"$f":"'4PO'!BI44","v":0}]
[{"$f":"'4PO'!A45","v":0},{"$f":"'4PO'!B45","v":0},{"$f":"'4PO'!C45","v":0},null,null,null,null,null,null,null,{"$f":"'4PO'!G45","v":0},{"$f":"'4PO'!J44","v":0},{"$f":"'4PO'!K44","v":0},{"$f":"'4PO'!L44","v":0},null,null,null,null,null,null,null,{"$f":"'4PO'!P44","v":0},null,null,null,null,null,null,null,null,null,null,null,null,null,null,null,null,null,null,null,null,null,null,null,null,null,null,null,null,null,null,null,null,null,null,null,null,null,null,null,null,null,null,null,null,{"$f":"'4PO'!BC45","v":0},{"$f":"'4PO'!BD45","v":0},{"$f":"'4PO'!BE45","v":0},null,null,null,null,null,null,null,{"$f":"'4PO'!BI45","v":0}]
[{"$f":"'4PO'!A46","v":0},{"$f":"'4PO'!B46","v":0},{"$f":"'4PO'!C46","v":0},null,null,null,null,null,null,null,{"$f":"'4PO'!G46","v":0},{"$f":"'4PO'!J45","v":0},{"$f":"'4PO'!K45","v":0},{"$f":"'4PO'!L45","v":0},null,null,null,null,null,null,null,{"$f":"'4PO'!P45","v":0},null,null,null,null,null,null,null,null,null,null,null,null,null,null,null,null,null,null,null,null,null,null,null,null,null,null,null,null,null,null,null,null,null,null,null,null,null,null,null,null,null,null,null,null,{"$f":"'4PO'!BC46","v":0},{"$f":"'4PO'!BD46","v":0},{"$f":"'4PO'!BE46","v":0},null,null,null,null,null,null,null,{"$f":"'4PO'!BI46","v":0}]
[]
[]
[]
[]
[]
[]
[]
[null,null,null,null,null,null,null,null,"TOTAL",null,{"$f":"SUM(K11:K37)","v":117},null,null,null,null,null,null,null,null,"TOTAL",null,{"$f":"SUM(V11:V37)","v":8},null,null,null,null,null,null,null,null,"TOTAL",null,{"$f":"SUM(AG11:AG37)","v":25},null,null,null,null,null,null,null,null,"TOTAL",null,{"$f":"SUM(AR11:AR37)","v":10},null,null,null,null,null,null,null,null,"TOTAL",null,{"$f":"SUM(BC11:BC37)","v":29},null,null,null,null,null,null,null,null,"TOTAL",null,{"$f":"SUM(BN11:BN37)","v":1},null,null,null,null,null,null,null,null,"TOTAL",null,{"$f":"SUM(BY11:BY37)","v":74.5},null,null,null,null,null,null,null,null,"TOTAL",null,{"$f":"SUM(CJ11:CJ37)","v":8},null,null,null,null,null,null,null,null,"TOTAL",null,{"$f":"SUM(CU11:CU37)","v":1}]
["Date Inpected:",null,null,null,null,null,"Date Received:",null,null,null,null,"Date Inpected:",null,null,null,null,null,"Date Received:",null,null,null,null,"Date Inpected:",null,null,null,null,null,"Date Received:",null,null,null,null,"Date Inpected:",null,null,null,null,null,"Date Received:",null,null,null,null,"Date Inpected:",null,null,null,null,null,"Date Received:",null,null,null,null,"Date Inpected:",null,null,null,null,null,"Date Received:",null,null,null,null,"Date Inpected:",null,null,null,null,null,"Date Received:",null,null,null,null,"Date Inpected:",null,null,null,null,null,"Date Received:",null,null,null,null,"Date Inpected:",null,null,null,null,null,"Date Received:"]
[]
[null,"Inspected, Verified and found OK as to quantity",null,null,null,null,null,"Complete",null,null,null,null,"Inspected, Verified and found OK as to quantity",null,null,null,null,null,"Complete",null,null,null,null,"Inspected, Verified and found OK as to quantity",null,null,null,null,null,"Complete",null,null,null,null,"Inspected, Verified and found OK as to quantity",null,null,null,null,null,"Complete",null,null,null,null,"Inspected, Verified and found OK as to quantity",null,null,null,null,null,"Complete",null,null,null,null,"Inspected, Verified and found OK as to quantity",null,null,null,null,null,"Complete",null,null,null,null,"Inspected, Verified and found OK as to quantity",null,null,null,null,null,"Complete",null,null,null,null,"Inspected, Verified and found OK as to quantity",null,null,null,null,null,"Complete",null,null,null,null,"Inspected, Verified and found OK as to quantity",null,null,null,null,null,"Complete"]
[null,"and specifications.",null,null,null,null,null,"Partial",null,null,null,null,"and specifications.",null,null,null,null,null,"Partial",null,null,null,null,"and specifications.",null,null,null,null,null,"Partial",null,null,null,null,"and specifications.",null,null,null,null,null,"Partial",null,null,null,null,"and specifications.",null,null,null,null,null,"Partial",null,null,null,null,"and specifications.",null,null,null,null,null,"Partial",null,null,null,null,"and specifications.",null,null,null,null,null,"Partial",null,null,null,null,"and specifications.",null,null,null,null,null,"Partial",null,null,null,null,"and specifications.",null,null,null,null,null,"Partial"]
[]
[]
[null,"ERA W. ABING",null,null,null,null,null,null,"EVELYN S. ONGCO",null,null,null,{"$f":"$B$45","v":"ERA W. ABING"},null,null,null,null,null,null,"EVELYN S. ONGCO",null,null,null,{"$f":"$B$45","v":"ERA W. ABING"},null,null,null,null,null,null,"EVELYN S. ONGCO",null,null,null,{"$f":"$B$45","v":"ERA W. ABING"},null,null,null,null,null,null,"EVELYN S. ONGCO",null,null,null,{"$f":"$B$45","v":"ERA W. ABING"},null,null,null,null,null,null,"EVELYN S. ONGCO",null,null,null,{"$f":"$B$45","v":"ERA W. ABING"},null,null,null,null,null,null,"EVELYN S. ONGCO",null,null,null,{"$f":"$B$45","v":"ERA W. ABING"},null,null,null,null,null,null,"EVELYN S. ONGCO",null,null,null,{"$f":"$B$45","v":"ERA W. ABING"},null,null,null,null,null,null,"EVELYN S. ONGCO",null,null,null,{"$f":"$B$45","v":"ERA W. ABING"},null,null,null,null,null,null,"EVELYN S. ONGCO"]
[null,"Teacher I",null,null,null,null,null,null,"Teacher III",null,null,null,{"$f":"$B$46","v":"Teacher I"},null,null,null,null,null,null,"Teacher I",null,null,null,{"$f":"$B$46","v":"Teacher I"},null,null,null,null,null,null,"Teacher I",null,null,null,{"$f":"$B$46","v":"Teacher I"},null,null,null,null,null,null,"Teacher I",null,null,null,{"$f":"$B$46","v":"Teacher I"},null,null,null,null,null,null,"Teacher I",null,null,null,{"$f":"$B$46","v":"Teacher I"},null,null,null,null,null,null,"Teacher I",null,null,null,{"$f":"$B$46","v":"Teacher I"},null,null,null,null,null,null,"Teacher I",null,null,null,{"$f":"$B$46","v":"Teacher I"},null,null,null,null,null,null,"Teacher I",null,null,null,{"$f":"$B$46","v":"Teacher I"},null,null,null,null,null,null,"Teacher I"]
[null,"Inspection Officer",null,null,null,null,null,null,"School Property Custodian",null,null,null,"Inspection Officer",null,null,null,null,null,null,"School Property Custodian",null,null,null,"Inspection Officer",null,null,null,null,null,null,"School Property Custodian",null,null,null,"Inspection Officer",null,null,null,null,null,null,"School Property Custodian",null,null,null,"Inspection Officer",null,null,null,null,null,null,"School Property Custodian",null,null,null,"Inspection Officer",null,null,null,null,null,null,"School Property Custodian",null,null,null,"Inspection Officer",null,null,null,null,null,null,"School Property Custodian",null,null,null,"Inspection Officer",null,null,null,null,null,null,"School Property Custodian",null,null,null,"Inspection Officer",null,null,null,null,null,null,"School Property Custodian"]
[]
[5,null,null,null,null,null,null,null,null,null,null,5,null,null,null,null,null,null,null,null,null,null,5,null,null,null,null,null,null,null,null,null,null,5,null,null,null,null,null,null,null,null,null,null,5,null,null,null,null,null,null,null,null,null,null,5,null,null,null,null,null,null,null,null,null,null,5,null,null,null,null,null,null,null,null,null,null,5,null,null,null,null,null,null,null,null,null,null,5]

{"sheet":"4PO","index":7,"n_rows":66,"n_cols":81,"rows_kept":66,"cut":false,"hidden":false,"merged":[[23,74,23,76],[23,79,23,80],[25,74,25,77],[50,74,50,77],[51,74,51,80],[62,77,62,78],[62,79,62,80],[63,77,63,78],[63,79,63,80],[62,68,62,69],[62,70,62,71],[63,41,63,42],[63,43,63,44],[0,77,0,78],[0,79,0,80],[1,77,1,78],[1,79,1,80],[2,77,2,78],[2,79,2,80],[11,72,11,80],[12,72,12,80],[14,73,14,76],[14,77,14,78],[14,79,14,80],[15,73,15,76],[15,77,15,78],[15,79,15,80],[16,73,16,76],[16,77,16,78],[16,79,16,80],[17,73,17,76],[22,74,22,76],[22,79,22,80],[63,50,63,51],[63,52,63,53],[63,59,63,60],[63,61,63,62],[63,68,63,69],[63,70,63,71],[25,38,25,41],[25,47,25,50],[25,56,25,59],[25,65,25,68],[50,38,50,41],[50,47,50,50],[50,56,50,59],[50,65,50,68],[51,38,51,44],[51,47,51,53],[51,56,51,62],[51,65,51,71],[62,41,62,42],[62,43,62,44],[62,50,62,51],[62,52,62,53],[62,59,62,60],[62,61,62,62],[22,70,22,71],[23,38,23,40],[23,43,23,44],[23,47,23,49],[23,52,23,53],[23,56,23,58],[23,61,23,62],[23,65,23,67],[23,70,23,71],[17,37,17,40],[17,46,17,49],[17,55,17,58],[17,64,17,67],[22,38,22,40],[22,43,22,44],[22,47,22,49],[22,52,22,53],[22,56,22,58],[22,61,22,62],[22,65,22,67],[15,64,15,67],[15,68,15,69],[15,70,15,71],[16,37,16,40],[16,41,16,42],[16,43,16,44],[16,46,16,49],[16,50,16,51],[16,52,16,53],[16,55,16,58],[16,59,16,60],[16,61,16,62],[16,64,16,67],[16,68,16,69],[16,70,16,71],[15,37,15,40],[15,41,15,42],[15,43,15,44],[15,46,15,49],[15,50,15,51],[15,52,15,53],[15,55,15,58],[15,59,15,60],[15,61,15,62],[12,36,12,44],[12,45,12,53],[12,54,12,62],[12,63,12,71],[14,37,14,40],[14,41,14,42],[14,43,14,44],[14,46,14,49],[14,50,14,51],[14,52,14,53],[14,55,14,58],[14,59,14,60],[14,61,14,62],[14,64,14,67],[14,68,14,69],[14,70,14,71],[2,41,2,42],[2,43,2,44],[2,50,2,51],[2,52,2,53],[2,59,2,60],[2,61,2,62],[2,68,2,69],[2,70,2,71],[11,36,11,44],[11,45,11,53],[11,54,11,62],[11,63,11,71],[0,41,0,42],[0,43,0,44],[0,50,0,51],[0,52,0,53],[0,59,0,60],[0,61,0,62],[0,68,0,69],[0,70,0,71],[1,41,1,42],[1,43,1,44],[1,50,1,51],[1,52,1,53],[1,59,1,60],[1,61,1,62],[1,68,1,69],[1,70,1,71],[16,34,16,35],[17,28,17,31],[22,29,22,31],[22,34,22,35],[23,29,23,31],[23,34,23,35],[25,29,25,32],[50,29,50,32],[51,29,51,35],[0,23,0,24],[0,25,0,26],[11,18,11,26],[16,28,16,31],[14,23,14,24],[14,28,14,31],[14,32,14,33],[62,16,62,17],[63,5,63,6],[63,7,63,8],[62,5,62,6],[16,32,16,33],[62,32,62,33],[63,23,63,24],[63,25,63,26],[25,20,25,23],[50,20,50,23],[51,20,51,26],[62,23,62,24],[62,25,62,26],[63,32,63,33],[17,10,17,13],[17,19,17,22],[14,10,14,13],[63,34,63,35],[62,14,62,15],[22,16,22,17],[22,20,22,22],[22,25,22,26],[23,16,23,17],[25,11,25,14],[50,11,50,17],[61,14,61,15],[61,16,61,17],[23,20,23,22],[23,25,23,26],[22,11,22,13],[23,11,23,13],[62,34,62,35],[14,34,14,35],[15,28,15,31],[15,32,15,33],[0,14,0,15],[0,16,0,17],[1,14,1,15],[1,16,1,17],[2,14,2,15],[2,16,2,17],[11,9,11,17],[1,23,1,24],[1,25,1,26],[2,23,2,24],[2,25,2,26],[15,34,15,35],[0,32,0,33],[0,34,0,35],[1,32,1,33],[1,34,1,35],[2,32,2,33],[2,34,2,35],[11,27,11,35],[12,27,12,35],[14,25,14,26],[14,14,14,15],[14,16,14,17],[12,9,12,17],[12,18,12,26],[14,19,14,22],[15,10,15,13],[15,14,15,15],[15,16,15,17],[16,10,16,13],[16,14,16,15],[16,16,16,17],[15,19,15,22],[15,23,15,24],[15,25,15,26],[16,19,16,22],[16,23,16,24],[16,25,16,26],[17,1,17,4],[15,5,15,6],[15,7,15,8],[16,1,16,4],[14,5,14,6],[14,7,14,8],[15,1,15,4],[14,1,14,4],[62,7,62,8],[51,2,51,8],[50,2,50,5],[25,2,25,5],[23,2,23,4],[23,7,23,8],[22,2,22,4],[22,7,22,8],[12,0,12,8],[11,0,11,8],[2,5,2,6],[2,7,2,8],[0,5,0,6],[0,7,0,8],[1,5,1,6],[1,7,1,8],[16,5,16,6],[16,7,16,8],[3,7,3,8]]}
["Republic of the Philippines",null,null,null,null,"Project Ref. Number",null,null,null,"Republic of the Philippines",null,null,null,null,"Project Ref. Number",null,null,null,"Republic of the Philippines",null,null,null,null,"Project Ref. Number",null,null,null,"Republic of the Philippines",null,null,null,null,"Project Ref. Number",null,null,null,"Republic of the Philippines",null,null,null,null,"Project Ref. Number",null,null,null,"Republic of the Philippines",null,null,null,null,"Project Ref. Number",null,null,null,"Republic of the Philippines",null,null,null,null,"Project Ref. Number",null,null,null,"Republic of the Philippines",null,null,null,null,"Project Ref. Number",null,null,null,"Republic of the Philippines",null,null,null,null,"Project Ref. Number"]
["Department of Education",null,null,null,null,"Name of the Project",null,"Repair and Maintenance",null,"Department of Education",null,null,null,null,"Name of the Project",null,"Repair and Maintenance",null,"Department of Education",null,null,null,null,"Name of the Project",null,"Repair and Maintenance",null,"Department of Education",null,null,null,null,"Name of the Project",null,"Office Supplies",null,"Department of Education",null,null,null,null,"Name of the Project",null,"Office Supplies",null,"Department of Education",null,null,null,null,"Name of the Project",null,"Office Supplies",null,"Department of Education",null,null,null,null,"Name of the Project",null,"Office Supplies",null,"Department of Education",null,null,null,null,"Name of the Project",null,"Repair and Maintenance",null,"Department of Education",null,null,null,null,"Name of the Project",null,"Repair and Maintenance"]
["Region VII, Central Visayas",null,null,null,null,"Location of the Project",null,"Marigondon ES ",null,"Region VII, Central Visayas",null,null,null,null,"Location of the Project",null,"Marigondon ES ",null,"Region VII, Central Visayas",null,null,null,null,"Location of the Project",null,"Marigondon ES ",null,"Region VII, Central Visayas",null,null,null,null,"Location of the Project",null,"Marigondon ES ",null,"Region VII, Central Visayas",null,null,null,null,"Location of the Project",null,"Marigondon ES ",null,"Region VII, Central Visayas",null,null,null,null,"Location of the Project",null,"Marigondon ES ",null,"Region VII, Central Visayas",null,null,null,null,"Location of the Project",null,"Marigondon ES ",null,"Region VII, Central Visayas",null,null,null,null,"Location of the Project",null,"Marigondon ES ",null,"Region VII, Central Visayas",null,null,null,null,"Location of the Project",null,"Marigondon ES "]
["Division of Lapu-Lapu City",null,null,null,null,null,"DepEd-Division of LLC TIN","'000-863-958-020",null,"Division of Lapu-Lapu City",null,null,null,null,null,null,null,null,"Division of Lapu-Lapu City",null,null,null,null,null,null,null,null,"Division of Lapu-Lapu City",null,null,null,null,null,null,null,null,"Division of Lapu-Lapu City",null,null,null,null,null,null,null,null,"Division of Lapu-Lapu City",null,null,null,null,null,null,null,null,"Division of Lapu-Lapu City",null,null,null,null,null,null,null,null,"Division of Lapu-Lapu City",null,null,null,null,null,null,null,null,"Division of Lapu-Lapu City"]
["South District",null,null,null,null,null,null,null,null,"South District",null,null,null,null,null,null,null,null,"South District",null,null,null,null,null,null,null,null,"South District",null,null,null,null,null,null,null,null,"South District",null,null,null,null,null,null,null,null,"South District",null,null,null,null,null,null,null,null,"South District",null,null,null,null,null,null,null,null,"South District",null,null,null,null,null,null,null,null,"South District"]
["MARIGONDON ELEMENTARY SCHOOL",null,null,null,null,null,null,null,null,{"$f":"A6","v":"MARIGONDON ELEMENTARY SCHOOL"},null,null,null,null,null,null,null,null,{"$f":"J6","v":"MARIGONDON ELEMENTARY SCHOOL"},null,null,null,null,null,null,null,null,{"$f":"S6","v":"MARIGONDON ELEMENTARY SCHOOL"},null,null,null,null,null,null,null,null,"MARIGONDON ELEMENTARY SCHOOL",null,null,null,null,null,null,null,null,"MARIGONDON ELEMENTARY SCHOOL",null,null,null,null,null,null,null,null,"MARIGONDON ELEMENTARY SCHOOL",null,null,null,null,null,null,null,null,"MARIGONDON ELEMENTARY SCHOOL",null,null,null,null,null,null,null,null,"MARIGONDON ELEMENTARY SCHOOL"]
[]
[]
[]
[]
[]
["PURCHASE ORDER",null,null,null,null,null,null,null,null,"PURCHASE ORDER",null,null,null,null,null,null,null,null,"PURCHASE ORDER",null,null,null,null,null,null,null,null,"PURCHASE ORDER",null,null,null,null,null,null,null,null,"PURCHASE ORDER",null,null,null,null,null,null,null,null,"PURCHASE ORDER",null,null,null,null,null,null,null,null,"PURCHASE ORDER",null,null,null,null,null,null,null,null,"PURCHASE ORDER",null,null,null,null,null,null,null,null,"PURCHASE ORDER"]
["Department of Education - Lapu-Lapu City",null,null,null,null,null,null,null,null,"Department of Education - Lapu-Lapu City",null,null,null,null,null,null,null,null,"Department of Education - Lapu-Lapu City",null,null,null,null,null,null,null,null,"Department of Education - Lapu-Lapu City",null,null,null,null,null,null,null,null,"Department of Education - Lapu-Lapu City",null,null,null,null,null,null,null,null,"Department of Education - Lapu-Lapu City",null,null,null,null,null,null,null,null,"Department of Education - Lapu-Lapu City",null,null,null,null,null,null,null,null,"Department of Education - Lapu-Lapu City",null,null,null,null,null,null,null,null,"Department of Education - Lapu-Lapu City"]
[]
["Supplier:","ROY ENTERPRISES",null,null,null,"P.O. No.:",null,2001001,null,"Supplier:","SAVER DEPOT",null,null,null,"P.O. No.:",null,{"$f":"H15+1","v":2001002},null,"Supplier:","Duane & Dwight",null,null,null,"P.O. No.:",null,{"$f":"Q15+1","v":2001003},null,"Supplier:","Savers Depot",null,null,null,"P.O. No.:",null,{"$f":"Z15+1","v":2001004},null,"Supplier:","La Nueva Supermarket",null,null,null,"P.O. No.:",null,{"$f":"AI15+1","v":2001005},null,"Supplier:","Vannix Computers",null,null,null,"P.O. No.:",null,{"$f":"AR15+1","v":2001006},null,"Supplier:","Onecall Marketing",null,null,null,"P.O. No.:",null,{"$f":"BA15+1","v":2001007},null,"Supplier:","Northern Septic Tank Services",null,null,null,"P.O. No.:",null,{"$f":"BJ15+1","v":2001008},null,"Supplier:",null,null,null,null,"P.O. No.:",null,{"$f":"BS15+1","v":2001009}]
["Address:","Pajo, Lapu-Lapu City",null,null,null,"Date:",null,"2020-01-27",null,"Address:","Sudtunggan, Lapu-Lapu City",null,null,null,"Date:",null,"2020-01-27",null,"Address:","Marigondon LLC",null,null,null,"Date:",null,"2018-01-11",null,"Address:","Basak, Lapu-Lapu City",null,null,null,"Date:",null,"2018-01-11",null,"Address:","Pajo, Lapu-Lapu City",null,null,null,"Date:",null,"2018-01-11",null,"Address:","A.C. Cortes Ave. Mandaue City",null,null,null,"Date:",null,"2018-01-11",null,"Address:","7 Molave St, Brgy Camputhaw, Cebu City",null,null,null,"Date:",null,"2018-01-11",null,"Address:","Poblacion, Mandaue City",null,null,null,"Date:",null,"2018-01-15",null,"Address:",null,null,null,null,"Date:",null,"2017-01-23"]
["Email Add:",null,null,null,null,"Mode of Procurement",null,"Shopping",null,"Email Add:",null,null,null,null,"Mode of Procurement",null,"Shopping",null,"Email Add:",null,null,null,null,"Mode of Procurement",null,"Shopping",null,"Email Add:",null,null,null,null,"Mode of Procurement",null,"Shopping",null,"Email Add:",null,null,null,null,"Mode of Procurement",null,"Shopping",null,"Email Add:",null,null,null,null,"Mode of Procurement",null,"Shopping",null,"Email Add:",null,null,null,null,"Mode of Procurement",null,"Shopping",null,"Email Add:",null,null,null,null,"Mode of Procurement",null,"Shopping",null,"Email Add:",null,null,null,null,"Mode of Procurement",null,"Shopping"]
["TIN",null,null,null,null,null,null,null,null,"TIN",null,null,null,null,null,null,null,null,"TIN",null,null,null,null,null,null,null,null,"TIN",null,null,null,null,null,null,null,null,"TIN",null,null,null,null,null,null,null,null,"TIN",null,null,null,null,null,null,null,null,"TIN",null,null,null,null,null,null,null,null,"TIN",null,null,null,null,null,null,null,null,"TIN"]
[]
["Gentlemen:",null,null,null,null,null,null,null,null,"Gentlemen:",null,null,null,null,null,null,null,null,"Gentlemen:",null,null,null,null,null,null,null,null,"Gentlemen:",null,null,null,null,null,null,null,null,"Gentlemen:",null,null,null,null,null,null,null,null,"Gentlemen:",null,null,null,null,null,null,null,null,"Gentlemen:",null,null,null,null,null,null,null,null,"Gentlemen:",null,null,null,null,null,null,null,null,"Gentlemen:"]
[null,"Please furnish this office articles subject to the terms and conditions contained herein",null,null,null,null,null,null,null,null,"Please furnish this office articles subject to the terms and conditions contained herein",null,null,null,null,null,null,null,null,"Please furnish this office articles subject to the terms and conditions contained herein",null,null,null,null,null,null,null,null,"Please furnish this office articles subject to the terms and conditions contained herein",null,null,null,null,null,null,null,null,"Please furnish this office articles subject to the terms and conditions contained herein",null,null,null,null,null,null,null,null,"Please furnish this office articles subject to the terms and conditions contained herein",null,null,null,null,null,null,null,null,"Please furnish this office articles subject to the terms and conditions contained herein",null,null,null,null,null,null,null,null,"Please furnish this office articles subject to the terms and conditions contained herein",null,null,null,null,null,null,null,null,"Please furnish this office articles subject to the terms and conditions contained herein"]
[]
["Place of Delivery",null,"Marigondon Elementary School",null,null,null,"Delivery Term:",null,null,"Place of Delivery",null,{"$f":"C23","v":"Marigondon Elementary School"},null,null,null,"Delivery Term:",null,null,"Place of Delivery",null,{"$f":"L23","v":"Marigondon Elementary School"},null,null,null,"Delivery Term:","Pick-up",null,"Place of Delivery",null,{"$f":"U23","v":"Marigondon Elementary School"},null,null,null,"Delivery Term:","Pick-up",null,"Place of Delivery",null,"Marigondon Elementary School",null,null,null,"Delivery Term:",null,null,"Place of Delivery",null,{"$f":"AM23","v":"Marigondon Elementary School"},null,null,null,"Delivery Term:",null,null,"Place of Delivery",null,{"$f":"AV23","v":"Marigondon Elementary School"},null,null,null,"Delivery Term:",null,null,"Place of Delivery",null,{"$f":"BE23","v":"Marigondon Elementary School"},null,null,null,"Delivery Term:","Pick-up",null,"Place of Delivery",null,{"$f":"BN23","v":"Marigondon Elementary School"},null,null,null,"Delivery Term:","Pick-up"]
["Date of Delivery",null,{"$f":"H16","v":"2020-01-27"},null,null,null,"Payment Term:","Cash",null,"Date of Delivery",null,{"$f":"PODate2","v":"2020-01-27"},null,null,null,"Payment Term:","Cash",null,"Date of Delivery",null,{"$f":"PODate3","v":"2018-01-11"},null,null,null,"Payment Term:","Cash",null,"Date of Delivery",null,{"$f":"PODate4","v":"2018-01-11"},null,null,null,"Payment Term:","Cash",null,"Date of Delivery",null,{"$f":"AR16","v":"2018-01-11"},null,null,null,"Payment Term:","Cash",null,"Date of Delivery",null,{"$f":"BA16","v":"2018-01-11"},null,null,null,"Payment Term:","Cash",null,"Date of Delivery",null,{"$f":"PODate7","v":"2018-01-11"},null,null,null,"Payment Term:","Cash",null,"Date of Delivery",null,{"$f":"PODate8","v":"2018-01-15"},null,null,null,"Payment Term:","Cash",null,"Date of Delivery",null,{"$f":"PODate8","v":"2018-01-15"},null,null,null,"Payment Term:","Cash"]
[]
["Stock No.","Unit","Item Description",null,null,null,"Quantity","Unit Cost","Amount","Stock No.","Unit","Item Description",null,null,null,"Quantity","Unit Cost","Amount","Stock No.","Unit","Item Description",null,null,null,"Quantity","Unit Cost","Amount","Stock No.","Unit","Item Description",null,null,null,"Quantity","Unit Cost","Amount","Stock No.","Unit","Item Description",null,null,null,"Quantity","Unit Cost","Amount","Stock No.","Unit","Item Description",null,null,null,"Quantity","Unit Cost","Amount","Stock No.","Unit","Item Description",null,null,null,"Quantity","Unit Cost","Amount","Stock No.","Unit","Item Description",null,null,null,"Quantity","Unit Cost","Amount","Stock No.","Unit","Item Description",null,null,null,"Quantity","Unit Cost","Amount"]
[1,"roll","Loomex wire, #12",null,null,null,1,2200,{"$f":"H27*G27","v":2200},3,"set","Flood light, Led 30w",null,null,null,3,1350,{"$f":"Q27*P27","v":4050},8,"bag","Adhesive",null,null,17,13,235,{"$f":"Z27*Y27","v":3055},4,"set","Flood light, Led 30w",null,null,null,3,1800,{"$f":"AH27*AI27","v":5400},1,"ream","Bondpaper Long, Sub 20",null,null,null,20,159,{"$f":"AR27*AQ27","v":3180},1,"set","Printer, CMYK",null,null,null,1,4995,{"$f":"BA27*AZ27","v":4995},1,"roll","Coaxial Cable",null,null,null,1.5,8100,{"$f":"BJ27*BI27","v":12150},1,"tl","Septic vault suction",null,null,null,8,3400,{"$f":"BS27*BR27","v":27200},null,null,null,null,null,null,1,1420,{"$f":"CB27*CA27","v":1420}]
[2,"pcs","Safety breaker, Surface type (15amp)",null,null,null,5,387.5,{"$f":"H28*G28","v":1937.5},4,"set","Flood light, Led 50w",null,null,null,2,3000,{"$f":"Q28*P28","v":6000},9,"bag","Cement",null,null,16,12,190,{"$f":"Z28*Y28","v":2280},5,"set","Flood light, Led 50w",null,null,null,2,2250,{"$f":"AH28*AI28","v":4500},2,"pcs","White board pen, (black, blue & red)",null,null,null,9,47.5,{"$f":"AR28*AQ28","v":427.5},null,null,null,null,null,null,null,null,{"$f":"BA28*AZ28","v":0},2,"pcs","DC Adapter 12v, 5A",null,null,null,1,605,{"$f":"BJ28*BI28","v":605},null,null,null,null,null,null,null,null,{"$f":"BS28*BR28","v":0},null,null,null,null,null,null,null,null,{"$f":"CB28*CA28","v":0}]
[5,"roll","Electrical Tape, Big",null,null,null,5,45,225,10,"pck","Staple wire, Concrete",null,null,null,1,118.5,118.5,null,null,null,null,null,null,null,null,0,6,"pc","Allen Wrench",null,null,null,1,129,129,null,null,null,null,null,null,null,null,0,null,null,null,null,null,null,null,null,0,3,"pcs","Camera",null,null,null,5,1595,7975,null,null,null,null,null,null,null,null,{"$f":"BS29*BR29","v":0},null,null,null,null,null,null,null,null,{"$f":"CB29*CA29","v":0}]
[6,"pcs","Tiles, 60 x 60",null,null,null,100,158.08000000000001,15808.000000000002,11,"pck","Tox w/ screw",null,null,null,1,65.5,65.5,null,null,null,null,null,null,null,null,0,7,"pc","Soldering Iron",null,null,null,1,99,99,null,null,null,null,null,null,null,null,0,null,null,null,null,null,null,null,null,0,4,"pcs","BNC Cable, 30m",null,null,null,3,415,1245,null,null,null,null,null,null,null,null,0,null,null,null,null,null,null,null,null,0]
[9,"bag","Tile Grout",null,null,null,2,65,130,12,"pck","Stainless, Plain washer 1/4",null,null,null,1,16,16,null,null,null,null,null,null,null,null,0,8,"pck","Staple wire, Concrete",null,null,null,1,118.5,118.5,null,null,null,null,null,null,null,null,0,null,null,null,null,null,null,null,null,0,5,"pcs","BNC, Adaptor, Male",null,null,null,19,70,1330,null,null,null,null,null,null,null,null,0,null,null,null,null,null,null,null,null,0]
[13,"pcs","Switch flush typew, 1 gang",null,null,null,1,60,60,null,null,null,null,null,null,null,null,null,null,null,null,null,null,null,null,null,0,9,"pck","Tox w/ screw",null,null,null,1,65.5,65.5,null,null,null,null,null,null,null,null,0,null,null,null,null,null,null,null,null,0,6,"pcs","BNC, Adaptor, Female",null,null,null,19,70,1330,null,null,null,null,null,null,null,null,0,null,null,null,null,null,null,null,null,0]
[14,"pcs","Floor drain",null,null,null,1,20,20,null,null,null,null,null,null,null,null,null,null,null,null,null,null,null,null,null,0,10,"pck","Stainless, Plain washer 1/4",null,null,null,1,16,{"$f":"AH33*AI33","v":16},null,null,null,null,null,null,null,null,0,null,null,null,null,null,null,null,null,0,7,"pcs","BNC, Barrel",null,null,null,19,60,1140,null,null,null,null,null,null,null,null,0,null,null,null,null,null,null,null,null,0]
[15,"pcs","Diamond cutting wheel",null,null,null,2,140,280,null,null,null,null,null,null,null,null,null,null,null,null,null,null,null,null,null,0,null,null,null,null,null,null,null,null,0,null,null,null,null,null,null,null,null,0,null,null,null,null,null,null,null,null,0,8,"roll","Coaxial cable, 20m",null,null,null,3,315,945,null,null,null,null,null,null,null,null,0,null,null,null,null,null,null,null,null,0]
[null,null,null,null,null,null,null,null,0,null,null,null,null,null,null,null,null,0,null,null,null,null,null,null,null,null,0,null,null,null,null,null,null,null,null,0,null,null,null,null,null,null,null,null,0,null,null,null,null,null,null,null,null,0,9,"roll","Coaxial cable, 30m",null,null,null,4,415,1660,null,null,null,null,null,null,null,null,0,null,null,null,null,null,null,null,null,0]
[null,null,null,null,null,null,null,null,0,null,null,null,null,null,null,null,null,0,null,null,null,null,null,null,null,null,0,null,null,null,null,null,null,null,null,0,null,null,null,null,null,null,null,null,0,null,null,null,null,null,null,null,null,0,null,null,null,null,null,null,null,null,0,null,null,null,null,null,null,null,null,0,null,null,null,null,null,null,null,null,0]
[null,null,null,null,null,null,null,null,0,null,null,null,null,null,null,null,null,0,null,null,null,null,null,null,null,null,0,null,null,null,null,null,null,null,null,0,null,null,null,null,null,null,null,null,0,null,null,null,null,null,null,null,null,0,null,null,null,null,null,null,null,null,0,null,null,null,null,null,null,null,null,0,null,null,null,null,null,null,null,null,0]
[null,null,null,null,null,null,null,null,0,null,null,null,null,null,null,null,null,0,null,null,null,null,null,null,null,null,0,null,null,null,null,null,null,null,null,0,null,null,null,null,null,null,null,null,0,null,null,null,null,null,null,null,null,0,null,null,null,null,null,null,null,null,0,null,null,null,null,null,null,null,null,0,null,null,null,null,null,null,null,null,0]
[null,null,null,null,null,null,null,null,0,null,null,null,null,null,null,null,null,0,null,null,null,null,null,null,null,null,0,null,null,null,null,null,null,null,null,0,null,null,null,null,null,null,null,null,0,null,null,null,null,null,null,null,null,0,null,null,null,null,null,null,null,null,0,null,null,null,null,null,null,null,null,0,null,null,null,null,null,null,null,null,0]
[null,null,null,null,null,null,null,null,0,null,null,null,null,null,null,null,null,0,null,null,null,null,null,null,null,null,0,null,null,null,null,null,null,null,null,0,null,null,null,null,null,null,null,null,0,null,null,null,null,null,null,null,null,0,null,null,null,null,null,null,null,null,0,null,null,null,null,null,null,null,null,0,null,null,null,null,null,null,null,null,0]
[null,null,null,null,null,null,null,null,0,null,null,null,null,null,null,null,null,0,null,null,null,null,null,null,null,null,0,null,null,null,null,null,null,null,null,0,null,null,null,null,null,null,null,null,0,null,null,null,null,null,null,null,null,0,null,null,null,null," ",null,null,null,0,null,null,null,null,null,null,null,null,0,null,null,null,null,null,null,null,null,0]
[null,null,null,null,null,null,null,null,0,null,null,null,null,null,null,null,null,0,null,null,null,null,null,null,null,null,0,null,null,null,null,null,null,null,null,0,null,null,null,null,null,null,null,null,0,null,null,null,null,null,null,null,null,0,null,null,null,null,null,null,null,null,0,null,null,null,null,null,null,null,null,0,null,null,null,null,null,null,null,null,0]
[null,null,null,null,null,null,null,null,0,null,null,null,null,null,null,null,null,{"$f":"Q43*P43","v":0},null,null,null,null,null,null,null,null,0,null,null,null,null,null,null,null,null,0,null,null,null,null,null,null,null,null,0,null,null,null,null,null,null,null,null,0,null,null,null,null,null,null,null,null,0,null,null,null,null,null,null,null,null,0,null,null,null,null,null,null,null,null,0]
[null,null,null,null,null,null,null,null,0,null,null,null,null,null,null,null,null,0,null,null,null,null,null,null,null,null,0,null,null,null,null,null,null,null,null,0,null,null,null,null,null,null,null,null,0,null,null,null,null,null,null,null,null,0,null,null,null,null,null,null,null,null,0,null,null,null,null,null,null,null,null,0,null,null,null,null,null,null,null,null,0]
[null,null,null,null,null,null,null,null,0,null,null,null,null,null,null,null,null,0,null,null,null,null,null,null,null,null,0,null,null,null,null,null,null,null,null,0,null,null,null,null,null,null,null,null,0,null,null,null,null,null,null,null,null,0,null,null,null,null,null,null,null,null,0,null,null,null,null,null,null,null,null,0,null,null,null,null,null,null,null,null,0]
[null,null,null,null,null,null,null,null,0,null,null,null,null,null,null,null,null,0,null,null,null,null,null,null,null,null,0,null,null,null,null,null,null,null,null,0,null,null,null,null,null,null,null,null,0,null,null,null,null,null,null,null,null,0,null,null,null,null,null,null,null,null,0,null,null,null,null,null,null,null,null,0,null,null,null,null,null,null,null,null,0]
[null,null,null,null,null,null,null,null,0,null,null,null,null,null,null,null,null,0,null,null,null,null,null,null,null,null,0,null,null,null,null,null,null,null,null,0,null,null,null,null,null,null,null,null,0,null,null,null,null,null,null,null,null,0,null,null,null,null,null,null,null,null,0,null,null,null,null,null,null,null,null,0,null,null,null,null,null,null,null,null,0]
[null,null,null,null,null,null,null,null,0,null,null,null,null,null,null,null,null,0,null,null,null,null,null,null,null,null,0,null,null,null,null,null,null,null,null,0,null,null,null,null,null,null,null,null,0,null,null,null,null,null,null,null,null,0,null,null,null,null,null,null,null,null,0,null,null,null,null,null,null,null,null,0,null,null,null,null,null,null,null,null,0]
[null,null,null,null,null,null,null,null,0,null,null,null,null,null,null,null,null,0,null,null,null,null,null,null,null,null,0,null,null,null,null,null,null,null,null,0,null,null,null,null,null,null,null,null,0,null,null,null,null,null,null,null,null,0,null,null,null,null,null,null,null,null,0,null,null,null,null,null,null,null,null,0,null,null,null,null,null,null,null,null,0]
[null,null,null,null,null,null,null,null,0,null,null,null,null,null,null,null,null,{"$f":"SUM(R27:R49)","v":10250},null,null,null,null,null,null,null,null,0,null,null,null,null,null,null,null,null,0,null,null,null,null,null,null,null,null,0,null,null,null,null,null,null,null,null,0,null,null,null,null,null,null,null,null,0,null,null,null,null,null,null,null,null,0,null,null,null,null,null,null,null,null,0]
[null,null,"TOTAL",null,null,null,null,null,{"$f":"SUM(I27:I50)","v":20660.5},"(Amount in Words)",null,{"$f":"SpellNumber(R50)","v":"Ten Thousand Two Hundred Fifty  Pesos Only"},null,null,null,null,null,null,null,null,"TOTAL",null,null,null,null,null,{"$f":"SUM(AA27:AA50)","v":5335},null,null,"TOTAL",null,null,null,null,null,{"$f":"SUM(AJ27:AJ50)","v":10328},null,null,"TOTAL",null,null,null,null,null,{"$f":"SUM(AS27:AS50)","v":3607.5},null,null,"TOTAL",null,null,null,null,null,{"$f":"SUM(BB27:BB50)","v":4995},null,null,"TOTAL",null,null,null,null,null,{"$f":"SUM(BK27:BK50)","v":28380},null,null,"TOTAL",null,null,null,null,null,{"$f":"SUM(BT27:BT50)","v":27200},null,null,"TOTAL",null,null,null,null,null,{"$f":"SUM(CC27:CC50)","v":1420}]
["(Amount in Words)",null,{"$f":"SpellNumber(I51)","v":"Twenty  Thousand Six Hundred Sixty  Pesos and Fifty  Centavos Only"},null,null,null,null,null,null,"In case of failure to make the full delivery within the time specified above, a penalty of one-tenth (1/10)",null,null,null,null,null,null,null,null,null,null,{"$f":"SpellNumber(AA51)","v":"Five Thousand Three Hundred Thirty Five Pesos Only"},null,null,null,null,null,null,"(Amount in Words)",null,{"$f":"SpellNumber(AJ51)","v":"Ten Thousand Three Hundred Twenty Eight Pesos Only"},null,null,null,null,null,null,"(Amount in Words)",null,{"$f":"SpellNumber(AS51)","v":"Three Thousand Six Hundred Seven Pesos and Fifty  Centavos Only"},null,null,null,null,null,null,"(Amount in Words)",null,{"$f":"SpellNumber(BB51)","v":"Four Thousand Nine Hundred Ninety Five Pesos Only"},null,null,null,null,null,null,null,null,{"$f":"SpellNumber(BK51)","v":"Twenty Eight Thousand Three Hundred Eighty  Pesos Only"},null,null,null,null,null,null,"(Amount in Words)",null,{"$f":"SpellNumber(BT51)","v":"Twenty Seven Thousand Two Hundred  Pesos Only"},null,null,null,null,null,null,"(Amount in Words)",null,{"$f":"SpellNumber(CC51)","v":"One Thousand Four Hundred Twenty  Pesos Only"}]
["In case of failure to make the full delivery within the time specified above, a penalty of one-tenth (1/10)",null,null,null,null,null,null,null,null,"of the one(1) percent for every day of delay shall be imposed.",null,null,null,null,null,null,null,null,null,null,null,null,null,null,null,null,null,"In case of failure to make the full delivery within the time specified above, a penalty of one-tenth (1/10)",null,null,null,null,null,null,null,null,"In case of failure to make the full delivery within the time specified above, a penalty of one-tenth (1/10)",null,null,null,null,null,null,null,null,"In case of failure to make the full delivery within the time specified above, a penalty of one-tenth (1/10)",null,null,null,null,null,null,null,null,null,null,null,null,null,null,null,null,null,"In case of failure to make the full delivery within the time specified above, a penalty of one-tenth (1/10)",null,null,null,null,null,null,null,null,"In case of failure to make the full delivery within the time specified above, a penalty of one-tenth (1/10)"]
["of the one(1) percent for every day of delay shall be imposed.",null,null,null,null,null,null,null,null,null,null,null,null,null,null,null,null,null,"of the one(1) percent for every day of delay shall be imposed.",null,null,null,null,null,null,null,null,"of the one(1) percent for every day of delay shall be imposed.",null,null,null,null,null,null,null,null,"of the one(1) percent for every day of delay shall be imposed.",null,null,null,null,null,null,null,null,"of the one(1) percent for every day of delay shall be imposed.",null,null,null,null,null,null,null,null,"of the one(1) percent for every day of delay shall be imposed.",null,null,null,null,null,null,null,null,"of the one(1) percent for every day of delay shall be imposed.",null,null,null,null,null,null,null,null,"of the one(1) percent for every day of delay shall be imposed."]
[null,null,null,null,null,null,null,null,null,null,null,null,null,null,null,"Very truly yours,"]
[null,null,null,null,null,null,"Very truly yours,",null,null,"Conforme:",null,null,null,null,null,null,null,null,null,null,null,null,null,null,"Very truly yours,",null,null,null,null,null,null,null,null,"Very truly yours,",null,null,null,null,null,null,null,null,"Very truly yours,",null,null,null,null,null,null,null,null,"Very truly yours,",null,null,null,null,null,null,null,null,"Very truly yours,",null,null,null,null,null,null,null,null,"Very truly yours,",null,null,null,null,null,null,null,null,"Very truly yours,"]
["Conforme:",null,null,null,null,null,null,null,null,null,null,"____________________________",null,null,null,null,"REBECCA P. TORING",null,"Conforme:",null,null,null,null,null,null,null,null,"Conforme:",null,null,null,null,null,null,null,null,"Conforme:",null,null,null,null,null,null,null,null,"Conforme:",null,null,null,null,null,null,null,null,"Conforme:",null,null,null,null,null,null,null,null,"Conforme:",null,null,null,null,null,null,null,null,"Conforme:"]
[null,null,"____________________________",null,null,null,null,"REBECCA P. TORING",null,null,null,"Signature Over Printed Name",null,null,null,null,"Principal II",null,null,null,"____________________________",null,null,null,null,"REBECCA P. TORING",null,null,null,"____________________________",null,null,null,null,"REBECCA P. TORING",null,null,null,"____________________________",null,null,null,null,"REBECCA P. TORING",null,null,null,"____________________________",null,null,null,null,"REBECCA P. TORING",null,null,null,"____________________________",null,null,null,null,"REBECCA P. TORING",null,null,null,"____________________________",null,null,null,null,"REBECCA P. TORING",null,null,null,"____________________________",null,null,null,null,"REBECCA P. TORING"]
[null,null,"Signature Over Printed Name",null,null,null,null,"Principal I",null,null,null,"________________",null,null,null,null,null,null,null,null,"Signature Over Printed Name",null,null,null,null,"Principal II",null,null,null,"Signature Over Printed Name",null,null,null,null,"Principal II",null,null,null,"Signature Over Printed Name",null,null,null,null,"Principal II",null,null,null,"Signature Over Printed Name",null,null,null,null,"Principal II",null,null,null,"Signature Over Printed Name",null,null,null,null,"Principal II",null,null,null,"Signature Over Printed Name",null,null,null,null,"Principal II",null,null,null,"Signature Over Printed Name",null,null,null,null,"Principal II"]
[null,null,"________________",null,null,null,null,null,null,null,null,"Date",null,null,null,null,null,null,null,null,"________________",null,null,null,null,null,null,null,null,"________________",null,null,null,null,null,null,null,null,"________________",null,null,null,null,null,null,null,null,"________________",null,null,null,null,null,null,null,null,"________________",null,null,null,null,null,null,null,null,"________________",null,null,null,null,null,null,null,null,"________________"]
[null,null,"Date",null,null,null,null,null,null,"Funds Available:",null,null,null,null,null,null,null,null,null,null,"Date",null,null,null,null,null,null,null,null,"Date",null,null,null,null,null,null,null,null,"Date",null,null,null,null,null,null,null,null,"Date",null,null,null,null,null,null,null,null,"Date",null,null,null,null,null,null,null,null,"Date",null,null,null,null,null,null,null,null,"Date"]
["Funds Available:",null,null,null,null,null,null,null,null,null,null,null,null,null,"ALOBS No.:",null,null,null,"Funds Available:",null,null,null,null,null,null,null,null,"Funds Available:",null,null,null,null,null,null,null,null,"Funds Available:",null,null,null,null,null,null,null,null,"Funds Available:",null,null,null,null,null,null,null,null,"Funds Available:",null,null,null,null,null,null,null,null,"Funds Available:",null,null,null,null,null,null,null,null,"Funds Available:"]
[null,null,null,null,null,"ALOBS No.:",null,null,null,null,null,{"$f":"'7DV'!$D$46","v":"KO-JACK E. IBAÑO"},null,null,"Amount:",null,null,null,null,null,null,null,null,"ALOBS No.:",null,null,null,null,null,null,null,null,"ALOBS No.:",null,null,null,null,null,null,null,null,"ALOBS No.:",null,null,null,null,null,null,null,null,"ALOBS No.:",null,null,null,null,null,null,null,null,"ALOBS No.:",null,null,null,null,null,null,null,null,"ALOBS No.:",null,null,null,null,null,null,null,null,"ALOBS No.:"]
[null,null,{"$f":"'7DV'!$D$46","v":"KO-JACK E. IBAÑO"},null,null,"Amount:",null,null,null,null,null,{"$f":"'7DV'!$D$47","v":"Teacher III, School Bookkeeper-Designate"},null,null,null,null,null,null,null,null,{"$f":"'7DV'!$D$46","v":"KO-JACK E. IBAÑO"},null,null,"Amount:",null,null,null,null,null,{"$f":"'7DV'!$D$46","v":"KO-JACK E. IBAÑO"},null,null,"Amount:",null,null,null,null,null,{"$f":"'7DV'!$D$46","v":"KO-JACK E. IBAÑO"},null,null,"Amount:",null,null,null,null,null,{"$f":"'7DV'!$D$46","v":"KO-JACK E. IBAÑO"},null,null,"Amount:",null,null,null,null,null,{"$f":"'7DV'!$D$46","v":"KO-JACK E. IBAÑO"},null,null,"Amount:",null,null,null,null,null,{"$f":"'7DV'!$D$46","v":"KO-JACK E. IBAÑO"},null,null,"Amount:",null,null,null,null,null,{"$f":"'7DV'!$D$46","v":"KO-JACK E. IBAÑO"},null,null,"Amount:"]
[null,null,{"$f":"'7DV'!$D$47","v":"Teacher III, School Bookkeeper-Designate"},null,null,null,null,null,null,4,null,null,null,null,null,null,null,null,null,null,{"$f":"'7DV'!$D$47","v":"Teacher III, School Bookkeeper-Designate"},null,null,null,null,null,null,null,null,{"$f":"'7DV'!$D$47","v":"Teacher III, School Bookkeeper-Designate"},null,null,null,null,null,null,null,null,{"$f":"'7DV'!$D$47","v":"Teacher III, School Bookkeeper-Designate"},null,null,null,null,null,null,null,null,{"$f":"'7DV'!$D$47","v":"Teacher III, School Bookkeeper-Designate"},null,null,null,null,null,null,null,null,{"$f":"'7DV'!$D$47","v":"Teacher III, School Bookkeeper-Designate"},null,null,null,null,null,null,null,null,{"$f":"'7DV'!$D$47","v":"Teacher III, School Bookkeeper-Designate"},null,null,null,null,null,null,null,null,{"$f":"'7DV'!$D$47","v":"Teacher III, School Bookkeeper-Designate"}]
[4,null,null,null,null,null,null,null,null,null,null,null,null,null,null,null,null,null,4,null,null,null,null,null,null,null,null,4,null,null,null,null,null,null,null,null,4,null,null,null,null,null,null,null,null,4,null,null,null,null,null,null,null,null,4,null,null,null,null,null,null,null,null,4,null,null,null,null,null,null,null,null,4]

{"sheet":"3Abs","index":8,"n_rows":202,"n_cols":10,"rows_kept":202,"cut":false,"hidden":false,"merged":[[173,0,173,9],[168,0,168,9],[169,0,169,9],[170,0,170,9],[171,0,171,9],[172,0,172,9],[163,0,163,9],[164,0,164,9],[165,0,165,9],[166,0,166,9],[167,0,167,9],[90,0,90,9],[91,0,91,9],[92,0,92,9],[123,0,123,9],[124,0,124,9],[85,0,85,9],[86,0,86,9],[87,0,87,9],[88,0,88,9],[89,0,89,9],[41,0,41,9],[50,0,50,9],[82,0,82,9],[83,0,83,9],[84,0,84,9],[125,0,125,9],[126,0,126,9],[127,0,127,9],[128,0,128,9],[129,0,129,9],[130,0,130,9],[131,0,131,9],[132,0,132,9],[133,0,133,9],[0,0,0,9],[1,0,1,9],[2,0,2,9],[42,0,42,9],[43,0,43,9],[10,0,10,9],[8,0,8,9],[3,0,3,9],[4,0,4,9],[5,0,5,9],[6,0,6,9],[7,0,7,9],[9,0,9,9],[44,0,44,9],[51,0,51,9],[45,0,45,9],[46,0,46,9],[47,0,47,9],[48,0,48,9],[49,0,49,9]]}
[]
[]
[]
[]
["Republic of the Philippines"]
["Department of Education"]
["Region VII, Central Visayas"]
["DIVISION OF LAPU-LAPU CITY"]
["MARIGONDON ELEMENTARY SCHOOL"]
[]
["ABSTRACT OF CANVASS TO FURNISH SUPPLIES/MATERIALS FOR MARIGONDON ELEMENTARY SCHOOL"]
[]
[{"$f":"'7DV'!J12","v":2001001}]
["Item\nNo","Qty","Unit","ARTICLES AND DESCRIPTION","Roy Enterprises","Home Builders","Duane and Dwight hardware","Savers Depot","Minimum","Awarded to"]
[{"$f":"'1PR'!G10","v":1},{"$f":"'1PR'!A10","v":1},{"$f":"'1PR'!B10","v":"roll"},{"$f":"'1PR'!C10","v":"Loomex wire, #12"},2200,{"$f":"E15+16","v":2216},2345,5362,{"$f":"MIN(E15:H15)","v":2200},{"$f":"IF(I15=0,\"\",(IF(I15=E15,$E$14,IF(I15=F15,$F$14,IF(I15=G15,$G$14,$H$14)))))","v":"Roy Enterprises"}]
[{"$f":"'1PR'!G11","v":2},{"$f":"'1PR'!A11","v":5},{"$f":"'1PR'!B11","v":"pcs"},{"$f":"'1PR'!C11","v":"Safety breaker, Surface type (15amp)"},387.5,403.5,{"$f":"E16+20","v":407.5},{"$f":"E16+10","v":397.5},{"$f":"MIN(E16:H16)","v":387.5},"Roy Enterprises"]
[{"$f":"'1PR'!G12","v":3},{"$f":"'1PR'!A12","v":3},{"$f":"'1PR'!B12","v":"set"},{"$f":"'1PR'!C12","v":"Flood light, Led 30w"},1400,1416,1420,1350,1350,"Savers Depot"]
[{"$f":"'1PR'!G13","v":4},{"$f":"'1PR'!A13","v":2},{"$f":"'1PR'!B13","v":"set"},{"$f":"'1PR'!C13","v":"Flood light, Led 50w"},3100,3116,3120,3000,3000,"Savers Depot"]
[{"$f":"'1PR'!G14","v":5},{"$f":"'1PR'!A14","v":5},{"$f":"'1PR'!B14","v":"roll"},{"$f":"'1PR'!C14","v":"Electrical Tape, Big"},45,61,65,{"$f":"E19+10","v":55},45,"Roy Enterprises"]
[{"$f":"'1PR'!G15","v":6},{"$f":"'1PR'!A15","v":100},{"$f":"'1PR'!B15","v":"pcs"},{"$f":"'1PR'!C15","v":"Tiles, 60 x 60"},158.08000000000001,161,160,165,158.08000000000001,"Roy Enterprises"]
[{"$f":"'1PR'!G16","v":7},{"$f":"'1PR'!A16","v":17},{"$f":"'1PR'!B16","v":"bag"},{"$f":"'1PR'!C16","v":"Adhesive"},240,245,235,250,235,"Duane and Dwight hardware"]
[{"$f":"'1PR'!G17","v":8},{"$f":"'1PR'!A17","v":16},{"$f":"'1PR'!B17","v":"bag"},{"$f":"'1PR'!C17","v":"Cement"},195,200,190,200,190,"Duane and Dwight hardware"]
[{"$f":"'1PR'!G18","v":9},{"$f":"'1PR'!A18","v":2},{"$f":"'1PR'!B18","v":"bag"},{"$f":"'1PR'!C18","v":"Tile Grout"},65,70,70,72,65,"Roy Enterprises"]
[{"$f":"'1PR'!G19","v":10},{"$f":"'1PR'!A19","v":1},{"$f":"'1PR'!B19","v":"pck"},{"$f":"'1PR'!C19","v":"Staple wire, Concrete"},{"$f":"H24+7","v":125.5},{"$f":"H24+3","v":121.5},{"$f":"H24+8","v":126.5},118.5,118.5,"Savers Depot"]
[{"$f":"'1PR'!G20","v":11},{"$f":"'1PR'!A20","v":1},{"$f":"'1PR'!B20","v":"pck"},{"$f":"'1PR'!C20","v":"Tox w/ screw"},{"$f":"H25+7","v":72.5},{"$f":"H25+3","v":68.5},{"$f":"H25+8","v":73.5},65.5,65.5,"Savers Depot"]
[{"$f":"'1PR'!G21","v":12},{"$f":"'1PR'!A21","v":1},{"$f":"'1PR'!B21","v":"pck"},{"$f":"'1PR'!C21","v":"Stainless, Plain washer 1/4"},23,19,24,16,16,"Savers Depot"]
[{"$f":"'1PR'!G22","v":13},{"$f":"'1PR'!A22","v":1},{"$f":"'1PR'!B22","v":"pcs"},{"$f":"'1PR'!C22","v":"Switch flush typew, 1 gang"},60,{"$f":"E27+5","v":65},{"$f":"E27+4","v":64},{"$f":"E27+8","v":68},60,"Roy Enterprises"]
[{"$f":"'1PR'!G23","v":14},{"$f":"'1PR'!A23","v":1},{"$f":"'1PR'!B23","v":"pcs"},{"$f":"'1PR'!C23","v":"Floor drain"},20,{"$f":"E28+5","v":25},{"$f":"E28+4","v":24},{"$f":"E28+8","v":28},20,"Roy Enterprises"]
[{"$f":"'1PR'!G24","v":15},{"$f":"'1PR'!A24","v":2},{"$f":"'1PR'!B24","v":"pcs"},{"$f":"'1PR'!C24","v":"Diamond cutting wheel"},140,145,144,{"$f":"E29+8","v":148},140,"Roy Enterprises"]
[{"$f":"'1PR'!G25","v":0},{"$f":"'1PR'!A25","v":0},{"$f":"'1PR'!B25","v":0},{"$f":"'1PR'!C25","v":0},null,null,null,null,0,{"$f":"IF(I30=0,\"\",(IF(I30=E30,\"Dan Enrico Corporation\",IF(I30=F30,\"Mactan Centennial\",IF(I30=G30,\"Duane and Dwight hardware\",IF(I30=H30,\"JSY-Hardware\",\"JSY-Hardware\"))))))","v":""}]
[{"$f":"'1PR'!G26","v":0},{"$f":"'1PR'!A26","v":0},{"$f":"'1PR'!B26","v":0},{"$f":"'1PR'!C26","v":0},null,null,null,null,0,""]
[{"$f":"'1PR'!G27","v":0},{"$f":"'1PR'!A27","v":0},{"$f":"'1PR'!B27","v":0},{"$f":"'1PR'!C27","v":0},null,null,null,null,0,""]
[{"$f":"'1PR'!G28","v":0},{"$f":"'1PR'!A28","v":0},{"$f":"'1PR'!B28","v":0},{"$f":"'1PR'!C28","v":0},null,null,null,null,0,""]
[null,"WE HEREBY CERTIFY THAT we opened the proposed quotations for the above-listed articles at the time above-indicated and date "]
["and that the prices indicated herein are correct as appearing in the individual tenders hereto attached."]
[]
[]
[null,null,null,null,null,null,null,null,null,"REBECCA P. TORING"]
[null,null,null,null,null,null,null,null,null," Principal I"]
[]
[]
[]
[]
[]
[]
["Republic of the Philippines"]
["Department of Education"]
["Region VII, Central Visayas"]
["DIVISION OF LAPU-LAPU CITY"]
["MARIGONDON ELEMENTARY SCHOOL"]
[]
["ABSTRACT OF CANVASS TO FURNISH SUPPLIES/MATERIALS FOR MARIGONDON ELEMENTARY SCHOOL"]
[]
[{"$f":"'7DV'!J53","v":0}]
["Item\nNo","Qty","Unit","ARTICLES AND DESCRIPTION","AAA","BBB","CCC","DDD","Minimum","Awarded to"]
[{"$f":"'1PR'!U10","v":1},{"$f":"'1PR'!O10","v":20},{"$f":"'1PR'!P10","v":"ream"},{"$f":"'1PR'!Q10","v":"Bondpaper Long, Sub 20"},2200,{"$f":"E56+16","v":2216},2345,5362,{"$f":"MIN(E56:H56)","v":2200},{"$f":"IF(I56=0,\"\",(IF(I56=E56,$E$55,IF(I56=F56,$F$55,IF(I56=G56,$G$55,$H$55)))))","v":"AAA"}]
[{"$f":"'1PR'!U11","v":2},{"$f":"'1PR'!O11","v":10},{"$f":"'1PR'!P11","v":"pcs"},{"$f":"'1PR'!Q11","v":"White board pen, (black, blue & red)"},387.5,403.5,{"$f":"E57+20","v":407.5},{"$f":"E57+10","v":397.5},387.5,{"$f":"IF(I57=0,\"\",(IF(I57=E57,$E$55,IF(I57=F57,$F$55,IF(I57=G57,$G$55,$H$55)))))","v":"AAA"}]
[{"$f":"'1PR'!U12","v":3},{"$f":"'1PR'!O12","v":1},{"$f":"'1PR'!P12","v":"unit"},{"$f":"'1PR'!Q12","v":"Printer, CMYK"},1400,1416,1420,1350,1350,"DDD"]
[{"$f":"'1PR'!U13","v":0},{"$f":"'1PR'!O13","v":0},{"$f":"'1PR'!P13","v":0},{"$f":"'1PR'!Q13","v":0},null,null,null,null,0,""]
[{"$f":"'1PR'!U14","v":0},{"$f":"'1PR'!O14","v":0},{"$f":"'1PR'!P14","v":0},{"$f":"'1PR'!Q14","v":0},null,null,null,null,0,""]
[{"$f":"'1PR'!U15","v":0},{"$f":"'1PR'!O15","v":0},{"$f":"'1PR'!P15","v":0},{"$f":"'1PR'!Q15","v":0},null,null,null,null,0,""]
[{"$f":"'1PR'!U16","v":0},{"$f":"'1PR'!O16","v":0},{"$f":"'1PR'!P16","v":0},{"$f":"'1PR'!Q16","v":0},null,null,null,null,0,""]
[{"$f":"'1PR'!U17","v":0},{"$f":"'1PR'!O17","v":0},{"$f":"'1PR'!P17","v":0},{"$f":"'1PR'!Q17","v":0},null,null,null,null,0,""]
[{"$f":"'1PR'!U18","v":0},{"$f":"'1PR'!O18","v":0},{"$f":"'1PR'!P18","v":0},{"$f":"'1PR'!Q18","v":0},null,null,null,null,0,""]
[{"$f":"'1PR'!U19","v":0},{"$f":"'1PR'!O19","v":0},{"$f":"'1PR'!P19","v":0},{"$f":"'1PR'!Q19","v":0},null,null,null,null,0,""]
[{"$f":"'1PR'!U20","v":0},{"$f":"'1PR'!O20","v":0},{"$f":"'1PR'!P20","v":0},{"$f":"'1PR'!Q20","v":0},null,null,null,null,0,""]
[{"$f":"'1PR'!U21","v":0},{"$f":"'1PR'!O21","v":0},{"$f":"'1PR'!P21","v":0},{"$f":"'1PR'!Q21","v":0},null,null,null,null,0,""]
[{"$f":"'1PR'!U22","v":0},{"$f":"'1PR'!O22","v":0},{"$f":"'1PR'!P22","v":0},{"$f":"'1PR'!Q22","v":0},null,null,null,null,0,""]
[{"$f":"'1PR'!U23","v":0},{"$f":"'1PR'!O23","v":0},{"$f":"'1PR'!P23","v":0},{"$f":"'1PR'!Q23","v":0},null,null,null,null,0,""]
[{"$f":"'1PR'!U24","v":0},{"$f":"'1PR'!O24","v":0},{"$f":"'1PR'!P24","v":0},{"$f":"'1PR'!Q24","v":0},null,null,null,null,0,""]
[{"$f":"'1PR'!U25","v":0},{"$f":"'1PR'!O25","v":0},{"$f":"'1PR'!P25","v":0},{"$f":"'1PR'!Q25","v":0},null,null,null,null,0,""]
[{"$f":"'1PR'!U26","v":0},{"$f":"'1PR'!O26","v":0},{"$f":"'1PR'!P26","v":0},{"$f":"'1PR'!Q26","v":0},null,null,null,null,0,""]
[{"$f":"'1PR'!U27","v":0},{"$f":"'1PR'!O27","v":0},{"$f":"'1PR'!P27","v":0},{"$f":"'1PR'!Q27","v":0},null,null,null,null,0,""]
[{"$f":"'1PR'!U28","v":0},{"$f":"'1PR'!O28","v":0},{"$f":"'1PR'!P28","v":0},{"$f":"'1PR'!Q28","v":0},null,null,null,null,0,""]
[null,"WE HEREBY CERTIFY THAT we opened the proposed quotations for the above-listed articles at the time above-indicated and date "]
["and that the prices indicated herein are correct as appearing in the individual tenders hereto attached."]
[]
[]
[null,null,null,null,null,null,null,null,null,"REBECCA P. TORING"]
[null,null,null,null,null,null,null,null,null," Principal I"]
[]
[]
[]
[]
[]
[]
["Republic of the Philippines"]
["Department of Education"]
["Region VII, Central Visayas"]
["DIVISION OF LAPU-LAPU CITY"]
["MARIGONDON ELEMENTARY SCHOOL"]
[]
["ABSTRACT OF CANVASS TO FURNISH SUPPLIES/MATERIALS FOR MARIGONDON ELEMENTARY SCHOOL"]
[]
[{"$f":"'7DV'!J102","v":0}]
["Item\nNo","Qty","Unit","ARTICLES AND DESCRIPTION","EEE","FFF","GGG","HHH","Minimum","Awarded to"]
[{"$f":"'1PR'!AI10","v":1},{"$f":"'1PR'!AC10","v":1.5},{"$f":"'1PR'!AD10","v":"roll"},{"$f":"'1PR'!AE10","v":"Coaxial Cable"},null,null,null,null,{"$f":"MIN(E97:H97)","v":0},{"$f":"IF(I97=0,\"\",(IF(I97=E97,$E$96,IF(I97=F97,$F$96,IF(I97=G97,$G$96,$H$96)))))","v":""}]
[{"$f":"'1PR'!AI11","v":2},{"$f":"'1PR'!AC11","v":1},{"$f":"'1PR'!AD11","v":"pcs"},{"$f":"'1PR'!AE11","v":"DC Adapter 12v, 5A"},null,null,null,null,0,{"$f":"IF(I98=0,\"\",(IF(I98=E98,$E$96,IF(I98=F98,$F$96,IF(I98=G98,$G$96,$H$96)))))","v":""}]
[{"$f":"'1PR'!AI12","v":3},{"$f":"'1PR'!AC12","v":5},{"$f":"'1PR'!AD12","v":"pcs"},{"$f":"'1PR'!AE12","v":"Camera"},null,null,null,null,0,""]
[{"$f":"'1PR'!AI13","v":4},{"$f":"'1PR'!AC13","v":3},{"$f":"'1PR'!AD13","v":"pcs"},{"$f":"'1PR'!AE13","v":"BNC Cable, 30m"},null,null,null,null,0,""]
[{"$f":"'1PR'!AI14","v":5},{"$f":"'1PR'!AC14","v":15},{"$f":"'1PR'!AD14","v":"pcs"},{"$f":"'1PR'!AE14","v":"BNC, Adaptor, Male"},null,null,null,null,0,""]
[{"$f":"'1PR'!AI15","v":6},{"$f":"'1PR'!AC15","v":15},{"$f":"'1PR'!AD15","v":"pcs"},{"$f":"'1PR'!AE15","v":"BNC, Adaptor, Female"},null,null,null,null,0,""]
[{"$f":"'1PR'!AI16","v":7},{"$f":"'1PR'!AC16","v":15},{"$f":"'1PR'!AD16","v":"pcs"},{"$f":"'1PR'!AE16","v":"BNC, Barrel"},null,null,null,null,0,""]
[{"$f":"'1PR'!AI17","v":8},{"$f":"'1PR'!AC17","v":4},{"$f":"'1PR'!AD17","v":"roll"},{"$f":"'1PR'!AE17","v":"Coaxial cable, 20m"},null,null,null,null,0,""]
[{"$f":"'1PR'!AI18","v":9},{"$f":"'1PR'!AC18","v":4},{"$f":"'1PR'!AD18","v":"roll"},{"$f":"'1PR'!AE18","v":"Coaxial cable, 30m"},null,null,null,null,0,""]
[{"$f":"'1PR'!AI19","v":0},{"$f":"'1PR'!AC19","v":0},{"$f":"'1PR'!AD19","v":0},{"$f":"'1PR'!AE19","v":0},null,null,null,null,0,""]
[{"$f":"'1PR'!AI20","v":0},{"$f":"'1PR'!AC20","v":0},{"$f":"'1PR'!AD20","v":0},{"$f":"'1PR'!AE20","v":0},null,null,null,null,0,""]
[{"$f":"'1PR'!AI21","v":0},{"$f":"'1PR'!AC21","v":0},{"$f":"'1PR'!AD21","v":0},{"$f":"'1PR'!AE21","v":0},null,null,null,null,0,""]
[{"$f":"'1PR'!AI22","v":0},{"$f":"'1PR'!AC22","v":0},{"$f":"'1PR'!AD22","v":0},{"$f":"'1PR'!AE22","v":0},null,null,null,null,0,""]
[{"$f":"'1PR'!AI23","v":0},{"$f":"'1PR'!AC23","v":0},{"$f":"'1PR'!AD23","v":0},{"$f":"'1PR'!AE23","v":0},null,null,null,null,0,""]
[{"$f":"'1PR'!AI24","v":0},{"$f":"'1PR'!AC24","v":0},{"$f":"'1PR'!AD24","v":0},{"$f":"'1PR'!AE24","v":0},null,null,null,null,0,""]
[{"$f":"'1PR'!AI25","v":0},{"$f":"'1PR'!AC25","v":0},{"$f":"'1PR'!AD25","v":0},{"$f":"'1PR'!AE25","v":0},null,null,null,null,0,""]
[{"$f":"'1PR'!AI26","v":0},{"$f":"'1PR'!AC26","v":0},{"$f":"'1PR'!AD26","v":0},{"$f":"'1PR'!AE26","v":0},null,null,null,null,0,""]
[{"$f":"'1PR'!AI27","v":0},{"$f":"'1PR'!AC27","v":0},{"$f":"'1PR'!AD27","v":0},{"$f":"'1PR'!AE27","v":0},null,null,null,null,0,""]
[{"$f":"'1PR'!AI28","v":0},{"$f":"'1PR'!AC28","v":0},{"$f":"'1PR'!AD28","v":0},{"$f":"'1PR'!AE28","v":0},null,null,null,null,0,""]
[null,"WE HEREBY CERTIFY THAT we opened the proposed quotations for the above-listed articles at the time above-indicated and date "]
["and that the prices indicated herein are correct as appearing in the individual tenders hereto attached."]
[]
[]
[null,null,null,null,null,null,null,null,null,"REBECCA P. TORING"]
[null,null,null,null,null,null,null,null,null," Principal I"]
[]
[]
[]
[]
[]
[]
["Republic of the Philippines"]
["Department of Education"]
["Region VII, Central Visayas"]
["DIVISION OF LAPU-LAPU CITY"]
["MARIGONDON ELEMENTARY SCHOOL"]
[]
["ABSTRACT OF CANVASS TO FURNISH SUPPLIES/MATERIALS FOR MARIGONDON ELEMENTARY SCHOOL"]
[]
[{"$f":"'7DV'!J143","v":0}]
["Item\nNo","Qty","Unit","ARTICLES AND DESCRIPTION","III","JJJ","KKK","LLL","Minimum","Awarded to"]
[{"$f":"'1PR'!AW10","v":1},{"$f":"'1PR'!AQ10","v":8},{"$f":"'1PR'!AR10","v":"tl"},{"$f":"'1PR'!AS10","v":"Septic vault suction"},2200,{"$f":"E138+16","v":2216},2345,5362,{"$f":"MIN(E138:H138)","v":2200},{"$f":"IF(I138=0,\"\",(IF(I138=E138,$E$137,IF(I138=F138,$F$137,IF(I138=G138,$G$137,$H$137)))))","v":"III"}]
[{"$f":"'1PR'!AW11","v":0},{"$f":"'1PR'!AQ11","v":0},{"$f":"'1PR'!AR11","v":0},{"$f":"'1PR'!AS11","v":0},null,null,null,null,0,{"$f":"IF(I139=0,\"\",(IF(I139=E139,$E$137,IF(I139=F139,$F$137,IF(I139=G139,$G$137,$H$137)))))","v":""}]
[{"$f":"'1PR'!AW12","v":0},{"$f":"'1PR'!AQ12","v":0},{"$f":"'1PR'!AR12","v":0},{"$f":"'1PR'!AS12","v":0},null,null,null,null,0,""]
[{"$f":"'1PR'!AW13","v":0},{"$f":"'1PR'!AQ13","v":0},{"$f":"'1PR'!AR13","v":0},{"$f":"'1PR'!AS13","v":0},null,null,null,null,0,""]
[{"$f":"'1PR'!AW14","v":0},{"$f":"'1PR'!AQ14","v":0},{"$f":"'1PR'!AR14","v":0},{"$f":"'1PR'!AS14","v":0},null,null,null,null,0,""]
[{"$f":"'1PR'!AW15","v":0},{"$f":"'1PR'!AQ15","v":0},{"$f":"'1PR'!AR15","v":0},{"$f":"'1PR'!AS15","v":0},null,null,null,null,0,""]
[{"$f":"'1PR'!AW16","v":0},{"$f":"'1PR'!AQ16","v":0},{"$f":"'1PR'!AR16","v":0},{"$f":"'1PR'!AS16","v":0},null,null,null,null,0,""]
[{"$f":"'1PR'!AW17","v":0},{"$f":"'1PR'!AQ17","v":0},{"$f":"'1PR'!AR17","v":0},{"$f":"'1PR'!AS17","v":0},null,null,null,null,0,""]
[{"$f":"'1PR'!AW18","v":0},{"$f":"'1PR'!AQ18","v":0},{"$f":"'1PR'!AR18","v":0},{"$f":"'1PR'!AS18","v":0},null,null,null,null,0,""]
[{"$f":"'1PR'!AW19","v":0},{"$f":"'1PR'!AQ19","v":0},{"$f":"'1PR'!AR19","v":0},{"$f":"'1PR'!AS19","v":0},null,null,null,null,0,""]
[{"$f":"'1PR'!AW20","v":0},{"$f":"'1PR'!AQ20","v":0},{"$f":"'1PR'!AR20","v":0},{"$f":"'1PR'!AS20","v":0},null,null,null,null,0,""]
[{"$f":"'1PR'!AW21","v":0},{"$f":"'1PR'!AQ21","v":0},{"$f":"'1PR'!AR21","v":0},{"$f":"'1PR'!AS21","v":0},null,null,null,null,0,""]
[{"$f":"'1PR'!AW22","v":0},{"$f":"'1PR'!AQ22","v":0},{"$f":"'1PR'!AR22","v":0},{"$f":"'1PR'!AS22","v":0},null,null,null,null,0,""]
[{"$f":"'1PR'!AW23","v":0},{"$f":"'1PR'!AQ23","v":0},{"$f":"'1PR'!AR23","v":0},{"$f":"'1PR'!AS23","v":0},null,null,null,null,0,""]
[{"$f":"'1PR'!AW24","v":0},{"$f":"'1PR'!AQ24","v":0},{"$f":"'1PR'!AR24","v":0},{"$f":"'1PR'!AS24","v":0},null,null,null,null,0,""]
[{"$f":"'1PR'!AW25","v":0},{"$f":"'1PR'!AQ25","v":0},{"$f":"'1PR'!AR25","v":0},{"$f":"'1PR'!AS25","v":0},null,null,null,null,0,""]
[{"$f":"'1PR'!AW26","v":0},{"$f":"'1PR'!AQ26","v":0},{"$f":"'1PR'!AR26","v":0},{"$f":"'1PR'!AS26","v":0},null,null,null,null,0,""]
[{"$f":"'1PR'!AW27","v":0},{"$f":"'1PR'!AQ27","v":0},{"$f":"'1PR'!AR27","v":0},{"$f":"'1PR'!AS27","v":0},null,null,null,null,0,""]
[{"$f":"'1PR'!AW28","v":0},{"$f":"'1PR'!AQ28","v":0},{"$f":"'1PR'!AR28","v":0},{"$f":"'1PR'!AS28","v":0},null,null,null,null,0,""]
[null,"WE HEREBY CERTIFY THAT we opened the proposed quotations for the above-listed articles at the time above-indicated and date "]
["and that the prices indicated herein are correct as appearing in the individual tenders hereto attached."]
[]
[]
[null,null,null,null,null,null,null,null,null,"REBECCA P. TORING"]
[null,null,null,null,null,null,null,null,null," Principal I"]
[]
[]
[]
[]
[]
["Republic of the Philippines"]
["Department of Education"]
["Region VII, Central Visayas"]
["DIVISION OF LAPU-LAPU CITY"]
["MARIGONDON ELEMENTARY SCHOOL"]
[]
["ABSTRACT OF CANVASS TO FURNISH SUPPLIES/MATERIALS FOR MARIGONDON ELEMENTARY SCHOOL"]
[]
[{"$f":"'7DV'!J183","v":0}]
["Item\nNo","Qty","Unit","ARTICLES AND DESCRIPTION","MMM","NNN","OOOO","PPP","Minimum","Awarded to"]
[{"$f":"'1PR'!BK10","v":0},{"$f":"'1PR'!BE10","v":0},{"$f":"'1PR'!BF10","v":0},{"$f":"'1PR'!BG10","v":0},null,null,null,null,{"$f":"MIN(E178:H178)","v":0},{"$f":"IF(I178=0,\"\",(IF(I178=E178,$E$177,IF(I178=F178,$F$177,IF(I178=G178,$G$177,$H$177)))))","v":""}]
[{"$f":"'1PR'!BK11","v":0},{"$f":"'1PR'!BE11","v":0},{"$f":"'1PR'!BF11","v":0},{"$f":"'1PR'!BG11","v":0},null,null,null,null,0,{"$f":"IF(I179=0,\"\",(IF(I179=E179,$E$177,IF(I179=F179,$F$177,IF(I179=G179,$G$177,$H$177)))))","v":""}]
[{"$f":"'1PR'!BK12","v":0},{"$f":"'1PR'!BE12","v":0},{"$f":"'1PR'!BF12","v":0},{"$f":"'1PR'!BG12","v":0},null,null,null,null,0,""]
[{"$f":"'1PR'!BK13","v":0},{"$f":"'1PR'!BE13","v":0},{"$f":"'1PR'!BF13","v":0},{"$f":"'1PR'!BG13","v":0},null,null,null,null,0,""]
[{"$f":"'1PR'!BK14","v":0},{"$f":"'1PR'!BE14","v":0},{"$f":"'1PR'!BF14","v":0},{"$f":"'1PR'!BG14","v":0},null,null,null,null,0,""]
[{"$f":"'1PR'!BK15","v":0},{"$f":"'1PR'!BE15","v":0},{"$f":"'1PR'!BF15","v":0},{"$f":"'1PR'!BG15","v":0},null,null,null,null,0,""]
[{"$f":"'1PR'!BK16","v":0},{"$f":"'1PR'!BE16","v":0},{"$f":"'1PR'!BF16","v":0},{"$f":"'1PR'!BG16","v":0},null,null,null,null,0,""]
[{"$f":"'1PR'!BK17","v":0},{"$f":"'1PR'!BE17","v":0},{"$f":"'1PR'!BF17","v":0},{"$f":"'1PR'!BG17","v":0},null,null,null,null,0,""]
[{"$f":"'1PR'!BK18","v":0},{"$f":"'1PR'!BE18","v":0},{"$f":"'1PR'!BF18","v":0},{"$f":"'1PR'!BG18","v":0},null,null,null,null,0,""]
[{"$f":"'1PR'!BK19","v":0},{"$f":"'1PR'!BE19","v":0},{"$f":"'1PR'!BF19","v":0},{"$f":"'1PR'!BG19","v":0},null,null,null,null,0,""]
[{"$f":"'1PR'!BK20","v":0},{"$f":"'1PR'!BE20","v":0},{"$f":"'1PR'!BF20","v":0},{"$f":"'1PR'!BG20","v":0},null,null,null,null,0,""]
[{"$f":"'1PR'!BK21","v":0},{"$f":"'1PR'!BE21","v":0},{"$f":"'1PR'!BF21","v":0},{"$f":"'1PR'!BG21","v":0},null,null,null,null,0,""]
[{"$f":"'1PR'!BK22","v":0},{"$f":"'1PR'!BE22","v":0},{"$f":"'1PR'!BF22","v":0},{"$f":"'1PR'!BG22","v":0},null,null,null,null,0,""]
[{"$f":"'1PR'!BK23","v":0},{"$f":"'1PR'!BE23","v":0},{"$f":"'1PR'!BF23","v":0},{"$f":"'1PR'!BG23","v":0},null,null,null,null,0,""]
[{"$f":"'1PR'!BK24","v":0},{"$f":"'1PR'!BE24","v":0},{"$f":"'1PR'!BF24","v":0},{"$f":"'1PR'!BG24","v":0},null,null,null,null,0,""]
[{"$f":"'1PR'!BK25","v":0},{"$f":"'1PR'!BE25","v":0},{"$f":"'1PR'!BF25","v":0},{"$f":"'1PR'!BG25","v":0},null,null,null,null,0,""]
[{"$f":"'1PR'!BK26","v":0},{"$f":"'1PR'!BE26","v":0},{"$f":"'1PR'!BF26","v":0},{"$f":"'1PR'!BG26","v":0},null,null,null,null,0,""]
[{"$f":"'1PR'!BK27","v":0},{"$f":"'1PR'!BE27","v":0},{"$f":"'1PR'!BF27","v":0},{"$f":"'1PR'!BG27","v":0},null,null,null,null,0,""]
[{"$f":"'1PR'!BK28","v":0},{"$f":"'1PR'!BE28","v":0},{"$f":"'1PR'!BF28","v":0},{"$f":"'1PR'!BG28","v":0},null,null,null,null,0,""]
[null,"WE HEREBY CERTIFY THAT we opened the proposed quotations for the above-listed articles at the time above-indicated and date "]
["and that the prices indicated herein are correct as appearing in the individual tenders hereto attached."]
[]
[]
[null,null,null,null,null,null,null,null,null,"REBECCA P. TORING"]
[null,null,null,null,null,null,null,null,null," Principal I"]

{"sheet":"2Canvas","index":9,"n_rows":72,"n_cols":40,"rows_kept":72,"cut":false,"hidden":false,"merged":[[47,1,47,4],[37,1,37,4],[38,1,38,4],[39,1,39,4],[40,1,40,4],[41,1,41,4],[42,1,42,4],[43,1,43,4],[44,1,44,4],[45,1,45,4],[1,6,1,7],[2,6,2,7],[3,6,3,7],[8,6,8,7],[28,6,29,6],[14,0,14,2],[13,0,13,2],[15,0,15,2],[30,1,30,4],[28,1,29,4],[28,5,29,5],[58,5,58,7],[57,5,57,7],[56,5,56,7],[50,5,50,7],[49,5,49,7],[52,5,52,7],[51,5,51,7],[31,1,31,4],[34,1,34,4],[35,1,35,4],[48,1,48,4],[33,1,33,4],[32,1,32,4],[36,1,36,4],[46,1,46,4],[14,8,14,10],[15,8,15,10],[28,9,29,12],[28,13,29,13],[28,14,29,14],[1,14,1,15],[2,14,2,15],[3,14,3,15],[8,14,8,15],[13,8,13,10],[35,9,35,12],[48,9,48,12],[30,9,30,12],[31,9,31,12],[30,17,30,20],[31,17,31,20],[34,9,34,12],[32,9,32,12],[33,9,33,12],[36,9,36,12],[37,9,37,12],[38,9,38,12],[39,9,39,12],[40,9,40,12],[41,9,41,12],[42,9,42,12],[43,9,43,12],[44,9,44,12],[45,9,45,12],[46,9,46,12],[47,9,47,12],[49,13,49,15],[50,13,50,15],[51,13,51,15],[52,13,52,15],[56,13,56,15],[57,13,57,15],[58,13,58,15],[1,22,1,23],[2,22,2,23],[3,22,3,23],[8,22,8,23],[13,16,13,18],[14,16,14,18],[15,16,15,18],[28,17,29,20],[28,21,29,21],[28,22,29,22],[57,21,57,23],[58,21,58,23],[49,21,49,23],[50,21,50,23],[51,21,51,23],[52,21,52,23],[56,21,56,23],[32,17,32,20],[33,17,33,20],[34,17,34,20],[35,17,35,20],[48,17,48,20],[36,17,36,20],[37,17,37,20],[38,17,38,20],[39,17,39,20],[40,17,40,20],[41,17,41,20],[42,17,42,20],[43,17,43,20],[44,17,44,20],[45,17,45,20],[46,17,46,20],[47,17,47,20],[1,30,1,31],[2,30,2,31],[3,30,3,31],[8,30,8,31],[13,24,13,26],[14,24,14,26],[15,24,15,26],[28,25,29,28],[28,29,29,29],[28,30,29,30],[30,25,30,28],[31,25,31,28],[32,25,32,28],[33,25,33,28],[34,25,34,28],[35,25,35,28],[36,25,36,28],[37,25,37,28],[38,25,38,28],[39,25,39,28],[40,25,40,28],[41,25,41,28],[42,25,42,28],[43,25,43,28],[44,25,44,28],[45,25,45,28],[46,25,46,28],[47,25,47,28],[48,25,48,28],[49,29,49,31],[50,29,50,31],[51,29,51,31],[52,29,52,31],[56,29,56,31],[57,29,57,31],[58,29,58,31],[1,38,1,39],[2,38,2,39],[3,38,3,39],[8,38,8,39],[13,32,13,34],[14,32,14,34],[15,32,15,34],[28,33,29,36],[28,37,29,37],[28,38,29,38],[30,33,30,36],[31,33,31,36],[32,33,32,36],[33,33,33,36],[34,33,34,36],[35,33,35,36],[36,33,36,36],[37,33,37,36],[38,33,38,36],[39,33,39,36],[40,33,40,36],[41,33,41,36],[42,33,42,36],[43,33,43,36],[44,33,44,36],[45,33,45,36],[46,33,46,36],[47,33,47,36],[48,33,48,36],[49,37,49,39],[50,37,50,39],[51,37,51,39],[52,37,52,39],[56,37,56,39],[57,37,57,39],[58,37,58,39]]}
["Republic of the Philippines",null,null,null,null,null,"Project Reference Number:",1601001,"Republic of the Philippines",null,null,null,null,null,"Project Reference Number:",{"$f":"H1+1","v":1601002},"Republic of the Philippines",null,null,null,null,null,"Project Reference Number:",{"$f":"P1+1","v":1601003},"Republic of the Philippines",null,null,null,null,null,"Project Reference Number:",{"$f":"X1+1","v":1601004},"Republic of the Philippines",null,null,null,null,null,"Project Reference Number:",{"$f":"AF1+1","v":1601005}]
["Department of Education",null,null,null,null,"Name of Project:    ","Repair and Maintenance",null,"Department of Education",null,null,null,null,"Name of Project:    ","Security Services",null,"Department of Education",null,null,null,null,"Name of Project:    ","Office Supplies",null,"Department of Education",null,null,null,null,"Name of Project:    ","Office Supplies",null,"Department of Education",null,null,null,null,"Name of Project:    ","Office Supplies"]
["Region VII, Central Visayas",null,null,null,null,"Location of Project:","Marigondon ES",null,"Region VII, Central Visayas",null,null,null,null,"Location of Project:","Marigondon ES",null,"Region VII, Central Visayas",null,null,null,null,"Location of Project:","Marigondon ES",null,"Region VII, Central Visayas",null,null,null,null,"Location of Project:","Marigondon ES",null,"Region VII, Central Visayas",null,null,null,null,"Location of Project:","Marigondon ES"]
["Division of Lapu-Lapu City",null,null,null,null,null,"Marigondon, LLC",null,"Division of Lapu-Lapu City",null,null,null,null,null,"Marigondon, LLC",null,"Division of Lapu-Lapu City",null,null,null,null,null,"Marigondon, LLC",null,"Division of Lapu-Lapu City",null,null,null,null,null,"Marigondon, LLC",null,"Division of Lapu-Lapu City",null,null,null,null,null,"Marigondon, LLC"]
["South District",null,null,null,null,null,null,null,"South District",null,null,null,null,null,null,null,"South District",null,null,null,null,null,null,null,"South District",null,null,null,null,null,null,null,"South District"]
["MARIGONDON ELEMENTARY SCHOOL",null,null,null,null,null,null,null,"MARIGONDON ELEMENTARY SCHOOL",null,null,null,null,null,null,null,"MARIGONDON ELEMENTARY SCHOOL",null,null,null,null,null,null,null,"MARIGONDON ELEMENTARY SCHOOL",null,null,null,null,null,null,null,"MARIGONDON ELEMENTARY SCHOOL"]
["Marigondon, Lapu-Lapu City",null,null,null,null,null,null,null,"Marigondon, Lapu-Lapu City",null,null,null,null,null,null,null,"Marigondon, Lapu-Lapu City",null,null,null,null,null,null,null,"Marigondon, Lapu-Lapu City",null,null,null,null,null,null,null,"Marigondon, Lapu-Lapu City"]
["Telefax No. (032) 495-6265",null,null,null,null,null,null,null,"Telefax No. (032) 495-6265",null,null,null,null,null,null,null,"Telefax No. (032) 495-6265",null,null,null,null,null,null,null,"Telefax No. (032) 495-6265",null,null,null,null,null,null,null,"Telefax No. (032) 495-6265"]
[null,null,null,null,null,"Date:",null,null,null,null,null,null,null,"Date:",null,null,null,null,null,null,null,"Date:",null,null,null,null,null,null,null,"Date:",null,null,null,null,null,null,null,"Date:"]
["Standard Form Number: SF-GOOD-60",null,null,null,null,null,null,"Quotation Number: _________","Standard Form Number: SF-GOOD-60",null,null,null,null,null,null,"Quotation Number: _________","Standard Form Number: SF-GOOD-60",null,null,null,null,null,null,"Quotation Number: _________","Standard Form Number: SF-GOOD-60",null,null,null,null,null,null,"Quotation Number: _________","Standard Form Number: SF-GOOD-60",null,null,null,null,null,null,"Quotation Number: _________"]
["Revised on: May 24, 2004",null,null,null,null,null,null,null,"Revised on: May 24, 2004",null,null,null,null,null,null,null,"Revised on: May 24, 2004",null,null,null,null,null,null,null,"Revised on: May 24, 2004",null,null,null,null,null,null,null,"Revised on: May 24, 2004"]
["Standard Form Title: Request for Quotations",null,null,null,null,null,null,null,"Standard Form Title: Request for Quotations",null,null,null,null,null,null,null,"Standard Form Title: Request for Quotations",null,null,null,null,null,null,null,"Standard Form Title: Request for Quotations",null,null,null,null,null,null,null,"Standard Form Title: Request for Quotations"]
[]
[]
[]
[]
[]
[null,"Please quote your lowest price on the item/s listed below, subject to the General Conditions on the last page",null,null,null,null,null,null,null,"Please quote your lowest price on the item/s listed below, subject to the General Conditions on the last page",null,null,null,null,null,null,null,"Please quote your lowest price on the item/s listed below, subject to the General Conditions on the last page",null,null,null,null,null,null,null,"Please quote your lowest price on the item/s listed below, subject to the General Conditions on the last page",null,null,null,null,null,null,null,"Please quote your lowest price on the item/s listed below, subject to the General Conditions on the last page"]
["stating the shortest time delivery and submit your quotation duly signed your representative not later than ______________",null,null,null,null,null,null,null,"stating the shortest time delivery and submit your quotation duly signed your representative not later than ______________",null,null,null,null,null,null,null,"stating the shortest time delivery and submit your quotation duly signed your representative not later than ______________",null,null,null,null,null,null,null,"stating the shortest time delivery and submit your quotation duly signed your representative not later than ______________",null,null,null,null,null,null,null,"stating the shortest time delivery and submit your quotation duly signed your representative not later than ______________"]
["in the return envelope attached herewith.",null,null,null,null,null,null,null,"in the return envelope attached herewith.",null,null,null,null,null,null,null,"in the return envelope attached herewith.",null,null,null,null,null,null,null,"in the return envelope attached herewith.",null,null,null,null,null,null,null,"in the return envelope attached herewith."]
[]
["Note:","1. All entries must be typewritten.",null,null,null,null,{"$f":"'1PR'!C40","v":"EVELYN S. ONGCO"},null,"Note:","1. All entries must be typewritten.",null,null,null,null,{"$f":"$G$22","v":"EVELYN S. ONGCO"},null,"Note:","1. All entries must be typewritten.",null,null,null,null,{"$f":"$G$22","v":"EVELYN S. ONGCO"},null,"Note:","1. All entries must be typewritten.",null,null,null,null,{"$f":"$G$22","v":"EVELYN S. ONGCO"},null,"Note:","1. All entries must be typewritten.",null,null,null,null,{"$f":"$G$22","v":"EVELYN S. ONGCO"}]
[null,"2. Delivery period within _____ calendar days",null,null,null,null,"Procurement Officer",null,null,"2. Delivery period within _____ calendar days",null,null,null,null,"Procurement Officer",null,null,"2. Delivery period within _____ calendar days",null,null,null,null,"Procurement Officer",null,null,"2. Delivery period within _____ calendar days",null,null,null,null,"Procurement Officer",null,null,"2. Delivery period within _____ calendar days",null,null,null,null,"Procurement Officer"]
[null,"3. Warranty shall be for a period of six(6) months for supplies and materials, one(1) year for equipment,",null,null,null,null,null,null,null,"3. Warranty shall be for a period of six(6) months for supplies and materials, one(1) year for equipment,",null,null,null,null,null,null,null,"3. Warranty shall be for a period of six(6) months for supplies and materials, one(1) year for equipment,",null,null,null,null,null,null,null,"3. Warranty shall be for a period of six(6) months for supplies and materials, one(1) year for equipment,",null,null,null,null,null,null,null,"3. Warranty shall be for a period of six(6) months for supplies and materials, one(1) year for equipment,"]
[null,"     from date of acceptance by the procuring entity.",null,null,null,null,null,null,null,"     from date of acceptance by the procuring entity.",null,null,null,null,null,null,null,"     from date of acceptance by the procuring entity.",null,null,null,null,null,null,null,"     from date of acceptance by the procuring entity.",null,null,null,null,null,null,null,"     from date of acceptance by the procuring entity."]
[null,"4. Price validity shall be for a period of _____ calendar days.",null,null,null,null,null,null,null,"4. Price validity shall be for a period of _____ calendar days.",null,null,null,null,null,null,null,"4. Price validity shall be for a period of _____ calendar days.",null,null,null,null,null,null,null,"4. Price validity shall be for a period of _____ calendar days.",null,null,null,null,null,null,null,"4. Price validity shall be for a period of _____ calendar days."]
[null,"5. G-EPS registration certificate shall be attached upon submission of the quotation.",null,null,null,null,null,null,null,"5. G-EPS registration certificate shall be attached upon submission of the quotation.",null,null,null,null,null,null,null,"5. G-EPS registration certificate shall be attached upon submission of the quotation.",null,null,null,null,null,null,null,"5. G-EPS registration certificate shall be attached upon submission of the quotation.",null,null,null,null,null,null,null,"5. G-EPS registration certificate shall be attached upon submission of the quotation."]
[null,"6. Bidders shall submit original brochures showing certfications of the product being offered.",null,null,null,null,null,null,null,"6. Bidders shall submit original brochures showing certfications of the product being offered.",null,null,null,null,null,null,null,"6. Bidders shall submit original brochures showing certfications of the product being offered.",null,null,null,null,null,null,null,"6. Bidders shall submit original brochures showing certfications of the product being offered.",null,null,null,null,null,null,null,"6. Bidders shall submit original brochures showing certfications of the product being offered."]
["Item","ITEM AND DESCRIPTION",null,null,null,"UNIT","QTY","Unit","Item","ITEM AND DESCRIPTION",null,null,null,"UNIT","QTY","Unit","Item","ITEM AND DESCRIPTION",null,null,null,"UNIT","QTY","Unit","Item","ITEM AND DESCRIPTION",null,null,null,"UNIT","QTY","Unit","Item","ITEM AND DESCRIPTION",null,null,null,"UNIT","QTY","Unit"]
["No.",null,null,null,null,null,null,"Price","No.",null,null,null,null,null,null,"Price","No.",null,null,null,null,null,null,"Price","No.",null,null,null,null,null,null,"Price","No.",null,null,null,null,null,null,"Price"]
[{"$f":"'1PR'!G10","v":1},{"$f":"'1PR'!C10","v":"Loomex wire, #12"},null,null,null,{"$f":"'1PR'!B10","v":"roll"},{"$f":"'1PR'!A10","v":1},null,{"$f":"'1PR'!U10","v":1},{"$f":"'1PR'!Q10","v":"Bondpaper Long, Sub 20"},null,null,null,{"$f":"'1PR'!P10","v":"ream"},{"$f":"'1PR'!O10","v":20},null,{"$f":"'1PR'!AI10","v":1},{"$f":"'1PR'!AE10","v":"Coaxial Cable"},null,null,null,{"$f":"'1PR'!AD10","v":"roll"},{"$f":"'1PR'!AC10","v":1.5},null,{"$f":"'1PR'!AW10","v":1},{"$f":"'1PR'!AS10","v":"Septic vault suction"},null,null,null,{"$f":"'1PR'!AR10","v":"tl"},{"$f":"'1PR'!AQ10","v":8},null,{"$f":"'1PR'!BK10","v":0},{"$f":"'1PR'!BG10","v":0},null,null,null,{"$f":"'1PR'!BF10","v":0},{"$f":"'1PR'!BE10","v":0}]
[{"$f":"'1PR'!G11","v":2},{"$f":"'1PR'!C11","v":"Safety breaker, Surface type (15amp)"},null,null,null,{"$f":"'1PR'!B11","v":"pcs"},{"$f":"'1PR'!A11","v":5},null,{"$f":"'1PR'!U11","v":2},{"$f":"'1PR'!Q11","v":"White board pen, (black, blue & red)"},null,null,null,{"$f":"'1PR'!P11","v":"pcs"},{"$f":"'1PR'!O11","v":10},null,{"$f":"'1PR'!AI11","v":2},{"$f":"'1PR'!AE11","v":"DC Adapter 12v, 5A"},null,null,null,{"$f":"'1PR'!AD11","v":"pcs"},{"$f":"'1PR'!AC11","v":1},null,{"$f":"'1PR'!AW11","v":0},{"$f":"'1PR'!AS11","v":0},null,null,null,{"$f":"'1PR'!AR11","v":0},{"$f":"'1PR'!AQ11","v":0},null,{"$f":"'1PR'!BK11","v":0},{"$f":"'1PR'!BG11","v":0},null,null,null,{"$f":"'1PR'!BF11","v":0},{"$f":"'1PR'!BE11","v":0}]
[{"$f":"'1PR'!G12","v":3},{"$f":"'1PR'!C12","v":"Flood light, Led 30w"},null,null,null,{"$f":"'1PR'!B12","v":"set"},{"$f":"'1PR'!A12","v":3},null,{"$f":"'1PR'!U12","v":3},{"$f":"'1PR'!Q12","v":"Printer, CMYK"},null,null,null,{"$f":"'1PR'!P12","v":"unit"},{"$f":"'1PR'!O12","v":1},null,{"$f":"'1PR'!AI12","v":3},{"$f":"'1PR'!AE12","v":"Camera"},null,null,null,{"$f":"'1PR'!AD12","v":"pcs"},{"$f":"'1PR'!AC12","v":5},null,{"$f":"'1PR'!AW12","v":0},{"$f":"'1PR'!AS12","v":0},null,null,null,{"$f":"'1PR'!AR12","v":0},{"$f":"'1PR'!AQ12","v":0},null,{"$f":"'1PR'!BK12","v":0},{"$f":"'1PR'!BG12","v":0},null,null,null,{"$f":"'1PR'!BF12","v":0},{"$f":"'1PR'!BE12","v":0}]
[{"$f":"'1PR'!G13","v":4},{"$f":"'1PR'!C13","v":"Flood light, Led 50w"},null,null,null,{"$f":"'1PR'!B13","v":"set"},{"$f":"'1PR'!A13","v":2},null,{"$f":"'1PR'!U13","v":0},{"$f":"'1PR'!Q13","v":0},null,null,null,{"$f":"'1PR'!P13","v":0},{"$f":"'1PR'!O13","v":0},null,{"$f":"'1PR'!AI13","v":4},{"$f":"'1PR'!AE13","v":"BNC Cable, 30m"},null,null,null,{"$f":"'1PR'!AD13","v":"pcs"},{"$f":"'1PR'!AC13","v":3},null,{"$f":"'1PR'!AW13","v":0},{"$f":"'1PR'!AS13","v":0},null,null,null,{"$f":"'1PR'!AR13","v":0},{"$f":"'1PR'!AQ13","v":0},null,{"$f":"'1PR'!BK13","v":0},{"$f":"'1PR'!BG13","v":0},null,null,null,{"$f":"'1PR'!BF13","v":0},{"$f":"'1PR'!BE13","v":0}]
[{"$f":"'1PR'!G14","v":5},{"$f":"'1PR'!C14","v":"Electrical Tape, Big"},null,null,null,{"$f":"'1PR'!B14","v":"roll"},{"$f":"'1PR'!A14","v":5},null,{"$f":"'1PR'!U14","v":0},{"$f":"'1PR'!Q14","v":0},null,null,null,{"$f":"'1PR'!P14","v":0},{"$f":"'1PR'!O14","v":0},null,{"$f":"'1PR'!AI14","v":5},{"$f":"'1PR'!AE14","v":"BNC, Adaptor, Male"},null,null,null,{"$f":"'1PR'!AD14","v":"pcs"},{"$f":"'1PR'!AC14","v":15},null,{"$f":"'1PR'!AW14","v":0},{"$f":"'1PR'!AS14","v":0},null,null,null,{"$f":"'1PR'!AR14","v":0},{"$f":"'1PR'!AQ14","v":0},null,{"$f":"'1PR'!BK14","v":0},{"$f":"'1PR'!BG14","v":0},null,null,null,{"$f":"'1PR'!BF14","v":0},{"$f":"'1PR'!BE14","v":0}]
[{"$f":"'1PR'!G15","v":6},{"$f":"'1PR'!C15","v":"Tiles, 60 x 60"},null,null,null,{"$f":"'1PR'!B15","v":"pcs"},{"$f":"'1PR'!A15","v":100},null,{"$f":"'1PR'!U15","v":0},{"$f":"'1PR'!Q15","v":0},null,null,null,{"$f":"'1PR'!P15","v":0},{"$f":"'1PR'!O15","v":0},null,{"$f":"'1PR'!AI15","v":6},{"$f":"'1PR'!AE15","v":"BNC, Adaptor, Female"},null,null,null,{"$f":"'1PR'!AD15","v":"pcs"},{"$f":"'1PR'!AC15","v":15},null,{"$f":"'1PR'!AW15","v":0},{"$f":"'1PR'!AS15","v":0},null,null,null,{"$f":"'1PR'!AR15","v":0},{"$f":"'1PR'!AQ15","v":0},null,{"$f":"'1PR'!BK15","v":0},{"$f":"'1PR'!BG15","v":0},null,null,null,{"$f":"'1PR'!BF15","v":0},{"$f":"'1PR'!BE15","v":0}]
[{"$f":"'1PR'!G16","v":7},{"$f":"'1PR'!C16","v":"Adhesive"},null,null,null,{"$f":"'1PR'!B16","v":"bag"},{"$f":"'1PR'!A16","v":17},null,{"$f":"'1PR'!U16","v":0},{"$f":"'1PR'!Q16","v":0},null,null,null,{"$f":"'1PR'!P16","v":0},{"$f":"'1PR'!O16","v":0},null,{"$f":"'1PR'!AI16","v":7},{"$f":"'1PR'!AE16","v":"BNC, Barrel"},null,null,null,{"$f":"'1PR'!AD16","v":"pcs"},{"$f":"'1PR'!AC16","v":15},null,{"$f":"'1PR'!AW16","v":0},{"$f":"'1PR'!AS16","v":0},null,null,null,{"$f":"'1PR'!AR16","v":0},{"$f":"'1PR'!AQ16","v":0},null,{"$f":"'1PR'!BK16","v":0},{"$f":"'1PR'!BG16","v":0},null,null,null,{"$f":"'1PR'!BF16","v":0},{"$f":"'1PR'!BE16","v":0}]
[{"$f":"'1PR'!G17","v":8},{"$f":"'1PR'!C17","v":"Cement"},null,null,null,{"$f":"'1PR'!B17","v":"bag"},{"$f":"'1PR'!A17","v":16},null,{"$f":"'1PR'!U17","v":0},{"$f":"'1PR'!Q17","v":0},null,null,null,{"$f":"'1PR'!P17","v":0},{"$f":"'1PR'!O17","v":0},null,{"$f":"'1PR'!AI17","v":8},{"$f":"'1PR'!AE17","v":"Coaxial cable, 20m"},null,null,null,{"$f":"'1PR'!AD17","v":"roll"},{"$f":"'1PR'!AC17","v":4},null,{"$f":"'1PR'!AW17","v":0},{"$f":"'1PR'!AS17","v":0},null,null,null,{"$f":"'1PR'!AR17","v":0},{"$f":"'1PR'!AQ17","v":0},null,{"$f":"'1PR'!BK17","v":0},{"$f":"'1PR'!BG17","v":0},null,null,null,{"$f":"'1PR'!BF17","v":0},{"$f":"'1PR'!BE17","v":0}]
[{"$f":"'1PR'!G18","v":9},{"$f":"'1PR'!C18","v":"Tile Grout"},null,null,null,{"$f":"'1PR'!B18","v":"bag"},{"$f":"'1PR'!A18","v":2},null,{"$f":"'1PR'!U18","v":0},{"$f":"'1PR'!Q18","v":0},null,null,null,{"$f":"'1PR'!P18","v":0},{"$f":"'1PR'!O18","v":0},null,{"$f":"'1PR'!AI18","v":9},{"$f":"'1PR'!AE18","v":"Coaxial cable, 30m"},null,null,null,{"$f":"'1PR'!AD18","v":"roll"},{"$f":"'1PR'!AC18","v":4},null,{"$f":"'1PR'!AW18","v":0},{"$f":"'1PR'!AS18","v":0},null,null,null,{"$f":"'1PR'!AR18","v":0},{"$f":"'1PR'!AQ18","v":0},null,{"$f":"'1PR'!BK18","v":0},{"$f":"'1PR'!BG18","v":0},null,null,null,{"$f":"'1PR'!BF18","v":0},{"$f":"'1PR'!BE18","v":0}]
[{"$f":"'1PR'!G19","v":10},{"$f":"'1PR'!C19","v":"Staple wire, Concrete"},null,null,null,{"$f":"'1PR'!B19","v":"pck"},{"$f":"'1PR'!A19","v":1},null,{"$f":"'1PR'!U19","v":0},{"$f":"'1PR'!Q19","v":0},null,null,null,{"$f":"'1PR'!P19","v":0},{"$f":"'1PR'!O19","v":0},null,{"$f":"'1PR'!AI19","v":0},{"$f":"'1PR'!AE19","v":0},null,null,null,{"$f":"'1PR'!AD19","v":0},{"$f":"'1PR'!AC19","v":0},null,{"$f":"'1PR'!AW19","v":0},{"$f":"'1PR'!AS19","v":0},null,null,null,{"$f":"'1PR'!AR19","v":0},{"$f":"'1PR'!AQ19","v":0},null,{"$f":"'1PR'!BK19","v":0},{"$f":"'1PR'!BG19","v":0},null,null,null,{"$f":"'1PR'!BF19","v":0},{"$f":"'1PR'!BE19","v":0}]
[{"$f":"'1PR'!G20","v":11},{"$f":"'1PR'!C20","v":"Tox w/ screw"},null,null,null,{"$f":"'1PR'!B20","v":"pck"},{"$f":"'1PR'!A20","v":1},null,{"$f":"'1PR'!U20","v":0},{"$f":"'1PR'!Q20","v":0},null,null,null,{"$f":"'1PR'!P20","v":0},{"$f":"'1PR'!O20","v":0},null,{"$f":"'1PR'!AI20","v":0},{"$f":"'1PR'!AE20","v":0},null,null,null,{"$f":"'1PR'!AD20","v":0},{"$f":"'1PR'!AC20","v":0},null,{"$f":"'1PR'!AW20","v":0},{"$f":"'1PR'!AS20","v":0},null,null,null,{"$f":"'1PR'!AR20","v":0},{"$f":"'1PR'!AQ20","v":0},null,{"$f":"'1PR'!BK20","v":0},{"$f":"'1PR'!BG20","v":0},null,null,null,{"$f":"'1PR'!BF20","v":0},{"$f":"'1PR'!BE20","v":0}]
[{"$f":"'1PR'!G21","v":12},{"$f":"'1PR'!C21","v":"Stainless, Plain washer 1/4"},null,null,null,{"$f":"'1PR'!B21","v":"pck"},{"$f":"'1PR'!A21","v":1},null,{"$f":"'1PR'!U21","v":0},{"$f":"'1PR'!Q21","v":0},null,null,null,{"$f":"'1PR'!P21","v":0},{"$f":"'1PR'!O21","v":0},null,{"$f":"'1PR'!AI21","v":0},{"$f":"'1PR'!AE21","v":0},null,null,null,{"$f":"'1PR'!AD21","v":0},{"$f":"'1PR'!AC21","v":0},null,{"$f":"'1PR'!AW21","v":0},{"$f":"'1PR'!AS21","v":0},null,null,null,{"$f":"'1PR'!AR21","v":0},{"$f":"'1PR'!AQ21","v":0},null,{"$f":"'1PR'!BK21","v":0},{"$f":"'1PR'!BG21","v":0},null,null,null,{"$f":"'1PR'!BF21","v":0},{"$f":"'1PR'!BE21","v":0}]
[{"$f":"'1PR'!G22","v":13},{"$f":"'1PR'!C22","v":"Switch flush typew, 1 gang"},null,null,null,{"$f":"'1PR'!B22","v":"pcs"},{"$f":"'1PR'!A22","v":1},null,{"$f":"'1PR'!U22","v":0},{"$f":"'1PR'!Q22","v":0},null,null,null,{"$f":"'1PR'!P22","v":0},{"$f":"'1PR'!O22","v":0},null,{"$f":"'1PR'!AI22","v":0},{"$f":"'1PR'!AE22","v":0},null,null,null,{"$f":"'1PR'!AD22","v":0},{"$f":"'1PR'!AC22","v":0},null,{"$f":"'1PR'!AW22","v":0},{"$f":"'1PR'!AS22","v":0},null,null,null,{"$f":"'1PR'!AR22","v":0},{"$f":"'1PR'!AQ22","v":0},null,{"$f":"'1PR'!BK22","v":0},{"$f":"'1PR'!BG22","v":0},null,null,null,{"$f":"'1PR'!BF22","v":0},{"$f":"'1PR'!BE22","v":0}]
[{"$f":"'1PR'!G23","v":14},{"$f":"'1PR'!C23","v":"Floor drain"},null,null,null,{"$f":"'1PR'!B23","v":"pcs"},{"$f":"'1PR'!A23","v":1},null,{"$f":"'1PR'!U23","v":0},{"$f":"'1PR'!Q23","v":0},null,null,null,{"$f":"'1PR'!P23","v":0},{"$f":"'1PR'!O23","v":0},null,{"$f":"'1PR'!AI23","v":0},{"$f":"'1PR'!AE23","v":0},null,null,null,{"$f":"'1PR'!AD23","v":0},{"$f":"'1PR'!AC23","v":0},null,{"$f":"'1PR'!AW23","v":0},{"$f":"'1PR'!AS23","v":0},null,null,null,{"$f":"'1PR'!AR23","v":0},{"$f":"'1PR'!AQ23","v":0},null,{"$f":"'1PR'!BK23","v":0},{"$f":"'1PR'!BG23","v":0},null,null,null,{"$f":"'1PR'!BF23","v":0},{"$f":"'1PR'!BE23","v":0}]
[{"$f":"'1PR'!G24","v":15},{"$f":"'1PR'!C24","v":"Diamond cutting wheel"},null,null,null,{"$f":"'1PR'!B24","v":"pcs"},{"$f":"'1PR'!A24","v":2},null,{"$f":"'1PR'!U24","v":0},{"$f":"'1PR'!Q24","v":0},null,null,null,{"$f":"'1PR'!P24","v":0},{"$f":"'1PR'!O24","v":0},null,{"$f":"'1PR'!AI24","v":0},{"$f":"'1PR'!AE24","v":0},null,null,null,{"$f":"'1PR'!AD24","v":0},{"$f":"'1PR'!AC24","v":0},null,{"$f":"'1PR'!AW24","v":0},{"$f":"'1PR'!AS24","v":0},null,null,null,{"$f":"'1PR'!AR24","v":0},{"$f":"'1PR'!AQ24","v":0},null,{"$f":"'1PR'!BK24","v":0},{"$f":"'1PR'!BG24","v":0},null,null,null,{"$f":"'1PR'!BF24","v":0},{"$f":"'1PR'!BE24","v":0}]
[{"$f":"'1PR'!G25","v":0},{"$f":"'1PR'!C25","v":0},null,null,null,{"$f":"'1PR'!B25","v":0},{"$f":"'1PR'!A25","v":0},null,{"$f":"'1PR'!U25","v":0},{"$f":"'1PR'!Q25","v":0},null,null,null,{"$f":"'1PR'!P25","v":0},{"$f":"'1PR'!O25","v":0},null,{"$f":"'1PR'!AI25","v":0},{"$f":"'1PR'!AE25","v":0},null,null,null,{"$f":"'1PR'!AD25","v":0},{"$f":"'1PR'!AC25","v":0},null,{"$f":"'1PR'!AW25","v":0},{"$f":"'1PR'!AS25","v":0},null,null,null,{"$f":"'1PR'!AR25","v":0},{"$f":"'1PR'!AQ25","v":0},null,{"$f":"'1PR'!BK25","v":0},{"$f":"'1PR'!BG25","v":0},null,null,null,{"$f":"'1PR'!BF25","v":0},{"$f":"'1PR'!BE25","v":0}]
[{"$f":"'1PR'!G26","v":0},{"$f":"'1PR'!C26","v":0},null,null,null,{"$f":"'1PR'!B26","v":0},{"$f":"'1PR'!A26","v":0},null,{"$f":"'1PR'!U26","v":0},{"$f":"'1PR'!Q26","v":0},null,null,null,{"$f":"'1PR'!P26","v":0},{"$f":"'1PR'!O26","v":0},null,{"$f":"'1PR'!AI26","v":0},{"$f":"'1PR'!AE26","v":0},null,null,null,{"$f":"'1PR'!AD26","v":0},{"$f":"'1PR'!AC26","v":0},null,{"$f":"'1PR'!AW26","v":0},{"$f":"'1PR'!AS26","v":0},null,null,null,{"$f":"'1PR'!AR26","v":0},{"$f":"'1PR'!AQ26","v":0},null,{"$f":"'1PR'!BK26","v":0},{"$f":"'1PR'!BG26","v":0},null,null,null,{"$f":"'1PR'!BF26","v":0},{"$f":"'1PR'!BE26","v":0}]
[{"$f":"'1PR'!G27","v":0},{"$f":"'1PR'!C27","v":0},null,null,null,{"$f":"'1PR'!B27","v":0},{"$f":"'1PR'!A27","v":0},null,{"$f":"'1PR'!U27","v":0},{"$f":"'1PR'!Q27","v":0},null,null,null,{"$f":"'1PR'!P27","v":0},{"$f":"'1PR'!O27","v":0},null,{"$f":"'1PR'!AI27","v":0},{"$f":"'1PR'!AE27","v":0},null,null,null,{"$f":"'1PR'!AD27","v":0},{"$f":"'1PR'!AC27","v":0},null,{"$f":"'1PR'!AW27","v":0},{"$f":"'1PR'!AS27","v":0},null,null,null,{"$f":"'1PR'!AR27","v":0},{"$f":"'1PR'!AQ27","v":0},null,{"$f":"'1PR'!BK27","v":0},{"$f":"'1PR'!BG27","v":0},null,null,null,{"$f":"'1PR'!BF27","v":0},{"$f":"'1PR'!BE27","v":0}]
[{"$f":"'1PR'!G28","v":0},{"$f":"'1PR'!C28","v":0},null,null,null,{"$f":"'1PR'!B28","v":0},{"$f":"'1PR'!A28","v":0},null,{"$f":"'1PR'!U28","v":0},{"$f":"'1PR'!Q28","v":0},null,null,null,{"$f":"'1PR'!P28","v":0},{"$f":"'1PR'!O28","v":0},null,{"$f":"'1PR'!AI28","v":0},{"$f":"'1PR'!AE28","v":0},null,null,null,{"$f":"'1PR'!AD28","v":0},{"$f":"'1PR'!AC28","v":0},null,{"$f":"'1PR'!AW28","v":0},{"$f":"'1PR'!AS28","v":0},null,null,null,{"$f":"'1PR'!AR28","v":0},{"$f":"'1PR'!AQ28","v":0},null,{"$f":"'1PR'!BK28","v":0},{"$f":"'1PR'!BG28","v":0},null,null,null,{"$f":"'1PR'!BF28","v":0},{"$f":"'1PR'!BE28","v":0}]
[null,null,null,null,"Brand and Model",": ___________________",null,null,null,null,null,null,"Brand and Model",": ___________________",null,null,null,null,null,null,"Brand and Model",": ___________________",null,null,null,null,null,null,"Brand and Model",": ___________________",null,null,null,null,null,null,"Brand and Model",": ___________________"]
[null,null,null,null,"Delivery Period",": ___________________",null,null,null,null,null,null,"Delivery Period",": ___________________",null,null,null,null,null,null,"Delivery Period",": ___________________",null,null,null,null,null,null,"Delivery Period",": ___________________",null,null,null,null,null,null,"Delivery Period",": ___________________"]
[null,null,null,null,"Warranty",": ___________________",null,null,null,null,null,null,"Warranty",": ___________________",null,null,null,null,null,null,"Warranty",": ___________________",null,null,null,null,null,null,"Warranty",": ___________________",null,null,null,null,null,null,"Warranty",": ___________________"]
[null,null,null,null,"Price Validity",": ___________________",null,null,null,null,null,null,"Price Validity",": ___________________",null,null,null,null,null,null,"Price Validity",": ___________________",null,null,null,null,null,null,"Price Validity",": ___________________",null,null,null,null,null,null,"Price Validity",": ___________________"]
[null,"After having carefully read and accepted your General Conditions, I/We quote you on the item at",null,null,null,null,null,null,null,"After having carefully read and accepted your General Conditions, I/We quote you on the item at",null,null,null,null,null,null,null,"After having carefully read and accepted your General Conditions, I/We quote you on the item at",null,null,null,null,null,null,null,"After having carefully read and accepted your General Conditions, I/We quote you on the item at",null,null,null,null,null,null,null,"After having carefully read and accepted your General Conditions, I/We quote you on the item at"]
["prices noted above.",null,null,null,null,null,null,null,"prices noted above.",null,null,null,null,null,null,null,"prices noted above.",null,null,null,null,null,null,null,"prices noted above.",null,null,null,null,null,null,null,"prices noted above."]
[]
[null,null,null,null,"Printed Name over Signature:",null,null,null,null,null,null,null,"Printed Name over Signature:",null,null,null,null,null,null,null,"Printed Name over Signature:",null,null,null,null,null,null,null,"Printed Name over Signature:",null,null,null,null,null,null,null,"Printed Name over Signature:"]
[null,null,null,null,"Tel. No./Cellphone No./E-mail:",null,null,null,null,null,null,null,"Tel. No./Cellphone No./E-mail:",null,null,null,null,null,null,null,"Tel. No./Cellphone No./E-mail:",null,null,null,null,null,null,null,"Tel. No./Cellphone No./E-mail:",null,null,null,null,null,null,null,"Tel. No./Cellphone No./E-mail:"]
[2,null,null,null,"Date:",null,null,null,2,null,null,null,"Date:",null,null,null,2,null,null,null,"Date:",null,null,null,2,null,null,null,"Date:",null,null,null,2,null,null,null,"Date:"]
[]
[]
[]
[]
[]
[]
[]
[]
[]
[]
[]
[]
[null,null,null,null,null,null,null,null,1,"pc","Printer, CMYK"]

{"sheet":"1PR","index":10,"n_rows":42,"n_cols":68,"rows_kept":42,"cut":false,"hidden":false,"merged":[[28,58,28,61],[28,62,28,63],[28,64,28,66],[28,67,28,69],[27,50,27,52],[27,53,27,55],[33,30,33,33],[33,34,33,35],[33,36,33,38],[33,39,33,41],[27,36,27,38],[29,39,29,41],[30,36,30,38],[30,39,30,41],[32,34,32,35],[32,36,32,38],[32,39,32,41],[30,2,30,5],[31,2,31,5],[25,20,25,21],[37,0,37,1],[37,2,37,5],[37,6,37,13],[34,2,34,5],[35,1,35,13],[33,2,33,5],[33,6,33,7],[33,8,33,10],[33,11,33,13],[32,6,32,7],[32,8,32,10],[32,11,32,13],[31,6,31,7],[31,11,31,13],[30,6,30,7],[30,11,30,13],[29,8,29,10],[30,8,30,10],[40,0,40,1],[40,2,40,5],[40,6,40,13],[39,0,39,1],[39,2,39,5],[39,6,39,13],[38,0,38,1],[38,2,38,5],[38,6,38,13],[19,6,19,7],[21,6,21,7],[20,6,20,7],[19,11,19,13],[22,6,22,7],[23,6,23,7],[19,8,19,10],[26,6,26,7],[20,11,20,13],[24,6,24,7],[24,8,24,10],[24,11,24,13],[25,6,25,7],[25,8,25,10],[25,11,25,13],[22,8,22,10],[22,11,22,13],[23,8,23,10],[23,11,23,13],[29,2,29,5],[28,6,28,7],[21,8,21,10],[28,11,28,13],[29,6,29,7],[26,8,26,10],[29,11,29,13],[20,8,20,10],[21,11,21,13],[27,6,27,7],[28,2,28,5],[11,6,11,7],[11,8,11,10],[11,11,11,13],[18,6,18,7],[17,6,17,7],[16,6,16,7],[16,11,16,13],[14,11,14,13],[14,8,14,10],[12,6,12,7],[12,8,12,10],[12,11,12,13],[13,6,13,7],[13,8,13,10],[13,11,13,13],[15,6,15,7],[15,8,15,10],[15,11,15,13],[17,8,17,10],[18,8,18,10],[14,6,14,7],[17,11,17,13],[16,8,16,10],[18,11,18,13],[10,6,10,7],[10,8,10,10],[10,11,10,13],[9,6,9,7],[9,8,9,10],[9,11,9,13],[9,34,9,35],[9,25,9,27],[10,20,10,21],[10,22,10,24],[10,25,10,27],[10,34,10,35],[11,20,11,21],[11,22,11,24],[11,25,11,27],[12,34,12,35],[14,34,14,35],[18,34,18,35],[14,20,14,21],[14,22,14,24],[14,25,14,27],[15,20,15,21],[15,22,15,24],[15,25,15,27],[16,20,16,21],[16,22,16,24],[16,25,16,27],[17,22,17,24],[17,25,17,27],[18,20,18,21],[18,22,18,24],[18,25,18,27],[1,0,1,13],[5,11,5,13],[7,0,8,0],[7,1,8,1],[7,2,8,5],[7,6,8,7],[7,8,8,10],[7,11,8,13],[4,1,4,4],[4,11,4,13],[3,1,3,4],[3,6,3,8],[3,11,3,13],[0,28,0,41],[1,28,1,41],[3,29,3,32],[3,34,3,36],[3,39,3,41],[4,29,4,32],[4,39,4,41],[5,39,5,41],[7,28,8,28],[7,29,8,29],[7,30,8,33],[7,34,8,35],[7,36,8,38],[7,39,8,41],[9,36,9,38],[9,39,9,41],[10,36,10,38],[10,39,10,41],[11,34,11,35],[0,0,0,13],[11,36,11,38],[11,39,11,41],[0,14,0,27],[1,14,1,27],[3,15,3,18],[3,20,3,22],[3,25,3,27],[4,15,4,18],[4,25,4,27],[5,25,5,27],[7,14,8,14],[7,15,8,15],[7,16,8,19],[7,20,8,21],[7,22,8,24],[7,25,8,27],[9,20,9,21],[9,22,9,24],[12,36,12,38],[12,39,12,41],[13,34,13,35],[13,36,13,38],[13,39,13,41],[12,20,12,21],[12,22,12,24],[12,25,12,27],[13,20,13,21],[13,22,13,24],[13,25,13,27],[14,36,14,38],[14,39,14,41],[15,34,15,35],[15,36,15,38],[15,39,15,41],[16,34,16,35],[16,36,16,38],[16,39,16,41],[17,34,17,35],[17,36,17,38],[17,39,17,41],[18,36,18,38],[18,39,18,41],[19,34,19,35],[19,36,19,38],[19,39,19,41],[31,36,31,38],[31,39,31,41],[22,34,22,35],[22,36,22,38],[22,39,22,41],[23,34,23,35],[23,36,23,38],[23,39,23,41],[24,34,24,35],[24,36,24,38],[24,39,24,41],[25,34,25,35],[25,36,25,38],[25,39,25,41],[34,30,34,33],[35,29,35,41],[40,28,40,29],[40,30,40,33],[40,34,40,41],[37,28,37,29],[37,30,37,33],[37,34,37,41],[38,28,38,29],[38,30,38,33],[38,34,38,41],[39,28,39,29],[39,30,39,33],[39,34,39,41],[0,56,0,69],[1,56,1,69],[3,57,3,60],[3,62,3,64],[3,67,3,69],[4,57,4,60],[4,67,4,69],[5,67,5,69],[7,56,8,56],[7,57,8,57],[7,58,8,61],[7,62,8,63],[7,64,8,66],[7,67,8,69],[9,62,9,63],[9,64,9,66],[9,67,9,69],[10,62,10,63],[10,64,10,66],[10,67,10,69],[11,62,11,63],[11,64,11,66],[11,67,11,69],[12,62,12,63],[12,64,12,66],[12,67,12,69],[13,62,13,63],[13,64,13,66],[13,67,13,69],[14,62,14,63],[14,64,14,66],[14,67,14,69],[21,62,21,63],[21,64,21,66],[21,67,21,69],[15,62,15,63],[15,64,15,66],[15,67,15,69],[16,62,16,63],[16,64,16,66],[16,67,16,69],[20,62,20,63],[20,64,20,66],[20,67,20,69],[17,62,17,63],[17,64,17,66],[17,67,17,69],[18,62,18,63],[18,64,18,66],[18,67,18,69],[19,62,19,63],[19,64,19,66],[19,67,19,69],[22,62,22,63],[22,64,22,66],[22,67,22,69],[23,62,23,63],[23,64,23,66],[23,67,23,69],[24,62,24,63],[24,64,24,66],[24,67,24,69],[25,62,25,63],[25,64,25,66],[25,67,25,69],[26,62,26,63],[29,64,29,66],[29,67,29,69],[26,64,26,66],[26,67,26,69],[27,64,27,66],[27,67,27,69],[30,64,30,66],[30,67,30,69],[31,62,31,63],[31,64,31,66],[31,67,31,69],[32,62,32,63],[32,64,32,66],[32,67,32,69],[33,58,33,61],[33,62,33,63],[33,64,33,66],[33,67,33,69],[34,58,34,61],[35,57,35,69],[40,56,40,57],[40,58,40,61],[40,62,40,69],[37,56,37,57],[37,58,37,61],[37,62,37,69],[38,56,38,57],[38,58,38,61],[38,62,38,69],[39,56,39,57],[39,58,39,61],[39,62,39,69],[17,20,17,21],[37,20,37,27],[38,14,38,15],[38,16,38,19],[38,20,38,27],[39,14,39,15],[39,16,39,19],[39,20,39,27],[29,22,29,24],[29,25,29,27],[30,16,30,19],[30,20,30,21],[30,22,30,24],[30,25,30,27],[31,16,31,19],[31,20,31,21],[31,22,31,24],[31,25,31,27],[29,16,29,19],[29,20,29,21],[26,20,26,21],[26,39,26,41],[25,48,25,49],[25,50,25,52],[25,53,25,55],[25,22,25,24],[25,25,25,27],[19,20,19,21],[19,22,19,24],[19,25,19,27],[21,48,21,49],[21,50,21,52],[21,53,21,55],[20,20,20,21],[20,22,20,24],[20,25,20,27],[21,34,21,35],[21,36,21,38],[21,39,21,41],[20,34,20,35],[20,36,20,38],[20,39,20,41],[9,48,9,49],[9,50,9,52],[9,53,9,55],[10,48,10,49],[10,50,10,52],[10,53,10,55],[11,48,11,49],[18,48,18,49],[18,50,18,52],[18,53,18,55],[11,50,11,52],[11,53,11,55],[12,48,12,49],[12,50,12,52],[12,53,12,55],[13,48,13,49],[13,50,13,52],[13,53,13,55],[14,48,14,49],[14,50,14,52],[14,53,14,55],[15,48,15,49],[15,50,15,52],[15,53,15,55],[0,42,0,55],[1,42,1,55],[3,43,3,46],[3,48,3,50],[3,53,3,55],[4,43,4,46],[4,53,4,55],[5,53,5,55],[7,42,8,42],[7,43,8,43],[7,44,8,47],[7,48,8,49],[7,50,8,52],[7,53,8,55],[16,48,16,49],[16,50,16,52],[16,53,16,55],[17,48,17,49],[17,50,17,52],[17,53,17,55],[26,48,26,49],[26,50,26,52],[26,53,26,55],[19,48,19,49],[19,50,19,52],[19,53,19,55],[20,48,20,49],[20,50,20,52],[22,48,22,49],[22,50,22,52],[22,53,22,55],[23,48,23,49],[23,50,23,52],[23,53,23,55],[24,48,24,49],[24,50,24,52],[24,53,24,55],[20,53,20,55],[31,48,31,49],[31,50,31,52],[31,53,31,55],[29,44,29,47],[29,48,29,49],[28,44,28,47],[28,48,28,49],[28,50,28,52],[32,48,32,49],[32,50,32,52],[32,53,32,55],[33,44,33,47],[33,48,33,49],[33,50,33,52],[33,53,33,55],[34,44,34,47],[35,43,35,55],[40,44,40,47],[40,48,40,55],[37,42,37,43],[37,44,37,47],[37,48,37,55],[38,42,38,43],[38,44,38,47],[38,48,38,55],[39,42,39,43],[39,44,39,47],[39,48,39,55],[40,42,40,43],[21,20,21,21],[21,22,21,24],[21,25,21,27],[32,20,32,21],[32,22,32,24],[32,25,32,27],[33,16,33,19],[33,20,33,21],[33,22,33,24],[33,25,33,27],[34,16,34,19],[35,15,35,27],[40,14,40,15],[40,16,40,19],[40,20,40,27],[37,14,37,15],[37,16,37,19],[26,22,26,24],[22,20,22,21],[24,20,24,21],[24,22,24,24],[24,25,24,27],[28,8,28,10],[28,16,28,19],[28,20,28,21],[28,22,28,24],[28,25,28,27],[28,30,28,33],[28,34,28,35],[28,36,28,38],[28,39,28,41],[22,22,22,24],[22,25,22,27],[23,20,23,21],[26,11,26,13],[23,22,23,24],[23,25,23,27],[26,25,26,27],[26,34,26,35],[26,36,26,38],[31,30,31,33],[31,34,31,35],[27,8,27,10],[27,11,27,13],[27,30,27,33],[27,34,27,35],[27,20,27,21],[27,22,27,24],[27,25,27,27],[31,8,31,10],[27,48,27,49],[27,58,27,61],[27,62,27,63],[29,30,29,33],[29,34,29,35],[29,36,29,38],[30,30,30,33],[30,34,30,35],[29,50,29,52],[29,53,29,55],[30,44,30,47],[30,48,30,49],[30,50,30,52],[30,53,30,55],[29,58,29,61],[29,62,29,63],[27,39,27,41],[30,58,30,61],[30,62,30,63],[28,53,28,55],[27,44,27,47]]}
["PURCHASE REQUEST",null,null,null,null,null,null,null,null,null,null,null,null,null,"PURCHASE REQUEST",null,null,null,null,null,null,null,null,null,null,null,null,null,"PURCHASE REQUEST",null,null,null,null,null,null,null,null,null,null,null,null,null,"PURCHASE REQUEST",null,null,null,null,null,null,null,null,null,null,null,null,null,"PURCHASE REQUEST"]
["Department of Education",null,null,null,null,null,null,null,null,null,null,null,null,null,"Department of Education",null,null,null,null,null,null,null,null,null,null,null,null,null,"Department of Education",null,null,null,null,null,null,null,null,null,null,null,null,null,"Department of Education",null,null,null,null,null,null,null,null,null,null,null,null,null,"Department of Education"]
[]
["Department","DEPED-Division of Lapu-Lapu City",null,null,null,"PR No.:",{"$f":"'7DV'!J12","v":2001001},null,null,"Date:",null,"2016-11-04",null,null,"Department","DEPED-Division of Lapu-Lapu City",null,null,null,"PR No.:",{"$f":"G4+1","v":2001002},null,null,"Date:",null,{"$f":"L4","v":"2016-11-04"},null,null,"Department","DEPED-Division of Lapu-Lapu City",null,null,null,"PR No.:",{"$f":"U4+1","v":2001003},null,null,"Date:",null,{"$f":"Z4","v":"2016-11-04"},null,null,"Department","DEPED-Division of Lapu-Lapu City",null,null,null,"PR No.:",{"$f":"U4+1","v":2001003},null,null,"Date:",null,"2016-07-03",null,null,"Department","DEPED-Division of Lapu-Lapu City",null,null,null,"PR No.:",{"$f":"AI4+1","v":2001004},null,null,"Date:",null,"2016-07-03"]
["Section","Marigondon Elementary School",null,null,null,"SAI No.:",null,null,null,"Date:",null,null,null,null,"Section","Marigondon Elementary School",null,null,null,"SAI No.:",null,null,null,"Date:",null,null,null,null,"Section","Marigondon Elementary School",null,null,null,"SAI No.:",null,null,null,"Date:",null,null,null,null,"Section","Marigondon Elementary School",null,null,null,"SAI No.:",null,null,null,"Date:",null,null,null,null,"Section","Marigondon Elementary School",null,null,null,"SAI No.:",null,null,null,"Date:"]
[null,null,null,null,null,"ALOBS No.:",null,null,null,"Date:",null,null,null,null,null,null,null,null,null,"ALOBS No.:",null,null,null,"Date:",null,null,null,null,null,null,null,null,null,"ALOBS No.:",null,null,null,"Date:",null,null,null,null,null,null,null,null,null,"ALOBS No.:",null,null,null,"Date:",null,null,null,null,null,null,null,null,null,"ALOBS No.:",null,null,null,"Date:"]
[]
["Quantity","Unit of\nIssue","Item Description",null,null,null,"Stock No.",null,"Estimated\nUnit Cost",null,null,"Estimated\nCost",null,null,"Quantity","Unit of\nIssue","Item Description",null,null,null,"Stock No.",null,"Estimated\nUnit Cost",null,null,"Estimated\nCost",null,null,"Quantity","Unit of\nIssue","Item Description",null,null,null,"Stock No.",null,"Estimated\nUnit Cost",null,null,"Estimated\nCost",null,null,"Quantity","Unit of\nIssue","Item Description",null,null,null,"Stock No.",null,"Estimated\nUnit Cost",null,null,"Estimated\nCost",null,null,"Quantity","Unit of\nIssue","Item Description",null,null,null,"Stock No.",null,"Estimated\nUnit Cost",null,null,"Estimated\nCost"]
[]
[1,"roll","Loomex wire, #12",null,null,null,1,null,2200,null,null,{"$f":"I10*A10","v":2200},null,null,20,"ream","Bondpaper Long, Sub 20",null,null,null,1,null,159,null,null,{"$f":"W10*O10","v":3180},null,null,1.5,"roll","Coaxial Cable",null,null,null,1,null,8025,null,null,{"$f":"AK10*AC10","v":12037.5},null,null,8,"tl","Septic vault suction",null,null,null,1,null,3400,null,null,{"$f":"AY10*AQ10","v":27200}]
[5,"pcs","Safety breaker, Surface type (15amp)",null,null,null,2,null,387.5,null,null,{"$f":"I11*A11","v":1937.5},null,null,10,"pcs","White board pen, (black, blue & red)",null,null,null,2,null,35,null,null,{"$f":"W11*O11","v":350},null,null,1,"pcs","DC Adapter 12v, 5A",null,null,null,2,null,50,null,null,{"$f":"AK11*AC11","v":50},null,null,null,null,null,null,null,null,null,null,null,null,null,{"$f":"AY11*AQ11","v":0}]
[3,"set","Flood light, Led 30w",null,null,null,3,null,1350,null,null,4050,null,null,1,"unit","Printer, CMYK",null,null,null,3,null,4995,null,null,{"$f":"W12*O12","v":4995},null,null,5,"pcs","Camera",null,null,null,3,null,1595,null,null,7975,null,null,null,null,null,null,null,null,null,null,null,null,null,{"$f":"AY12*AQ12","v":0}]
[2,"set","Flood light, Led 50w",null,null,null,4,null,3000,null,null,6000,null,null,null,null,null,null,null,null,null,null,0,null,null,{"$f":"W13*O13","v":0},null,null,3,"pcs","BNC Cable, 30m",null,null,null,4,null,350,null,null,1050]
[5,"roll","Electrical Tape, Big",null,null,null,5,null,45,null,null,225,null,null,null,null,null,null,null,null,null,null,0,null,null,{"$f":"W14*O14","v":0},null,null,15,"pcs","BNC, Adaptor, Male",null,null,null,5,null,70,null,null,1050]
[100,"pcs","Tiles, 60 x 60",null,null,null,6,null,158.08000000000001,null,null,15808.000000000002,null,null,null,null,null,null,null,null,null,null,null,null,null,0,null,null,15,"pcs","BNC, Adaptor, Female",null,null,null,6,null,70,null,null,1050]
[17,"bag","Adhesive",null,null,null,7,null,235,null,null,3995,null,null,null,null,null,null,null,null,null,null,null,null,null,0,null,null,15,"pcs","BNC, Barrel",null,null,null,7,null,60,null,null,900]
[16,"bag","Cement",null,null,null,8,null,190,null,null,3040,null,null,null,null,null,null,null,null,null,null,null,null,null,0,null,null,4,"roll","Coaxial cable, 20m",null,null,null,8,null,315,null,null,1260]
[2,"bag","Tile Grout",null,null,null,9,null,65,null,null,130,null,null,null,null,null,null,null,null,null,null,null,null,null,0,null,null,4,"roll","Coaxial cable, 30m",null,null,null,9,null,415,null,null,1660]
[1,"pck","Staple wire, Concrete",null,null,null,10,null,118.5,null,null,118.5,null,null,null,null,null,null,null,null,null,null,null,null,null,0]
[1,"pck","Tox w/ screw",null,null,null,11,null,65.5,null,null,65.5,null,null,null,null,null,null,null,null,null,null,null,null,null,0]
[1,"pck","Stainless, Plain washer 1/4",null,null,null,12,null,16,null,null,16,null,null,null,null,null,null,null,null,null,null,null,null,null,0]
[1,"pcs","Switch flush typew, 1 gang",null,null,null,13,null,60,null,null,60,null,null,null,null,null,null,null,null,null,null,null,null,null,0]
[1,"pcs","Floor drain",null,null,null,14,null,20,null,null,20,null,null,null,null,null,null,null,null,null,null,null,null,null,0]
[2,"pcs","Diamond cutting wheel",null,null,null,15,null,140,null,null,280,null,null,null,null,null,null,null,null,null,null,null,null,null,0]
[]
[]
[]
[]
[null,null,"Funds Available:",null,null,null,null,null,null,null,null,null,null,null,null,null,"Funds Available:",null,null,null,null,null,null,null,null,null,null,null,null,null,"Funds Available:"]
[null,null,null,null,null,null,null,null,null,null,null,null,null,null,null,null,null,null,null,null,null,null,null,null,null,null,null,null,null,null,null,null,null,null,null,null,null,null,null,null,null,null,null,null,{"$f":"'7DV'!$D$46","v":"KO-JACK E. IBAÑO"},null,null,null,null,null,null,null,null,null,null,null,null,null,{"$f":"'7DV'!$D$46","v":"KO-JACK E. IBAÑO"}]
[null,null,{"$f":"'7DV'!$D$46","v":"KO-JACK E. IBAÑO"},null,null,null,null,null,null,null,null,null,null,null,null,null,{"$f":"'7DV'!$D$46","v":"KO-JACK E. IBAÑO"},null,null,null,null,null,null,null,null,null,null,null,null,null,{"$f":"'7DV'!$D$46","v":"KO-JACK E. IBAÑO"},null,null,null,null,null,null,null,null,null,null,null,null,null,{"$f":"'7DV'!$D$47","v":"Teacher III, School Bookkeeper-Designate"},null,null,null,null,null,null,null,null,null,null,null,null,null,{"$f":"'7DV'!$D$47","v":"Teacher III, School Bookkeeper-Designate"}]
[null,null,{"$f":"'7DV'!$D$47","v":"Teacher III, School Bookkeeper-Designate"},null,null,null,null,null,null,null,null,null,null,null,null,null,{"$f":"'7DV'!$D$47","v":"Teacher III, School Bookkeeper-Designate"},null,null,null,null,null,null,null,null,null,null,null,null,null,{"$f":"'7DV'!$D$47","v":"Teacher III, School Bookkeeper-Designate"}]
[]
[null,null,null,null,null,null,null,null,"Total",null,null,{"$f":"SUM(L10:N33)","v":37945.5},null,null,null,null,null,null,null,null,null,null,"Total",null,null,{"$f":"SUM(Z10:AB33)","v":8525},null,null,null,null,null,null,null,null,null,null,"Total",null,null,{"$f":"SUM(AN10:AP33)","v":27032.5},null,null,null,null,null,null,null,null,null,null,"Total",null,null,{"$f":"SUM(BB10:BD33)","v":27200},null,null,null,null,null,null,null,null,null,null,"Total",null,null,{"$f":"SUM(BP10:BR33)","v":0}]
[]
["Purpose:","Repair and Maintenance",null,null,null,null,null,null,null,null,null,null,null,null,"Purpose:","Office Supplies",null,null,null,null,null,null,null,null,null,null,null,null,"Purpose:","CCTV repair & Installation",null,null,null,null,null,null,null,null,null,null,null,null,"Purpose:","Repair and Maintenance",null,null,null,null,null,null,null,null,null,null,null,null,"Purpose:","E-Classroom"]
[]
[null,null,"Requested by:",null,null,null,"Approved by:",null,null,null,null,null,null,null,null,null,"Requested by:",null,null,null,"Approved by:",null,null,null,null,null,null,null,null,null,"Requested by:",null,null,null,"Approved by:",null,null,null,null,null,null,null,null,null,"Requested by:",null,null,null,"Approved by:",null,null,null,null,null,null,null,null,null,"Requested by:",null,null,null,"Approved by:"]
["Signature:",null,null,null,null,null,null,null,null,null,null,null,null,null,"Signature:",null,null,null,null,null,null,null,null,null,null,null,null,null,"Signature:",null,null,null,null,null,null,null,null,null,null,null,null,null,"Signature:",null,null,null,null,null,null,null,null,null,null,null,null,null,"Signature:"]
["Printed Name:",null,"EVELYN S. ONGCO",null,null,null,"REBECCA P. TORING",null,null,null,null,null,null,null,"Printed Name:",null,"EVELYN S. ONGCO",null,null,null,"REBECCA P. TORING",null,null,null,null,null,null,null,"Printed Name:",null,"EVELYN S. ONGCO",null,null,null,"REBECCA P. TORING",null,null,null,null,null,null,null,"Printed Name:",null,"EVELYN S. ONGCO",null,null,null,"REBECCA P. TORING",null,null,null,null,null,null,null,"Printed Name:",null,"EVELYN S. ONGCO",null,null,null,"REBECCA P. TORING"]
["Designation:",null,"Teacher IIII, Property Custodian",null,null,null,"Principal I",null,null,null,null,null,null,null,"Designation:",null,"Teacher IIII, Property Custodian",null,null,null,"Principal I",null,null,null,null,null,null,null,"Designation:",null,"Teacher I, Property Custodian",null,null,null,"Principal I",null,null,null,null,null,null,null,"Designation:",null,"Teacher I, Property Custodian",null,null,null,"Principal III",null,null,null,null,null,null,null,"Designation:",null,"Teacher I, Property Custodian",null,null,null,"Principal III"]
[1,null,null,null,null,null,null,null,null,null,null,null,null,null,1,null,null,null,null,null,null,null,null,null,null,null,null,null,1,null,null,null,null,null,null,null,null,null,null,null,null,null,1,null,null,null,null,null,null,null,null,null,null,null,null,null,1]

{"sheet":"P1","index":11,"n_rows":34,"n_cols":20,"rows_kept":34,"cut":false,"hidden":false,"merged":[[32,0,32,4],[33,0,33,4],[6,9,7,9],[32,5,32,10],[32,11,32,15],[33,5,33,10],[33,11,33,15],[6,11,7,11],[6,12,7,12],[6,13,7,13],[6,14,7,14],[6,15,7,15],[8,1,8,3],[1,4,1,12],[0,4,0,12],[3,0,3,15],[4,0,4,15],[6,0,7,0],[6,1,7,3],[6,4,7,4],[6,5,6,6],[6,7,7,7],[6,8,7,8],[6,10,7,10]]}
[null,null,null,null,"DEPED, LAPU-LAPU CITY PAYROLL",null,null,null,null,null,null,null,null,null,"Payroll No.:",1601001]
[null,null,null,null,{"$f":"P!A22","v":"Repair and Maintenance"}]
[]
[{"$f":"\"We hereby acknowlegde to have received from \"&'7DV'!D46&\", \"&'7DV'!D47&\" of Marigondon Elementary School, the sums herein\"","v":"We hereby acknowlegde to have received from KO-JACK E. IBAÑO, Teacher III, School Bookkeeper-Designate of Marigondon Elementary School, the sums herein"}]
["specified opposite our respective names, the sums being full compensation for our services rendered during the period stated below, to the correctness of which we hereby certify."]
[]
[null,"Name of Payee",null,null,"Designation","Period of Service",null,"No. of Days","Daily\nRate","Daily\nRate\nKto12 Summit","Amount\nAccrued","Withholding\nTax","Amount Due","Amount Paid",null,"Signature of \nPayee"]
[null,null,null,null,null,"From","To"]
[1,2,null,null,3,4,{"$f":"+F9+1","v":5},{"$f":"G9+1","v":6},7,8,9,10,11,12,13,14]
[1,"Pioquinto","Jonathan","D.","Technician/Electrician","2018-02-10",{"$f":"F10+H10","v":"2018-02-23"},13,450,null,{"$f":"H10*I10","v":5850},null,null,{"$f":"K10","v":5850},1]
[{"$f":"+A10+1","v":2},"Pioquinto","Jerry",null,"Technician/Electrician","2018-02-10","2018-02-23",13,450,null,{"$f":"H11*I11","v":5850},null,null,{"$f":"K11","v":5850},{"$f":"A11","v":2}]
[{"$f":"+A11+1","v":3},"Ochea","Garry",null,"Carpenter/Mason","2018-02-10","2018-02-21",11,450,null,4950,null,null,4950,{"$f":"A12","v":3}]
[4,"Ochea","Peter",null,"Carpenter/Mason","2018-02-10","2018-02-19",9,300,null,2700,null,null,2700,4]
[5,"Nuñez","Niel",null,"Carpenter/Mason","2018-02-10","2018-02-19",9,300,null,2700,null,null,{"$f":"K14","v":2700},5,null,{"$f":"N14-168.44","v":2531.56}]
[6,"Ponio","Leve",null,"Carpenter/Mason","2018-02-10","2018-02-19",9,300,null,{"$f":"H15*I15","v":2700},null,null,{"$f":"K15","v":2700},6,null,null,null,null,{"$f":"N30-168.44","v":24581.56}]
[7,null,null,null,null,null,null,null,null,null,null,null,null,null,7]
[8,null,null,null,null,null,null,null,null,null,null,null,null,null,8]
[9,null,null,null,null,null,null,null,null,null,null,null,null,null,9]
[10,null,null,null,null,null,null,null,null,null,null,null,null,null,10]
[11,null,null,null,null,null,null,null,null,null,null,null,null,null,11]
[12,null,null,null,null,null,null,null,null,null,null,null,null,null,12]
[13,null,null,null,null,null,null,null,null,null,null,null,null,null,13]
[14,null,null,null,null,null,null,null,null,null,null,null,null,null,14]
[15,null,null,null,null,null,null,null,null,null,null,null,null,null,15]
[16,null,null,null,null,null,null,null,null,null,null,null,null,null,16]
[17,null,null,null,null,null,null,null,null,null,null,null,null,null,17]
[18,null,null,null,null,null,null,null,null,null,null,null,null,null,18]
[19,null,null,null,null,null,null,null,null,null,null,null,null,null,19]
[20,null,null,null,null,null,null,null,null,null,null,null,null,null,20]
[null,null,null,null,null,null,null,null,null,null,{"$f":"SUM(K10:K29)","v":24750},null,null,{"$f":"SUM(N10:N29)","v":24750}]
["Funds Available:",null,null,null,null,"Services Rendered:",null,null,null,null,null,"Approved for Payment:"]
[]
[{"$f":"'7DV'!D46","v":"KO-JACK E. IBAÑO"},null,null,null,null,"ZIGMUND JESS J. CID",null,null,null,null,null,"REBECCA P. TORING"]
[{"$f":"'7DV'!D47","v":"Teacher III, School Bookkeeper-Designate"},null,null,null,null,"Teacher I, Property Custodian",null,null,null,null,null,"Principal I"]

{"sheet":"Sheet1","index":12,"n_rows":61,"n_cols":5,"rows_kept":61,"cut":false,"hidden":false,"merged":[[27,4,27,5],[28,0,28,3],[28,4,28,5],[29,0,29,3],[29,4,29,5],[56,0,58,0],[20,0,20,3],[20,4,20,5],[21,0,21,3],[21,4,21,5],[22,0,22,3],[22,4,22,5],[23,0,23,3],[23,4,23,5],[24,0,24,3],[47,0,47,5],[48,0,48,5],[49,0,49,5],[50,0,52,0],[39,0,39,5],[40,0,40,5],[59,0,60,0],[59,1,59,3],[59,4,59,5],[60,2,60,3],[12,0,14,0],[12,3,14,3],[15,0,16,0],[17,0,18,0],[41,0,46,5],[53,0,55,0],[53,1,55,3],[53,4,55,5],[56,1,58,3],[56,4,58,5],[50,1,52,3],[50,4,52,5],[36,0,36,3],[36,4,36,5],[37,0,37,3],[37,4,37,5],[38,0,38,3],[38,4,38,5],[33,0,33,3],[33,4,33,5],[34,0,34,3],[34,4,34,5],[35,0,35,3],[35,4,35,5],[15,1,16,5],[17,1,18,5],[19,0,19,3],[19,4,19,5],[32,0,32,3],[32,4,32,5],[24,4,24,5],[25,0,25,3],[25,4,25,5],[26,0,26,3],[30,0,30,3],[30,4,30,5],[31,0,31,3],[31,4,31,5],[26,4,26,5],[27,0,27,3],[8,0,8,5],[9,0,9,5],[10,0,10,5],[11,0,11,5],[12,1,14,2],[12,4,14,5],[7,0,7,5],[1,0,1,5],[2,0,2,5],[3,0,3,5],[4,0,4,5],[5,0,5,5],[6,0,6,5]]}
[]
["REPUBLIC OF THE PHILIPPINES"]
["DEPARTMENT OF EDUCATION"]
["REGION VII, CENTRAL VISAYAS"]
["DIVISION OF LAPU-LAPU CITY"]
["Tel. No. (032) 340-7887; 340-5031;"]
["Telefax No. (032) 495-4655"]
[]
[]
["CERTIFICATION OF EXPENSES NOT REQUIRING RECEIPTS"]
["Pursuant to COA Circular No. 2017-001 dated June 19, 2017"]
[]
["Name of Employee","KO-JACK E. IBAÑO",null,"Employee No.","479-2178"]
[]
[]
["Office","MARIGONDON ELEMENTARY SCHOOL"]
[]
["Division","LAPU-LAPU CITY DIVISION"]
[]
["Particulars",null,null,null,"Amount (₱)"]
[]
[]
[]
[]
[]
[]
[]
[]
[]
[]
[]
[]
[]
[]
[]
[]
[]
[]
["TOTAL"]
[]
["Purpose"]
["ECONOMY FARE in the payment of Electricity,and purchase of supplies and materials of Marigondon Elementary School on January 8 to February 1, 2018."]
[]
[]
[]
[]
[]
["I hereby certify that the above expenses are incurred as they are necessary for the above cited "]
["purpose,that above good and services were acquired from partied not issuing receipts. And that I"]
["am fully aware that willful falsification of statements is punishable by law."]
[null,"Certified correct: ",null,null,"Noted by: "]
[]
[]
["Signature"]
[]
[]
["Printed Name"]
[]
[]
[null,"Employee",null,null,"School Heads"]
[null,"Date",null,null,"Date"]

{"sheet":"CheqDetail","index":13,"n_rows":26,"n_cols":3,"rows_kept":26,"cut":false,"hidden":false,"merged":[[19,0,19,1],[19,2,19,3],[10,2,10,3],[11,2,11,3],[12,2,12,3],[12,0,12,1],[13,0,13,3],[15,0,15,1],[15,2,15,3],[4,0,4,3],[5,0,5,3],[6,0,6,3],[10,0,10,1],[11,0,11,1],[7,0,7,3],[8,0,8,3],[0,0,0,3],[1,0,1,3],[2,0,2,3],[3,0,3,3],[34,1,34,3],[14,0,14,1],[16,0,16,1],[17,0,17,1],[18,0,18,1],[25,1,25,2],[16,2,16,3],[18,2,18,3],[24,1,24,2],[33,1,33,3],[17,2,17,3],[14,2,14,3]]}
["Republic of the Philippines"]
["Department of Education, Culture and Sports"]
["Region VII, Central Visayas"]
["Division of Lapu-Lapu City"]
["District 5"]
["MARIGONDON ELEMENTARY SCHOOL"]
[]
["LIQUIDATION REPORT"]
["MOOE"]
[]
["Check No.:",null,123516]
["Date",null,"2018-01-31"]
["Amount",null,217666]
[]
["Account No",null,"002135-9001-87"]
["TIN",null,"000-863-958-020"]
["Fund",null,101]
["Area",null,"0795"]
["Allot Obj. Class",null,"200-873"]
["Date Received",null,"2018-02-02"]
[]
[]
[]
["Prepared by:"]
[null,"KO-JACK E. IBANO"]
[null,"SCHOOL HEAD"]

{"sheet":"ICS","index":14,"n_rows":40,"n_cols":17,"rows_kept":40,"cut":false,"hidden":false,"merged":[[38,0,38,4],[38,5,38,7],[39,0,39,4],[39,5,39,7],[5,4,5,7],[33,5,33,7],[34,0,34,4],[35,0,35,4],[35,5,35,7],[36,0,36,4],[36,5,36,7],[28,2,28,4],[29,2,29,4],[30,2,30,4],[31,2,31,4],[32,2,32,4],[33,0,33,4],[22,2,22,4],[23,2,23,4],[24,2,24,4],[25,2,25,4],[26,2,26,4],[27,2,27,4],[21,2,21,4],[10,2,10,4],[11,2,11,4],[12,2,12,4],[13,2,13,4],[14,2,14,4],[15,2,15,4],[16,2,16,4],[17,2,17,4],[18,2,18,4],[19,2,19,4],[20,2,20,4],[9,2,9,4],[0,0,0,7],[1,0,1,7],[2,0,2,7],[7,2,7,4],[8,2,8,4]]}
["INVENTORY CUSTODIAN SLIP"]
["Marigondon Elementary School"]
["ICS  No:_______"]
[]
[]
["Name of Accountable Officer/Teacher:",null,null,null,"______________________________________________"]
[]
["Qty","Unit","Description",null,null,"Serial No","Unit cost","Remarks"]
[]
[]
[]
[]
[]
[]
[null,null,null,null,null,null,null,null,null,null,null,null,null,null,450,10,{"$f":"O15*P15","v":4500}]
[]
[null,null,null,null,null,null,null,null,null,null,null,null,null,null,null,3560]
[]
[]
[]
[]
[]
[]
[]
[]
[]
[]
[]
[]
[]
[]
[]
[]
["Received by:",null,null,null,null,"Received from:"]
[]
["_____________________________",null,null,null,null,"ZIGMUND JESS J. CID"]
[null,null,null,null,null,"Teacher I, School Property Custodian"]
[]
["                 __________________________         ___________",null,null,null,null,"__________________"]
["                                 Designation                                   Date",null,null,null,null,"Date"]

{"sheet":"Travel1","index":15,"n_rows":43,"n_cols":32,"rows_kept":43,"cut":false,"hidden":false,"merged":[[8,0,8,6],[8,8,8,15],[0,0,0,6],[0,7,0,15],[1,0,1,6],[1,7,1,15],[2,0,2,6],[2,7,2,15],[3,0,3,6],[3,7,3,15],[5,4,5,6],[5,7,5,15],[7,8,7,15],[9,8,9,15],[10,2,10,6],[10,9,12,15],[11,2,11,6],[12,2,12,6],[13,15,14,15],[14,2,17,6],[18,2,18,6],[13,12,14,12],[22,25,22,35],[20,24,20,35],[20,2,20,6],[21,18,21,35],[21,2,22,6],[19,2,19,6],[13,2,13,6],[13,7,14,7],[13,8,13,9],[13,10,13,11],[13,13,14,13],[13,14,14,14],[23,18,23,35],[34,8,34,12],[23,3,23,6],[24,2,24,6],[25,2,25,6],[26,2,26,6],[27,0,27,6],[28,0,30,6]]}
["Republic of the Philippines",null,null,null,null,null,null,"Republic of the Philippines",null,null,null,null,null,null,null,null,null,null,null,null,null,null,null,null,null,"APPENDIX B"]
["Department of Education",null,null,null,null,null,null,"Department of Education",null,null,null,null,null,null,null,null,null,null,null,null,null,null,null,null,null,"Division of Lapu-Lapu City"]
["Region VII, Central Visayas",null,null,null,null,null,null,"Region VII, Central Visayas",null,null,null,null,null,null,null,null,null,null,null,null,null,null,null,null,null,{"$f":"R8","v":"DepED-Division of Lapu-Lapu City"}]
["DIVISION OF LAPU-LAPU  CITY",null,null,null,null,null,null,"DIVISION OF LAPU-LAPU  CITY"]
[null,null,null,null,null,null,null,null,null,null,null,null,null,null,null,null,null,null,null,null,null,null,null,null,null,"CERTIFICATE OF TRAVEL COMPLETED"]
[null,null,null,null,"2014-08-11",null,null,"ACTUAL ITINERARY OF TRAVEL"]
[null,null,null,null,null,null,null,null,null,null,null,null,null,null,null,null,null,"The School Division Superintendent"]
[null,null,null,null,null,null,null,"Name:",{"$f":"C11","v":"REYNOLD Q. VELOS"},null,null,null,null,null,null,null,null,"DepED-Division of Lapu-Lapu City"]
["TRAVEL ORDER",null,null,null,null,null,null,"Position:",{"$f":"C12","v":"Principal III"},null,null,null,null,null,null,null,null,"B.M. Dimataga, St. Poblacion, Lapu-Lapu City",null,null,null,null,null,null,null,null,null,null,null,null,null,{"$f":"I10","v":"MARIGONDON ELEMENTARY SCHOOL"}]
[null,null,null,null,null,null,null,"District:",{"$f":"C14","v":"MARIGONDON ELEMENTARY SCHOOL"},null,null,null,null,null,null,null,null,null,null,null,null,null,null,null,null,null,null,null,null,null,null,"Station"]
["Name:",":","REYNOLD Q. VELOS",null,null,null,null,"Purpose of Travel:",null,{"$f":"C15","v":"Attend the Debriefing of the RO and SDO Database Team at Royal Mandaya Hotel, Davao City on August 27-29, 2014."}]
["Position/Designation",":","Principal III",null,null,null,null,null,null,null,null,null,null,null,null,null,null,null,null,"I certify that I have completed the travel authorized in the Itinerary of Travel"]
["Salary Per Annum",":",null,null,null,null,null,null,null,null,null,null,null,null,null,null,null,"No. ____, dated August 24, 2009, under conditions indicated below:"]
["Station",":","MARIGONDON ELEMENTARY SCHOOL",null,null,null,null,"Date\n2014","DESTINATION",null,"TIME",null,"Means of\nTranspor\ntation","Amount","Per \nDiem","Total\nAmount"]
["Purpose of Travel",":","Attend the Debriefing of the RO and SDO Database Team at Royal Mandaya Hotel, Davao City on August 27-29, 2014.",null,null,null,null,null,"From","To","Departure","Arrival",null,null,null,null,null,null,"o","Strictly in accordance with the approved itinerary"]
[null,null,null,null,null,null,null,"2014-08-27","Residence","Taxi Terminal","05:00:00","05:15:00","Tricycle",8,null,{"$f":"N16+O16","v":8},null,null,"o","Cut short as explained below. Excess payment in the amount of P ________ was"]
[null,null,null,null,null,null,null,null,{"$f":"J16","v":"Taxi Terminal"},"Mactan Airport",{"$f":"L16","v":"05:15:00"},"05:40:00","Taxi",75,null,{"$f":"N17+O17","v":75},null,null,null,null,"refunded or O.R. No. ___ dated ______________________"]
[null,null,null,null,null,null,null,null,{"$f":"J17","v":"Mactan Airport"},"Davao City Airport","07:20:00","08:15:00","Plane",{"$f":"8235.04/2","v":4117.5200000000004},null,4117.5200000000004,null,null,"o","Extended is explained below. Additional itinerary was submitted."]
["Departure Date",":","August 27-29, 2014",null,null,null,null,null,{"$f":"J18","v":"Davao City Airport"},"Grand Men Seng Hotel","08:30:00","09:20:00","Taxi",75,null,75,null,null,"o","Other deviation as explained below."]
["Report to",":","Royal Mandaya Hotel, Davao City",null,null,null,null,null,null,null,null,null,null,null,null,0]
["Expenses Allowed",":","Travelling Expenses",null,null,null,null,"2014-08-29",{"$f":"J19","v":"Grand Men Seng Hotel"},{"$f":"I19","v":"Davao City Airport"},"15:00:00","15:45:00",{"$f":"M19","v":"Taxi"},75,null,75,null,null,"Explanation or Justification:"]
[null,null,"Subject to availability of funds and the usual accounting rules and regulations.",null,null,null,null,null,{"$f":"J18","v":"Davao City Airport"},{"$f":"I18","v":"Mactan Airport"},"17:30:00","18:30:00",{"$f":"M18","v":"Plane"},null,null,0]
[null,null,null,null,null,null,null,null,{"$f":"J17","v":"Mactan Airport"},{"$f":"I16","v":"Residence"},"19:00:00","19:40:00",{"$f":"M17","v":"Taxi"},75,null,75,null,null,"Evidence of Travel attached hereto:",null,null,null,null,null,null,"Memorandum, Receipt and Travel Order"]
["Appropriation to which travel should be charged:",null,null,"Local Funds/School MOOE",null,null,null,null,null,"Terminal Fee",null,null,null,200,null,200]
["Authority/Reference",":"]
[null,null,null,null,null,null,null,null,null,null,null,null,null,null,null,null,null,null,null,null,null,null,null,null,null,null,null,null,"Respectfully submitted:"]
["Remarks of Special Instruction:"]
[null,null,null,null,null,null,null,null,null,null,null,null,null,null,null,null,null,null,null,null,null,null,null,null,null,null,null,null,null,null,{"$f":"UPPER(I8)","v":"REYNOLD Q. VELOS"}]
["Important Requirement: Written reports or feedback to the Schools Division Superintendent is hereby required immediately upon return to the office or immediately after completion of the travel on official business or on official time.",null,null,null,null,null,null,null,null,null,null,null,null,null,null,null,null,null,null,null,null,null,null,null,null,null,null,null,null,null,{"$f":"I9","v":"Principal III"}]
[null,null,null,null,null,null,null,null,null,null,null,null,null,null,null,{"$f":"N30+O30","v":0}]
[null,null,null,null,null,null,null,null,null,null,null,null,null,null,null,{"$f":"N31+O31","v":0},null,null,null,"On evidence and information of which I have knowledge the travel was actually"]
[null,null,null,null,null,null,null,null,null,null,null,null,null,null,null,null,null,null,"undertaken."]
[]
[null,null,null,null,null,"EDUARDO A. OMPAD, Ed.D.",null,null,null,null,null,null,null,null,null,null,null,null,null,null,null,null,null,null,null,null,null,null,null,null,{"$f":"N42","v":"EDUARDO A. OMPAD"}]
[null,null,null,null,null,"Officer In-Charge",null,null,"GRAND TOTAL",null,null,null,null,{"$f":"SUM(N16:N34)","v":4625.5200000000004},null,{"$f":"SUM(P16:P34)","v":4625.5200000000004},null,null,null,null,null,null,null,null,null,null,null,null,null,null,{"$f":"N43","v":"Schools Division Superintendent"}]
[null,null,null,null,null,"Office of the Schools Division Superintendent",null,"I hereby certify that (1) I have reviewed the following itinerary to the service (2) the expenses claimed are proper."]
["Conform:"]
[null,null,null,null,null,null,null,null,null,null,null,null,null,{"$f":"UPPER(I8)","v":"REYNOLD Q. VELOS"}]
[null,"___________________________",null,null,null,null,null,null,null,null,null,null,null,"Employee/Official"]
[null,null,null,null,null,null,null,"Recommending Approval:",null,null,null,"Approved:"]
[]
[null,null,null,null,null,null,null,null,"RESEMARIE A. LASMARIAS",null,null,null,null,"EDUARDO A. OMPAD"]
[null,null,null,null,null,null,null,null,"Administrative Officer V",null,null,null,null,"Schools Division Superintendent"]

{"sheet":"ARE","index":16,"n_rows":35,"n_cols":6,"rows_kept":35,"cut":false,"hidden":false,"merged":[[33,0,33,2],[33,3,33,5],[34,0,34,2],[30,0,30,2],[30,3,30,5],[31,0,31,2],[31,3,31,5],[32,0,32,2],[32,3,32,5],[29,0,29,2],[29,3,29,5],[18,2,18,3],[19,2,19,3],[20,2,20,3],[21,2,21,3],[22,2,22,3],[23,2,23,3],[24,2,24,3],[25,2,25,3],[26,2,26,3],[28,0,28,2],[28,3,28,5],[17,2,17,3],[6,2,6,3],[7,2,7,3],[8,2,8,3],[9,2,9,3],[10,2,10,3],[11,2,11,3],[12,2,12,3],[13,2,13,3],[14,2,14,3],[15,2,15,3],[16,2,16,3],[5,2,5,3],[0,0,0,5],[1,0,1,5],[2,0,2,5],[3,0,3,5],[4,0,4,5]]}
["ACKNOWLEDGMENT RECEIPT FOR EQUIPMENT"]
["DEPARTMENT OF EDUCATION"]
["Agency"]
[]
[]
["QTY","UNIT","DESCRIPTION (Serial No. if Any)",null,"Unit Cost","Prop. No."]
[1,"set","Router, Edimax BR-6228NS, 150 MBps",null,999]
[]
[]
[]
[]
[]
[]
[]
[]
[]
[]
[]
[]
[]
[]
[]
[]
[]
[]
[]
[]
["Received by:",null,null,"Received From:"]
[]
["_______________________________",null,null,"RUFO P. LAPAY"]
["Signature Over Printed Name",null,null,"Teacher III, School Property Custodian"]
["____________________"]
["Position/Office",null,null,"____________________"]
["_______________",null,null,"Date"]
["Date"]

{"sheet":"Code","index":17,"n_rows":14,"n_cols":2,"rows_kept":14,"cut":false,"hidden":false,"merged":[]}
[]
["Account Code","Account Name"]
[767,"Electricity"]
[766,"Water"]
[772,"Telephone"]
[774,"Telephone with Internet"]
[773,"Telephone Expenses Mobile"]
[892,"Fidelity Bond"]
[797,"Security Services"]
[784,"Transportation, Delivery Charge, Mobilization"]
[823,"Repair and Maintenance"]
[165,"Printer, Electric Fan"]
[969,"Other MOOE"]
[758,"Food Supplies Expense"]

{"sheet":"Tel No","index":18,"n_rows":58,"n_cols":11,"rows_kept":58,"cut":false,"hidden":false,"merged":[]}
["Store","Tel No."]
["Division Accounting","340-5031",null,null,null,null,null,null,"340-8193 LLC hardware"]
["Southern Synergy","420-7338 - April",null,null,null,null,null,null,{"$f":"A3&\" \"&B3","v":"Southern Synergy 420-7338 - April"}]
["Star Paper Corporation","345-1334,344-0317",null,null,null,null,null,null,{"$f":"A4&\" \"&B4","v":"Star Paper Corporation 345-1334,344-0317"}]
["Cebu Tristar Corporation","346-0781,3460560,3461626",null,null,null,null,null,null,{"$f":"A5&\" \"&B5","v":"Cebu Tristar Corporation 346-0781,3460560,3461626"}]
["La Nueva Supermarket","340-6200",null,null,null,null,null,null,"La Nueva Supermarket 340-6200"]
["Marnikko School and Office Supplies","495-4012",null,null,null,null,null,null,"Marnikko School and Office Supplies 495-4012"]
["Peoples Educl Supply","2550169, 2542041",null,null,null,null,null,null,"Peoples Educl Supply 2550169, 2542041"]
["Phillipine Duplicators, Inc., Banilad, Cebu City","231-1363/4/6",null,null,null,null,null,null,"Phillipine Duplicators, Inc., Banilad, Cebu City 231-1363/4/6"]
["Visayan Educ Supply","3444528 3444529",null,null,null,null,null,null,"Visayan Educ Supply 3444528 3444529"]
["JSY Lumber and General Merchandise","4940767/3606933",null,null,null,null,null,null,"JSY Lumber and General Merchandise 4940767/3606933"]
["Budget Builders, Inc","340-0026",null,null,null,null,null,null,{"$f":"A12&\" \"&B12","v":"Budget Builders, Inc 340-0026"}]
["Discaya Trade Center ","495-6739",null,null,null,null,null,null,"Discaya Trade Center  495-6739"]
["ELYANOR Enterprises","495-6262/505-7540",null,null,null,null,null,null,"ELYANOR Enterprises 495-6262/505-7540"]
["Emman","495-7861",null,null,null,null,null,null,"Emman 495-7861"]
["Gun-ob Glass","495-9778",null,null,null,null,null,null,"Gun-ob Glass 495-9778"]
["Home Builders, Inc","341-5804-06",null,null,null,null,null,null,"Home Builders, Inc 341-5804-06"]
["Jovens Glass-Fe","493-4309/494-0123","24 x 71\"",null,600,null,null,null,"Jovens Glass-Fe 493-4309/494-0123"]
["JCT Construction Supply","340-4266",null,null,720,null,null,null,"JCT Construction Supply 340-4266"]
["Kima Glass","495-7172",null,null,null,null,null,null,"Kima Glass 495-7172"]
["Lapu-Lapu Glass","341-5981",null,null,null,null,null,null,"Lapu-Lapu Glass 341-5981","Basak Auto Glass",4229270]
["Mactan Centennial Hardware","495-6791",null,null,null,null,null,null,{"$f":"A22&\" \"&B22","v":"Mactan Centennial Hardware 495-6791"}]
["Mactan Trade Center","340-2236",null,null,null,null,null,null,"Mactan Trade Center 340-2236"]
["Rean Enterprises",4952160,null,null,null,null,null,null,"Rean Enterprises 4952160"]
["Rubi Enterprises","520-3280/505-0714",null,null,null,null,null,null,"Rubi Enterprises 520-3280/505-0714"]
["Savers Home Depot","494-2801",null,null,null,null,null,null,"Savers Home Depot 494-2801"]
["Sta Rosa Property Ventures","341-1068, 493-5797",null,null,null,null,null,null,"Sta Rosa Property Ventures 341-1068, 493-5797"]
["SUDBAS Enterprises","341-1381",null,null,null,null,null,null,"SUDBAS Enterprises 341-1381"]
[]
["Jober Electronic Parts & Electrcal Supplies",3402231,null,null,null,null,null,null,{"$f":"A30&\" \"&B30","v":"Jober Electronic Parts & Electrcal Supplies 3402231"}]
["Asian Home Appliance Center","3405423/2689849 Grandm",null,null,null,null,null,null,"Asian Home Appliance Center 3405423/2689849 Grandm"]
["Citi Appliance","3402890/3403019",null,20,4219,"s20b300nh",null,null,"Citi Appliance 3402890/3403019"]
["TTI SM","4121040/2341788",null,22,6450,"ls22f350fhexxp",null,null,"TTI SM 4121040/2341788"]
["Vanix Computer Center","420-5778/0932-5230136",null,null,null,null,null,null,"Vanix Computer Center 420-5778/0932-5230136"]
["Perfect Star","495-4006",null,null,"ips 23",null,null,null,"Perfect Star 495-4006"]
["Fast Win Grand Mall - 505-8899"]
["CBX Corporation -231-4369",null,null,"aoc",8250,"i2381fh","dir600m","dlink","1200 Jumel"]
["Electroworld Inc. - 236-2857"]
["Fast Win Computer Enterprises - 2363333"]
["Metro PC Technology - 4209120 - 24","Chekie/banje","MSI ECS","acer",7500,"ipsb23hl"]
["NUTECH Marketing 253-5451/Pajo-2366854",null,null,null,7700]
["PC Quickbuys 238-8108",null,null,"philips 21",6150,"224e5qsb"]
["XComp Computer Sales and Services 255-6115",null,null,null,null,null,null,null,"236-1396"]
["SECC Computer 346-2263",null,null,null,null,null,null,null,"1200 asus rtn12"]
["Fotoline Express 233-1799",null,null,null,null,null,null,null,"lenxis a1200 2100"]
["Nutech Solutions 268-3408/256-0546/236-6854"]
["Pcquickbuys 2388108/318-0224",3800,null,null,7900]
["Silicon Valley 5052896/2387193",null,null,null,null,null,null,null,{"$f":"7700*2","v":15400}]
["Ink Now 268-6456 colon 268-3702","junrey"]
["Inkpro Mandaue 3436970"]
["Insotec Computers 340-3294"]
["CBR Digital Ware Humay-humay 236-1300"]
["RK Eustaquio Enterprises","254-3773/261-8964","TN 2360/2380",2900]
["Octagon Computers","236-9307/2366537 techn","DCPL2540DW",null,9600]
["TekZone","238-3766/343-3396","Joy/Banbros"]
["340-7887 omar",null,null,null,null,null,null,null,{"$f":"120*4","v":480}]
["340-5031 Accounting"]
["Asia Pacific Computers Sales and Services","345-2465/eden","Philips 21.5",null,6670]

{"sheet":"Computer Stores","index":19,"n_rows":137,"n_cols":17,"rows_kept":137,"cut":false,"hidden":false,"merged":[]}
["List of Major Computer Stores in Cebu, Philippines"]
[]
["1. Asia Pacific Computers Sales and Services"]
["their main office/store (address) is located in A.S. Fortuna St., Banilad, Mandaue City"]
["they have a new branch at the 2nd floor of Emall"]
["you can contact them in their telephone numbers: (032) 345-2465 and 66, 415-8275,"]
["Mobile/cellphone number: 09228338879"]
["2. CBX Corporation"]
["their main office/store (address) is located in J. de Vera St. Off Juan Luna Ave., North Reclamation Area (NRA), Cebu City (Across SM City Cebu)"]
["you can contact them in their telephone numbers: (032) 231-4369 / 231-3714 / 232-4314 / 412-9668 to 69"]
["Fax number: (032) 231-4690"]
["Mobile/Cellphone number: 09176281595 / 09228229267"]
["3. Fast Win Computer Enterprises"]
["main office/store address: Subangdaku, Mandaue City, Cebu"]
["contact/telephone number: (032) 236-3333"]
["4. HMR Phils Inc."]
["store address is located in Cor. P. Burgos, Magallanes, Cebu City, contact/telephone number: (032) 254-6587 / 253-6609, mobile/cellphone number: 09176003343"]
["5. PC Quickbuys"]
["they have branches in SM City Cebu, contact/telephone number: (032) 238-8108"]
["Sanciangko St., in front of University of Cebu (UC) main, contact/telephone number: (032) 412-9792"]
["6. NUTECH Marketing"]
["main office/store is located in Sanciangko-Borromeo Sts. Corner, Cebu City, contact/telephone number: (032) 253-5451, fax number: 256-0540"]
["they have branches at the 2nd floor in Emall and SM City Cebu"]
["7. SECC Computer Sales and Services"]
["office/store address is located in  C and F Ramirez Bldg., S B Cabahug, Mandaue City, Cebu, contact/telephone number: (032) 345-3328 / 346-2263 / 516-8004 / 516-8003, fax number: 345-6015 / 422-8991"]
["8. Thinking Tools Inc."]
["main office/store address is located in TTI Building, Junquera Ext. cor. R.R.Landon St., Cebu City, contact/telephone number: (32) 254-2227, fax number: (32) 254-9791"]
["they have branches in SM City Cebu, Mandaue and Ayala Center Cebu"]
["9. V.G.M. Computerworks Systems"]
["its main office/store address in Cebu is located in #7 Molave Street, Brgy. Camputhaw, Cebu City"]
["contact/telephone number: (032) 232-4990 / 232-4908, fax number: (032) 232-4947, (032) 415-5819"]
["10. MDR Microware Sales Inc.",null,null,null,null,null,null,null,null,null,null,null,null,null,null,"512-2286"]
["main office/store address is located in Ouano Avenue, NRA, Mandaue City"]
["contact/telephone number: (032) 420-9120 / 255-4415 / 420-9121 to 24",null,null,null,null,null,null,null,null,null,null,null,null,null,null,"j220",5495]
["11. LYK Microsystems Service Center"]
["main office/store address is located in 48-A Juana Osmeña, Cebu City"]
["contact/telephone number: (032) 255-6264"]
["fax number: (032) 255-6265"]
["12. SP Technology Inc."]
["main office/store address is located in Door 3 Catunggal Bldg., Catungal Compound, (fronting Doña Rita Village), Nasipit Rd., Talamban, Cebu City"]
["contact/telephone number: (032) 343-8866, 344-3662"]
["email address: sptech@pacific.net.ph"]
["13. World Digital Computer Center"]
["main office/store address is located in North Bacalso Avenue, Hi-way Mambaling, Cebu City"]
["contact/telephone number: (032) 413-9126 / 417-8613 / 417-4915"]
["fax number: 417-8203"]
["email address: worldigital2002@yahoo.com"]
["14. XComp Computer Sales and Services"]
["main office/store address is located R. Duterte cor. V. Rama Ave., Guadalupe, Cebu City"]
["contact/telephone number: (032) 253-8801, 255-6115, 255-1586, 262-5155 to 57, 516-8155"]
["they have branch office/store in D. Jakosalem cor G. Maxilom Ave., contact/telephone no.: (032)416-7324, 412-4665, 416-4375"]
["branch in Andres Abellana, contact/telephone no.: (032)262-5155, 262-5156"]
["15. DOOHICKEY Trading Inc."]
["main office/store address is located in No. 82 España St., (near UV), Pari-an, Cebu City"]
["contact/telephone no.: (032) 238-7808, 516-7695, 238-0211, 414-9068"]
["email address: edna_dooky@yahoo.com / askmedooky@yahoo.com"]
["16. Infonet Solutions Inc."]
["main office/store address is located at the 2nd floor Leonisa Bldg., N. Escario St, Cebu City"]
["contact/telephone no.:(032)254-9851, fax no.: (032)254-9849"]
["17. Electroworld Inc."]
["they have branch office/store at the 3rd Level SM City Cebu, Reclamation Area, Cebu /// contact/telephone no.: 032-236-2857, /// email address: ewvsmcebu@electroworld.com.ph"]
["branch office/store located a the 3rd Level Ayala Center Business Park Cebu /// contact/telephone number: 032-233-4296 and 032-232-5965 /// email address: ewvayala@electroworld.com.ph"]
["18. NGenius IT Hub"]
["they have a branch office/store located in SM City Cebu /// contact/telephone number: (+6332) 412-0068"]
["they have also branches in Asiatown IT Park and in Ayala Center Cebu"]
["19. PC Express"]
["branch office/store address located at the Ground floor CIFC Towers, J. Luna Ave., North Reclamation Area (NRA) /// contact/telephone no.: 032 2344377, 032 234-4388"]
["branch office/store address located in G&D Santiago bldg. Osmeña Blvd. Cor. Visitacion St. Cebu City /// contact/telephone no.: (032)-2543746 / (032)-2543885"]
["20. Octagon"]
["boasted themselves as the biggest computer store in the Philippines."]
["they have branch office/store at the 3rd floor of SM City Cebu, North Reclamation Area (NRA), San Jose Dela Montana /// contact/telephone no.: (032) 231-7354, (032)231-7356"]
["they also a new branch at the 3rd floor of Emall, Sanciangko St., Cebu City."]
["21. Wired Systems Corporation"]
[]
["Computer Shop, Computer Store and Information Technology Provider. Cebu City, Philippines"]
["Address: Unit 14 St. Patricks Square, Don Ramon Aboitiz Street, Cebu City 6000 Philippines"]
["Telephone Number: (032) 255-5282 / 255-5283 / 412-6771 to 73"]
["Fax Number: (032) 412-6532"]
["Website: http://www.wiredsystems.com"]
["22. Cool Rigz Computer Solutions"]
["Address: 2nd Floor, Lugay Bldg M.L. Quezon St. Maguikay, Mandaue City (Fronting Golden Harvester International)"]
["Telefax No.: 032-422-3411"]
["Mobile No.: +639222368709"]
["Website: www.coolrigzcs.webs.com"]
["23. DJPCWise Corporation"]
["Address: 2nd Level Shopwise Cebu, North Bacalso St., Cebu City"]
["Telephone Number: (032)253-1068 / 253-0311 / 416-1017"]
["Cellphone No.: 09228909101"]
["24. Argosy WCSI"]
["Address: #34 Gorordo Ave., Cebu City (across Camp Sotero Cabahug)"]
["Sales Telephone No.: (032) 231-5091 ; Email Address: inquire@argosyoinfo.net"]
["Technical Telephone No.: (032) 512-8645 ; Email Address: support @argosyinfor.net"]
["Website: www.argosyinfo.net"]
["25. Fineupgrades Computer and Gadgets Distribution"]
["Address: #680 Magallanes Street, Cebu City, Philippines"]
["Telephone No.: (032) 253-5648"]
["Fax No.: (032) 255-4765"]
["Cellphone No.: 09231433954 / 09473426649"]
["Email address: fineupgrades_christian@yahoo.com"]
["Website: fineupgrades.com"]
["26. Cool Rigz Computer Solutions"]
["Address: 2nd Floor, Lugay Bldg. M.L. Quezon St., Maguikay, Mandaue City (in front of Golden Harvester International)"]
["Telefax No.: 032-422-3411"]
["Cellphone No.: 09222368709"]
["Website: www.coolrgizcs.webs.com"]
["27. Onietech Computer Solution"]
["Address: Door No. 2, Gen. Maxilom Avenue, Cebu City"]
["Telephone No.: (032)239-1940"]
["Services/Product: Manufacturer/Maker of Coin-Operated Computer Machine (casing with built-in coin slot and timer) / Hulog-Hulog piso computer."]
["28. Gaisano Interpace Computer Systems"]
["They have many branches in Cebu and in other parts of the Philippines. Their Cebu branches include:"]
["Gaisano Interpace Cebu City Branch - located at Ground Floor, Gaisano Country Mall, Banilad, Cebu City / Telephone Number: (032) 233-3023, (032) 232-9664 /"]
["Gaisano Interpace NRA Branch - located at Ground Floor, APM Shopping Mall (beside SM Cebu), A. Soriano Jr. Avenue, New Reclamation Area, Cebu / Telephone Number: (032) 505-9529, (032) 505-9530"]
["Gaisano Interpace Tabunok Branch - located at 2nd floor, B6 and B7 Gaisano Grand Fiesta Mall, Tabunok, Talisay City, Cebu / Telephone Number: (032) 520-3664"]
["Gaisano Interpace Mandaue Branch - located at Warehouse 6, Rositas Compound, Ouano Avenue, New Reclamation Area, Mandaue City, Cebu / Telephone Number: (032) 505-4977, 505-4904, 420-9063"]
["29. Perfect Star PC Shoppe"]
["Main Office Address: No. 20 P.Del Rosario St. Cebu City"]
["Telephone Number: (032) 253-9449/51/53 / (032)412-9991/92/93"]
["They have many branches in Cebu such as:"]
["Banilad Branch - telephone number (032) 236-8601, (032) 233-3571"]
["Mactan Branch - telephone number (032) 495-3462, (032) 318-2995"]
["Toledo Branch - telephone number (032) 466-1488, (032) 512-6311"]
["Danao Branch - telephone number (032) 318-2994"]
["30. Enigma Technologies"]
["Address: Shoppe 229 Raintree Mall, General Maxilom Avenue, Cebu City "]
["Telephone Number: (032)254-9659/236-1230"]
["Cellphone: 0923-742-0054"]
["31. NAB Computers"]
["Address: 2/F, Lopena Bldg., South Road, Tabunok Talisay City, Cebu"]
["Telephone Number: 032-236-8464 "]
["Cellphone Number: 09323575517 / 09073385359 "]
["Email Address: nessa_nab@yahoo.com.ph"]
["Yahoo Messenger: nessa_nab"]
[]
[]
[]
["Read more: http://www.affordablecebu.com/load/business/list_of_computer_stores_in_cebu_philippines/6-1-0-799#ixzz2CplgOJsX"]

{"sheet":"RER","index":20,"n_rows":33,"n_cols":7,"rows_kept":33,"cut":false,"hidden":false,"merged":[[12,0,12,6],[14,0,14,6],[2,1,2,3],[5,3,5,6],[6,0,6,4],[6,5,6,6],[8,0,8,5],[10,2,10,6],[2,5,2,6]]}
[]
[null,null,null,"REIMBURSEMENT EXPENSES RECEIPT"]
["Date:","2015-10-02",null,null,"No.:",91501]
[]
[]
[null,"Received from __________________________________________",null,"MARIGONDON ELEMENTARY SCHOOL"]
[null,null,null,null,null,"____the amount of"]
[null,null,"(Official Designation)"]
[{"$f":"SpellNumber(G9)","v":"Seventy  Pesos Only"},null,null,null,null,null,70]
[null,null,"(In Word)",null,null,"      (In figure)"]
["in payment for ___________________________________________________",null,"ECONOMY FARE in the payment of Electricity,"]
[null,null,null,"(Payments for subsistence, services)"]
["and purchase of supplies and materials of Marigondon"]
[null,null,null,"rental or  transportation should show inclusive dates,"]
[" Elementary School on September 30 to October 1, 2015"]
[null,null,null,"purpose, distance, inclusive points of travel, etc."]
[]
[]
[null,null,null,"P A Y E E"]
["Name/Signature__________________________________________________"]
["Address_________________________________________________________"]
["Residence Cert. No. ______________________________________________"]
["Date of Issue____________________________________________________"]
["Place of Issue___________________________________________________"]
[]
[]
[null,null,null,"W I T N E S S"]
[]
["Name/Signature__________________________________________________"]
["Address________________________________________________________"]
["Residence Cert. No. ______________________________________________"]
["Date of Issue____________________________________________________"]
["Place of Issue___________________________________________________"]

{"sheet":"2Canvas (2)","index":21,"n_rows":69,"n_cols":24,"rows_kept":69,"cut":false,"hidden":false,"merged":[[67,5,67,7],[67,13,67,15],[67,21,67,23],[68,5,68,7],[68,13,68,15],[68,21,68,23],[62,5,62,7],[62,13,62,15],[62,21,62,23],[66,5,66,7],[66,13,66,15],[66,21,66,23],[60,5,60,7],[60,13,60,15],[60,21,60,23],[61,5,61,7],[61,13,61,15],[61,21,61,23],[58,1,58,4],[58,9,58,12],[58,17,58,20],[59,5,59,7],[59,13,59,15],[59,21,59,23],[56,1,56,4],[56,9,56,12],[56,17,56,20],[57,1,57,4],[57,9,57,12],[57,17,57,20],[54,1,54,4],[54,9,54,12],[54,17,54,20],[55,1,55,4],[55,9,55,12],[55,17,55,20],[52,1,52,4],[52,9,52,12],[52,17,52,20],[53,1,53,4],[53,9,53,12],[53,17,53,20],[50,1,50,4],[50,9,50,12],[50,17,50,20],[51,1,51,4],[51,9,51,12],[51,17,51,20],[48,1,48,4],[48,9,48,12],[48,17,48,20],[49,1,49,4],[49,9,49,12],[49,17,49,20],[42,1,42,4],[43,1,43,4],[44,1,44,4],[45,1,45,4],[46,1,46,4],[47,1,47,4],[36,1,36,4],[37,1,37,4],[38,1,38,4],[39,1,39,4],[40,1,40,4],[41,1,41,4],[34,1,34,4],[34,9,34,12],[34,17,34,20],[35,1,35,4],[35,9,35,12],[35,17,35,20],[32,1,32,4],[32,9,32,12],[32,17,32,20],[33,1,33,4],[33,9,33,12],[33,17,33,20],[28,21,29,21],[28,22,29,22],[30,1,30,4],[30,9,30,12],[30,17,30,20],[31,1,31,4],[31,9,31,12],[31,17,31,20],[15,0,15,2],[15,8,15,10],[15,16,15,18],[28,1,29,4],[28,5,29,5],[28,6,29,6],[28,9,29,12],[28,13,29,13],[28,14,29,14],[28,17,29,20],[14,0,14,2],[14,8,14,10],[14,16,14,18],[3,6,3,7],[3,14,3,15],[3,22,3,23],[8,6,8,7],[8,14,8,15],[8,22,8,23],[1,6,1,7],[1,14,1,15],[1,22,1,23],[2,6,2,7],[2,14,2,15],[2,22,2,23],[13,0,13,2],[13,8,13,10],[13,16,13,18]]}
["Republic of the Philippines",null,null,null,null,null,"Project Reference Number:",1601001,"Republic of the Philippines",null,null,null,null,null,"Project Reference Number:",{"$f":"H1+1","v":1601002},"Republic of the Philippines",null,null,null,null,null,"Project Reference Number:",{"$f":"P1+1","v":1601003}]
["Department of Education",null,null,null,null,"Name of Project:    ","Repair and Maintenance",null,"Department of Education",null,null,null,null,"Name of Project:    ","Security Services",null,"Department of Education",null,null,null,null,"Name of Project:    ","Office Supplies"]
["Region VII, Central Visayas",null,null,null,null,"Location of Project:","Marigondon ES",null,"Region VII, Central Visayas",null,null,null,null,"Location of Project:","Marigondon ES",null,"Region VII, Central Visayas",null,null,null,null,"Location of Project:","Marigondon ES"]
["Division of Lapu-Lapu City",null,null,null,null,null,"Marigondon, LLC",null,"Division of Lapu-Lapu City",null,null,null,null,null,"Marigondon, LLC",null,"Division of Lapu-Lapu City",null,null,null,null,null,"Marigondon, LLC"]
["South District",null,null,null,null,null,null,null,"South District",null,null,null,null,null,null,null,"South District"]
["MARIGONDON ELEMENTARY SCHOOL",null,null,null,null,null,null,null,"MARIGONDON ELEMENTARY SCHOOL",null,null,null,null,null,null,null,"MARIGONDON ELEMENTARY SCHOOL"]
["Marigondon, Lapu-Lapu City",null,null,null,null,null,null,null,"Marigondon, Lapu-Lapu City",null,null,null,null,null,null,null,"Marigondon, Lapu-Lapu City"]
["Telefax No. (032) 495-6265",null,null,null,null,null,null,null,"Telefax No. (032) 495-6265",null,null,null,null,null,null,null,"Telefax No. (032) 495-6265"]
[null,null,null,null,null,"Date:",null,null,null,null,null,null,null,"Date:",null,null,null,null,null,null,null,"Date:"]
["Standard Form Number: SF-GOOD-60",null,null,null,null,null,null,"Quotation Number: _________","Standard Form Number: SF-GOOD-60",null,null,null,null,null,null,"Quotation Number: _________","Standard Form Number: SF-GOOD-60",null,null,null,null,null,null,"Quotation Number: _________"]
["Revised on: May 24, 2004",null,null,null,null,null,null,null,"Revised on: May 24, 2004",null,null,null,null,null,null,null,"Revised on: May 24, 2004"]
["Standard Form Title: Request for Quotations",null,null,null,null,null,null,null,"Standard Form Title: Request for Quotations",null,null,null,null,null,null,null,"Standard Form Title: Request for Quotations"]
[]
[]
[]
[]
[]
[null,"Please quote your lowest price on the item/s listed below, subject to the General Conditions on the last page",null,null,null,null,null,null,null,"Please quote your lowest price on the item/s listed below, subject to the General Conditions on the last page",null,null,null,null,null,null,null,"Please quote your lowest price on the item/s listed below, subject to the General Conditions on the last page"]
["stating the shortest time delivery and submit your quotation duly signed your representative not later than ______________",null,null,null,null,null,null,null,"stating the shortest time delivery and submit your quotation duly signed your representative not later than ______________",null,null,null,null,null,null,null,"stating the shortest time delivery and submit your quotation duly signed your representative not later than ______________"]
["in the return envelope attached herewith.",null,null,null,null,null,null,null,"in the return envelope attached herewith.",null,null,null,null,null,null,null,"in the return envelope attached herewith."]
[]
["Note:","1. All entries must be typewritten.",null,null,null,null,{"$f":"'1PR'!C40","v":"EVELYN S. ONGCO"},null,"Note:","1. All entries must be typewritten.",null,null,null,null,{"$f":"G22","v":"EVELYN S. ONGCO"},null,"Note:","1. All entries must be typewritten.",null,null,null,null,{"$f":"O22","v":"EVELYN S. ONGCO"}]
[null,"2. Delivery period within _____ calendar days",null,null,null,null,"Procurement Officer",null,null,"2. Delivery period within _____ calendar days",null,null,null,null,"Procurement Officer",null,null,"2. Delivery period within _____ calendar days",null,null,null,null,"Procurement Officer"]
[null,"3. Warranty shall be for a period of six(6) months for supplies and materials, one(1) year for equipment,",null,null,null,null,null,null,null,"3. Warranty shall be for a period of six(6) months for supplies and materials, one(1) year for equipment,",null,null,null,null,null,null,null,"3. Warranty shall be for a period of six(6) months for supplies and materials, one(1) year for equipment,"]
[null,"     from date of acceptance by the procuring entity.",null,null,null,null,null,null,null,"     from date of acceptance by the procuring entity.",null,null,null,null,null,null,null,"     from date of acceptance by the procuring entity."]
[null,"4. Price validity shall be for a period of _____ calendar days.",null,null,null,null,null,null,null,"4. Price validity shall be for a period of _____ calendar days.",null,null,null,null,null,null,null,"4. Price validity shall be for a period of _____ calendar days."]
[null,"5. G-EPS registration certificate shall be attached upon submission of the quotation.",null,null,null,null,null,null,null,"5. G-EPS registration certificate shall be attached upon submission of the quotation.",null,null,null,null,null,null,null,"5. G-EPS registration certificate shall be attached upon submission of the quotation."]
[null,"6. Bidders shall submit original brochures showing certfications of the product being offered.",null,null,null,null,null,null,null,"6. Bidders shall submit original brochures showing certfications of the product being offered.",null,null,null,null,null,null,null,"6. Bidders shall submit original brochures showing certfications of the product being offered."]
["Item","ITEM AND DESCRIPTION",null,null,null,"UNIT","QTY","Unit","Item","ITEM AND DESCRIPTION",null,null,null,"UNIT","QTY","Unit","Item","ITEM AND DESCRIPTION",null,null,null,"UNIT","QTY","Unit"]
["No.",null,null,null,null,null,null,"Price","No.",null,null,null,null,null,null,"Price","No.",null,null,null,null,null,null,"Price"]
[1,null,null,null,null,null,null,null,1,"Provision of four (4) security guards for the ",null,null,null,"unit",4]
[2,null,null,null,null,null,null,null,null,"   two(2) sites of Marigondon Elementary School, "]
[3,null,null,null,null,null,null,null,null,"   Marigondon, Lapu-Lapu City"]
[4]
[5]
[6]
[7]
[8]
[9]
[10]
[11]
[12]
[13]
[14]
[15]
[16]
[17]
[18]
[19]
[20]
[21]
[22]
[23]
[24]
[25]
[26]
[27]
[28]
[]
[null,null,null,null,"Brand and Model",": ___________________",null,null,null,null,null,null,"Brand and Model",": ___________________",null,null,null,null,null,null,"Brand and Model",": ___________________"]
[null,null,null,null,"Delivery Period",": ___________________",null,null,null,null,null,null,"Delivery Period",": ___________________",null,null,null,null,null,null,"Delivery Period",": ___________________"]
[null,null,null,null,"Warranty",": ___________________",null,null,null,null,null,null,"Warranty",": ___________________",null,null,null,null,null,null,"Warranty",": ___________________"]
[null,null,null,null,"Price Validity",": ___________________",null,null,null,null,null,null,"Price Validity",": ___________________",null,null,null,null,null,null,"Price Validity",": ___________________"]
[null,"After having carefully read and accepted your General Conditions, I/We quote you on the item at",null,null,null,null,null,null,null,"After having carefully read and accepted your General Conditions, I/We quote you on the item at",null,null,null,null,null,null,null,"After having carefully read and accepted your General Conditions, I/We quote you on the item at"]
["prices noted above.",null,null,null,null,null,null,null,"prices noted above.",null,null,null,null,null,null,null,"prices noted above."]
[]
[null,null,null,null,"Printed Name over Signature:",null,null,null,null,null,null,null,"Printed Name over Signature:",null,null,null,null,null,null,null,"Printed Name over Signature:"]
[null,null,null,null,"Tel. No./Cellphone No./E-mail:",null,null,null,null,null,null,null,"Tel. No./Cellphone No./E-mail:",null,null,null,null,null,null,null,"Tel. No./Cellphone No./E-mail:"]
[2,null,null,null,"Date:",null,null,null,2,null,null,null,"Date:",null,null,null,2,null,null,null,"Date:"]